Workbook

Sheet Inhalt
C1: Statistisches Bundesamt (2016): Ausgaben, Einnahmen und Personal der öffentlichen und öffentlich geförderten Einrichtungen für Wissenschaft, Forschung und Entwicklung, Sonderauswertung, Wiesbaden
B3: 1. | C3: Wissenschaftler/-innen der wissenschaftlichen Einrichtungen des öffentlichen Sektors 2008 -2013 nach Altersklasse, ausgewählte Einrichtungsarten und Wissenschaftszweigen | L3: zur Auswertung
B4: 2. | C4: Wissenschaftler/-innen der wissenschaftlichen Einrichtungen des öffentlichen Sektors 2013 nach Einrichtungsart, Promotionsstatus, Alter und Befristung | L4: zur Auswertung
B5: 3. | C5: Personal der wissenschaftlichen Einrichtungen des öffentlichen Sektors 2014 nach Einrichtungsarten und Personalgruppen | L5: zur Auswertung
B6: 4. | C6: Wissenschaftler/-innen für Forschung und Entwicklung der wissenschaftlichen Einrichtungen des öffentlichen Sektors 2008 bis 2012 nach Einrichtungsgruppen, ausgewählten Einrichtungsarten, Geschlecht und Wissenschaftszweigen | L6: zur Auswertung
B7: 5. | C7: Wissenschaftler/-innen der wissenschaftlichen Einrichtungen der vier großen außeruniversitären Forschungseinrichtungen nach Altersklasse und Promotionsstatus, Arbeitsumfang, Befristung, Wissenschaftszweigen und Geschlecht | L7: zur Auswertung
B8: 6. | C8: Wissenschaftler/-innen der wissenschaftlichen nach Staatsangehörigkeit Einrichtungen der vier großen außeruniversitären Forschungseinrichtungen nach Staatsangehörigkeit | L8: zur Auswertung

Sheet 1. Wiss.Personal AUF 08-13

Sheet 1.1
A1: Wissenschaftler der wissenschaftlichen Einrichtungen des öffentlichen Sektors
A2: nach Altersklasse, ausgewählte Einrichtungsarten und Wissenschaftszweigen
A4: ohne Promotion bis 34 Jahre | C4: Insgesamt | E4: Naturwissenschaften | G4: Ingenieurwissenschaften | I4: Humanmedizin | K4: Agrarwissenschaften | M4: Geisteswissenschaften | O4: Sozialwissenschaften
C5: VZÄ | D5: HC | E5: VZÄ | F5: HC | G5: VZÄ | H5: HC | I5: VZÄ | J5: HC | K5: VZÄ | L5: HC | M5: VZÄ | N5: HC | O5: VZÄ | P5: HC
A6: 2008
B7: Institute der Fraunhofer-Gesellschaft | C7: 3303 | D7: 5500 | E7: 929.0286931 | F7: 1504 | G7: 2147.64397 | H7: 3617 | I7: 73.11889216 | J7: 123 | K7: . | L7: . | M7: . | N7: . | O7: 119.6775789 | P7: 199
B8: Helmholtz-Zentren | C8: 3381.5 | D8: 4121 | E8: 1661.337266 | F8: 2087 | G8: 1191.115136 | H8: 1373 | I8: 502.7401869 | J8: 624 | K8: 9.108669093 | L8: 10 | M8: 0 | N8: 0 | O8: 17.19874243 | P8: 27
B9: Leibniz-Gemeinschaft ("Blaue Liste") | C9: 1419 | D9: 2172 | E9: 808.9260467 | F9: 1321 | G9: 98.0015127 | H9: 127 | I9: 44.56418173 | J9: 75 | K9: 75.37324835 | L9: 125 | M9: 101.4741998 | N9: 148 | O9: 290.6608107 | P9: 376
B10: Institute der Max-Planck-Gesellschaft | C10: 2007 | D10: 2338 | E10: 1665.166796 | F10: 1933 | G10: 38.9819331 | H10: 41 | I10: 68.83213148 | J10: 74 | K10: . | L10: . | M10: . | N10: . | O10: 128.2446114 | P10: 174
B11: Öffentliche Einrichtungen für Wissenschaft
B12: Forschung und Entwicklung und Wissenschaftliche
B13: Bibliotheken und Museen (ohne Leibniz-Gemeinschaft) | C13: 1832 | D13: 2208 | E13: 557.5683449 | F13: 642.4922702 | G13: 233.2525596 | H13: 258.8405255 | I13: 152.2222123 | J13: 213.80847 | K13: 372.8981923 | L13: 523.2656917 | M13: 482.3586332 | N13: 530.675262 | O13: 33.70005767 | P13: 38.91778063
B14: Sonstige öffentlich geförderte Organisationen
B15: ohne Erwerbszweck für Wissenschaft,
B16: Forschung und Entwicklung | C16: 2657.5 | D16: 3256 | E16: 850.1629806 | F16: 1003.304372 | G16: 962.4069663 | H16: 1034.609365 | I16: 90.40517885 | J16: 159.7427567 | K16: 60.99302088 | L16: 74.47250511 | M16: 287.1971874 | N16: 426.5491654 | O16: 406.334666 | P16: 557.321836
B17: Insgesamt… | C17: =SUM(C7:C16) -> 14600 | D17: =SUM(D7:D16) -> 19595 | E17: 6472.190127 | F17: 8490.796642 | G17: 4671.402077 | H17: 6451.44989 | I17: 931.8827834 | J17: 1269.551227 | K17: 518.3731307 | L17: 732.7381968 | M17: 871.0300204 | N17: 1105.224427 | O17: 995.8164671 | P17: 1372.239617
A19: 2009
B20: Institute der Fraunhofer-Gesellschaft | C20: 4239.5 | D20: 6642 | E20: 1030.902061 | F20: 1623 | G20: 2721.952019 | H20: 4249 | I20: 131.405102 | J20: 208 | K20: 17.35519785 | L20: 28 | M20: 210.7365262 | N20: 325 | O20: 127.1490946 | P20: 208
B21: Helmholtz-Zentren | C21: 3983.5 | D21: 4828 | E21: 1834.585604 | F21: 2293 | G21: 1435.950496 | H21: 1642 | I21: 674.0739527 | J21: 842 | K21: 17.22451946 | L21: 18 | M21: 0 | N21: 0 | O21: 21.66542754 | P21: 33
B22: Leibniz-Gemeinschaft ("Blaue Liste") | C22: 1753.5 | D22: 2655 | E22: 955.4880427 | F22: 1531 | G22: 132.8078221 | H22: 163 | I22: 159.2614587 | J22: 260 | K22: 38.23474296 | L22: 59 | M22: 140.2103371 | N22: 207 | O22: 327.4975964 | P22: 434
B23: Institute der Max-Planck-Gesellschaft | C23: 2127 | D23: 2467 | E23: 1730.478275 | F23: 1998 | G23: 49.4796699 | H23: 51 | I23: 89.77163361 | J23: 99 | K23: 15.38794048 | L23: 16 | M23: 107.0515071 | N23: 115 | O23: 134.8309735 | P23: 187
B24: Öffentliche Einrichtungen für Wissenschaft
B25: Forschung und Entwicklung und Wissenschaftliche
B26: Bibliotheken und Museen (ohne Leibniz-Gemeinschaft) | C26: 2448.5 | D26: 2818 | E26: 798.5885775 | F26: 892.8660581 | G26: 360.4950401 | H26: 396.5155543 | I26: 287.9652929 | J26: 350.5668092 | K26: 483.1344484 | L26: 598.6712993 | M26: 487.0126312 | N26: 542.6383135 | O26: 31.30400985 | P26: 36.74196565
B27: Sonstige öffentlich geförderte Organisationen
B28: ohne Erwerbszweck für Wissenschaft,
B29: Forschung und Entwicklung | C29: 2571.5 | D29: 3166 | E29: 762.5118935 | F29: 941.9826909 | G29: 975.9824713 | H29: 1057.801657 | I29: 62.85273577 | J29: 103.889149 | K29: 58.08097694 | L29: 75.38388531 | M29: 297.4146692 | N29: 422.9610266 | O29: 414.6572532 | P29: 563.9815916
B30: Insgesamt… | C30: =SUM(C20:C29) -> 17123.5 | D30: =SUM(D20:D29) -> 22576 | E30: 7112.554454 | F30: 9279.848749 | G30: 5676.667518 | H30: 7559.317211 | I30: 1405.330176 | J30: 1863.455958 | K30: 629.4178261 | L30: 795.0551847 | M30: 1242.425671 | N30: 1612.59934 | O30: 1057.104355 | P30: 1462.723557
A32: 2010
B33: Institute der Fraunhofer-Gesellschaft | C33: 4692.5 | D33: 7158 | E33: 1410.125728 | F33: 2136 | G33: 2856.36894 | H33: 4385 | I33: 114.2895657 | J33: 173 | K33: 28.83241324 | L33: 49 | M33: 123.3255138 | N33: 154 | O33: 159.5578394 | P33: 261
B34: Helmholtz-Zentren | C34: 4455.5 | D34: 5448 | E34: 2029.973234 | F34: 2535 | G34: 1642.351252 | H34: 1871 | I34: 737.8028861 | J34: 983 | K34: 9.689001167 | L34: 10 | M34: 0 | N34: 0 | O34: 35.66099886 | P34: 48
B35: Leibniz-Gemeinschaft ("Blaue Liste") | C35: 2062 | D35: 3111 | E35: 1122.778984 | F35: 1778 | G35: 149.3355201 | H35: 190 | I35: 177.6770423 | J35: 291 | K35: 53.13583784 | L35: 77 | M35: 186.2572108 | N35: 290 | O35: 372.8154049 | P35: 485
B36: Institute der Max-Planck-Gesellschaft | C36: 2207 | D36: 2546 | E36: 1787.199818 | F36: 2051 | G36: 37.60020061 | H36: 41 | I36: 97.46030009 | J36: 103 | K36: 17.81792393 | L36: 19 | M36: 108.0458343 | N36: 118 | O36: 158.8759234 | P36: 214
B37: Öffentliche Einrichtungen für Wissenschaft
B38: Forschung und Entwicklung und Wissenschaftliche
B39: Bibliotheken und Museen (ohne Leibniz-Gemeinschaft) | C39: 2393 | D39: 2924 | E39: 799.372881 | F39: 946.7740876 | G39: 378.9254426 | H39: 425.8721678 | I39: 201.3765435 | J39: 264.6788365 | K39: 426.3588214 | L39: 606.5664315 | M39: 534.7325654 | N39: 616.840234 | O39: 52.23374606 | P39: 63.26824264
B40: Sonstige öffentlich geförderte Organisationen
B41: ohne Erwerbszweck für Wissenschaft,
B42: Forschung und Entwicklung | C42: 2711 | D42: 3345 | E42: 783.2993341 | F42: 945.3637222 | G42: 1049.855906 | H42: 1147.683506 | I42: 70.96226416 | J42: 117.0404039 | K42: 73.87769135 | L42: 93.61967609 | M42: 264.944127 | N42: 392.5159162 | O42: 468.0606778 | P42: 648.7767755
B43: Insgesamt… | C43: =SUM(C33:C42) -> 18521 | D43: =SUM(D33:D42) -> 24532 | E43: 7932.749979 | F43: 10392.13781 | G43: 6114.437261 | H43: 8060.555674 | I43: 1399.568602 | J43: 1931.71924 | K43: 609.7116889 | L43: 855.1861076 | M43: 1217.305251 | N43: 1571.35615 | O43: 1247.20459 | P43: 1720.045018
A45: 2011
B46: Institute der Fraunhofer-Gesellschaft | C46: 4971 | D46: 7561 | E46: 1595.42937 | F46: 2384 | G46: 2952.488251 | H46: 4528 | I46: 123.9732051 | J46: 189 | K46: 30.56248124 | L46: 51 | M46: 92.25753251 | N46: 126 | O46: 176.2891602 | P46: 282
B47: Helmholtz-Zentren | C47: 4732 | D47: 5891 | E47: 2141.436495 | F47: 2787 | G47: 1768.954773 | H47: 2014 | I47: 769.1526098 | J47: 1023 | K47: 12.98623591 | L47: 14 | M47: 0 | N47: 0 | O47: 39.46988631 | P47: 53
B48: Leibniz-Gemeinschaft ("Blaue Liste") | C48: 1901.5 | D48: 2927 | E48: 1000.832864 | F48: 1615 | G48: 138.7935964 | H48: 181 | I48: 130.6583826 | J48: 219 | K48: 57.80844886 | L48: 91 | M48: 189.8262163 | N48: 302 | O48: 383.5804915 | P48: 519
B49: Institute der Max-Planck-Gesellschaft | C49: 2102.5 | D49: 2394 | E49: 1698.441972 | F49: 1920 | G49: 42.18134197 | H49: 48 | I49: 95.72833059 | J49: 102 | K49: 9.820217701 | L49: 11 | M49: 113.5765611 | N49: 122 | O49: 142.7515762 | P49: 192
B50: Öffentliche Einrichtungen für Wissenschaft
B51: Forschung und Entwicklung und Wissenschaftliche
B52: Bibliotheken und Museen (ohne Leibniz-Gemeinschaft) | C52: 2463 | D52: 3013 | E52: 813.3446788 | F52: 963.0863642 | G52: 366.6656028 | H52: 420.5063659 | I52: 193.4094252 | J52: 261.3051592 | K52: 473.1549521 | L52: 670.5978258 | M52: 546.2796579 | N52: 617.7092207 | O52: 70.14568318 | P52: 79.79506412
B53: Sonstige öffentlich geförderte Organisationen
B54: ohne Erwerbszweck für Wissenschaft,
B55: Forschung und Entwicklung | C55: 3090 | D55: 3861 | E55: 1051.407425 | F55: 1275.178423 | G55: 1051.688744 | H55: 1168.749409 | I55: 52.49344115 | J55: 89.48213421 | K55: 74.71049231 | L55: 103.2017179 | M55: 340.2626382 | N55: 507.5104466 | O55: 519.4372593 | P55: 716.8778695
B56: Insgesamt… | C56: =SUM(C46:C55) -> 19260 | D56: =SUM(D46:D55) -> 25647 | E56: 8300.892805 | F56: 10944.26479 | G56: 6320.77231 | H56: 8360.255775 | I56: 1365.415394 | J56: 1883.787293 | K56: 659.0428282 | L56: 940.7995437 | M56: 1282.202606 | N56: 1675.219667 | O56: 1331.674057 | P56: 1842.672934
A58: 2012
B59: Institute der Fraunhofer-Gesellschaft | C59: 4271 | D59: 5974 | E59: 1354.109594 | F59: 1872 | G59: 2593.489004 | H59: 3639 | I59: 98.80355832 | J59: 143 | K59: 24.14446078 | L59: 38 | M59: 59.09173337 | N59: 72 | O59: 141.36165 | P59: 210
B60: Helmholtz-Zentren | C60: 4872.5 | D60: 6234 | E60: 2435.549827 | F60: 3262 | G60: 1513.98116 | H60: 1736 | I60: 871.6326204 | J60: 1167 | K60: 14.18918388 | L60: 15 | M60: 0 | N60: 0 | O60: 37.14720812 | P60: 54
B61: Leibniz-Gemeinschaft ("Blaue Liste") | C61: 1995.999585 | D61: 3083 | E61: 1023.01319 | F61: 1606 | G61: 115.0753811 | H61: 145 | I61: 167.7363725 | J61: 285 | K61: 85.40711508 | L61: 136 | M61: 230.3218453 | N61: 388 | O61: 374.4456808 | P61: 522
B62: Institute der Max-Planck-Gesellschaft | C62: 2346.5 | D62: 2801 | E62: 1893.68006 | F62: 2249 | G62: 45.92967577 | H62: 52 | I62: 101.7986172 | J62: 113 | K62: 10.69198505 | L62: 12 | M62: 118.867972 | N62: 145 | O62: 175.5316903 | P62: 231
B63: Öffentliche Einrichtungen für Wissenschaft
B64: Forschung und Entwicklung und Wissenschaftliche
B65: Bibliotheken und Museen (ohne Leibniz-Gemeinschaft) | C65: 2425.5 | D65: 3027 | E65: 745.9085151 | F65: 890.2111229 | G65: 376.3725519 | H65: 438.2183101 | I65: 201.908133 | J65: 281.1369342 | K65: 491.4363039 | L65: 711.1763515 | M65: 540.9802044 | N65: 626.2401147 | O65: 68.89429179 | P65: 80.01716653
B66: Sonstige öffentlich geförderte Organisationen
B67: ohne Erwerbszweck für Wissenschaft,
B68: Forschung und Entwicklung | C68: 3119.995475 | D68: 3915.993213 | E68: 1091.869377 | F68: 1303.534418 | G68: 1023.91502 | H68: 1146.286888 | I68: 81.25783406 | J68: 124.8987118 | K68: 75.49004217 | L68: 104.1477462 | M68: 313.7846178 | N68: 475.5072651 | O68: 533.6785843 | P68: 761.6181835
B69: Insgesamt… | C69: =SUM(C59:C68) -> 19031.49506 | D69: =SUM(D59:D68) -> 25034.99321 | E69: 8544.130563 | F69: 11182.74554 | G69: 5668.762793 | H69: 7156.505199 | I69: 1523.137135 | J69: 2114.035646 | K69: 701.3590909 | L69: 1016.324098 | M69: 1263.046373 | N69: 1706.74738 | O69: 1331.059105 | P69: 1858.63535
A71: 2013
B72: Institute der Fraunhofer-Gesellschaft | C72: 3885 | D72: 4855 | E72: 1296.438553 | F72: 1624 | G72: 2269.315067 | H72: 2810 | I72: 129.4644991 | J72: 175 | K72: 11.78086759 | L72: 18 | M72: 0 | N72: 0 | O72: 178.0010139 | P72: 229
B73: Helmholtz-Zentren | C73: 5362.5 | D73: 6887 | E73: 2714.997348 | F73: 3618 | G73: 1634.277759 | H73: 1897 | I73: 956.3141769 | J73: 1296 | K73: . | L73: . | M73: . | N73: . | O73: 35.29378628 | P73: 52
B74: Leibniz-Gemeinschaft ("Blaue Liste") | C74: 2133 | D74: 3304 | E74: 1095.539522 | F74: 1747 | G74: 132.0664205 | H74: 167 | I74: 200.0751472 | J74: 328 | K74: 87.38907236 | L74: 125 | M74: 246.8172062 | N74: 402 | O74: 371.1126315 | P74: 534
B75: Institute der Max-Planck-Gesellschaft | C75: 2262.999982 | D75: 2715 | E75: 1832.59467 | F75: 2189 | G75: 39.46642414 | H75: 47 | I75: 104.9905874 | J75: 120 | K75: . | L75: . | M75: . | N75: . | O75: 169.5510187 | P75: 213
B76: Öffentliche Einrichtungen für Wissenschaft
B77: Forschung und Entwicklung und Wissenschaftliche
B78: Bibliotheken und Museen (ohne Leibniz-Gemeinschaft) | C78: 2504 | D78: 3114 | E78: 741.8367415 | F78: 885.3679938 | G78: 396.8907743 | H78: 463.8000482 | I78: 234.153271 | J78: 322.1239643 | K78: 489.9117597 | L78: 690.6753817 | M78: 582.0530981 | N78: 681.7925682 | O78: 59.15435541 | P78: 70.24004388
B79: Sonstige öffentlich geförderte Organisationen
B80: ohne Erwerbszweck für Wissenschaft,
B81: Forschung und Entwicklung | C81: 3095.5 | D81: 3854 | E81: 1001.829439 | F81: 1175.049778 | G81: 1054.831133 | H81: 1170.808842 | I81: 63.17921321 | J81: 89.59831534 | K81: 81.990904 | L81: 106.4097398 | M81: 324.030502 | N81: 493.9486438 | O81: 569.6388088 | P81: 818.1846807
B82: Insgesamt… | C82: =SUM(C72:C81) -> 19242.99998 | D82: =SUM(D72:D81) -> 24729 | E82: 8683.236273 | F82: 11238.41777 | G82: 5526.847577 | H82: 6555.60889 | I82: 1688.176895 | J82: 2330.72228 | K82: 671.0726037 | L82: 940.0851215 | M82: 1152.900806 | N82: 1577.741212 | O82: 1382.751614 | P82: 1916.424725
A85: Statistisches Bundesamt (Destatis), H204 Forschung und Entwicklung

Sheet 1.2
A1: Wissenschaftler der wissenschaftlichen Einrichtungen des öffentlichen Sektors
A2: nach Altersklasse, ausgewählte Einrichtungsarten und Wissenschaftszweigen
A4: mit Promotion bis 44 Jahre | C4: Insgesamt | E4: Naturwissenschaften | G4: Ingenieurwissenschaften | I4: Humanmedizin | K4: Agrarwissenschaften | M4: Geisteswissenschaften | O4: Sozialwissenschaften
C5: VZÄ | D5: HC | E5: VZÄ | F5: HC | G5: VZÄ | H5: HC | I5: VZÄ | J5: HC | K5: VZÄ | L5: HC | M5: VZÄ | N5: HC | O5: VZÄ | P5: HC
A7: 2008
B8: Institute der Fraunhofer-Gesellschaft | C8: 1116 | D8: 1198 | E8: 309.2786041 | F8: 338 | G8: 719.2299608 | H8: 764 | I8: 35.25268316 | J8: 39 | K8: 27.65547066 | L8: 29 | M8: 0 | N8: 0 | O8: 24.18572849 | P8: 27
B9: Helmholtz-Zentren | C9: 2658 | D9: 2858 | E9: 1358.919125 | F9: 1490 | G9: 892.4392545 | H9: 935 | I9: 376.8406572 | J9: 401 | K9: 7.11409022 | L9: 8 | M9: 0 | N9: 0 | O9: 22.68687357 | P9: 24
B10: Leibniz-Gemeinschaft ("Blaue Liste") | C10: 1142.5 | D10: 1259 | E10: 763.1713861 | F10: 825 | G10: 21.78424532 | H10: 24 | I10: 60.076456 | J10: 70 | K10: 63.34291358 | L10: 72 | M10: 103.9291368 | N10: 118 | O10: 130.1958623 | P10: 149
B11: Institute der Max-Planck-Gesellschaft | C11: 2173 | D11: 2272 | E11: 1815.359109 | F11: 1887 | G11: 41.35554273 | H11: 42 | I11: 84.23631786 | J11: 88 | K11: 2.417171284 | L11: 3 | M11: 101.1903297 | N11: 110 | O11: 128.4415298 | P11: 142
B12: Öffentliche Einrichtungen für Wissenschaft
B13: Forschung und Entwicklung und Wissenschaftliche
B14: Bibliotheken und Museen (ohne Leibniz-Gemeinschaft) | C14: 1459.5 | D14: 1595 | E14: 415.3628923 | F14: 439.943312 | G14: 162.5931047 | H14: 176.1121631 | I14: 253.7505297 | J14: 281.7525789 | K14: 227.2427639 | L14: 251.2897356 | M14: 387.5678664 | N14: 430.8947484 | O14: 12.98284305 | P14: 15.00746199
B15: Sonstige öffentlich geförderte Organisationen
B16: ohne Erwerbszweck für Wissenschaft,
B17: Forschung und Entwicklung | C17: 1487 | D17: 1636 | E17: 456.6342829 | F17: 489.7438045 | G17: 334.4483474 | H17: 362.1925264 | I17: 113.9263108 | J17: 123.0912998 | K17: 39.59792131 | L17: 45.78915604 | M17: 323.2375535 | N17: 359.1986105 | O17: 219.155584 | P17: 255.9846028
B18: Insgesamt… | C18: =SUM(C8:C17) -> 10036 | D18: =SUM(D8:D17) -> 10818 | E18: 5118.725399 | F18: 5469.687116 | G18: 2171.850456 | H18: 2303.30469 | I18: 924.0829547 | J18: 1002.843879 | K18: 367.370331 | L18: 409.0788917 | M18: 915.9248863 | N18: 1018.093359 | O18: 537.6484212 | P18: 612.9920648
A20: 2009
B21: Institute der Fraunhofer-Gesellschaft | C21: 1331.5 | D21: 1420 | E21: 358.6274313 | F21: 387 | G21: 830.3321558 | H21: 878 | I21: 79.95376944 | J21: 88 | K21: . | L21: . | M21: 17.68045878 | N21: 19 | O21: . | P21: .
B22: Helmholtz-Zentren | C22: 2108.5 | D22: 2277 | E22: 1232.062174 | F22: 1356 | G22: 442.0628102 | H22: 463 | I22: 410.6458535 | J22: 433 | K22: . | L22: . | M22: 0 | N22: 0 | O22: . | P22: .
B23: Leibniz-Gemeinschaft ("Blaue Liste") | C23: 1213.5 | D23: 1343 | E23: 735.1265677 | F23: 805 | G23: 45.48364273 | H23: 52 | I23: 120.7665554 | J23: 133 | K23: 42.69172516 | L23: 48 | M23: 128.1774496 | N23: 144 | O23: 141.2540594 | P23: 161
B24: Institute der Max-Planck-Gesellschaft | C24: 2269 | D24: 2365 | E24: 1868.989273 | F24: 1938 | G24: 40.11059579 | H24: 41 | I24: 102.3923852 | J24: 107 | K24: 10.11569778 | L24: 11 | M24: 117.4421031 | N24: 126 | O24: 129.9499449 | P24: 142
B25: Öffentliche Einrichtungen für Wissenschaft
B26: Forschung und Entwicklung und Wissenschaftliche
B27: Bibliotheken und Museen (ohne Leibniz-Gemeinschaft) | C27: 1375 | D27: 1523 | E27: 479.5805421 | F27: 528.2398336 | G27: 153.896848 | H27: 167.3742283 | I27: 248.3258524 | J27: 284.8906664 | K27: 113.3248178 | L27: 123.4665239 | M27: 368.0735145 | N27: 406.0372206 | O27: 11.79842532 | P27: 12.99152721
B28: Sonstige öffentlich geförderte Organisationen
B29: ohne Erwerbszweck für Wissenschaft,
B30: Forschung und Entwicklung | C30: 1327.5 | D30: 1461 | E30: 416.7832935 | F30: 454.9566149 | G30: 292.3592263 | H30: 314.8756801 | I30: 69.3326607 | J30: 75.03780741 | K30: 47.89650819 | L30: 53.90015519 | M30: 305.6360234 | N30: 339.8852822 | O30: 195.4922879 | P30: 222.3444603
B31: Insgesamt… | C31: =SUM(C21:C30) -> 9625 | D31: =SUM(D21:D30) -> 10389 | E31: 5091.169281 | F31: 5469.196448 | G31: 1804.245279 | H31: 1916.249908 | I31: 1031.417077 | J31: 1120.928474 | K31: 214.0287489 | L31: 236.3666791 | M31: 937.0095494 | N31: 1034.922503 | O31: 478.4947175 | P31: 538.3359875
A33: 2010
B34: Institute der Fraunhofer-Gesellschaft | C34: 1362.5 | D34: 1448 | E34: 432.2072724 | F34: 461 | G34: 772.9669063 | H34: 815 | I34: 70.36752379 | J34: 78 | K34: 18.3726294 | L34: 20 | M34: 33.88348807 | N34: 36 | O34: 34.70218001 | P34: 38
B35: Helmholtz-Zentren | C35: 2497.5 | D35: 2711 | E35: 1467.920604 | F35: 1615 | G35: 439.4510466 | H35: 463 | I35: 553.9686581 | J35: 594 | K35: 6.861532189 | L35: 7 | M35: 0 | N35: 0 | O35: 29.28179325 | P35: 32
B36: Leibniz-Gemeinschaft ("Blaue Liste") | C36: 1278.5 | D36: 1418 | E36: 776.6834075 | F36: 843 | G36: 31.58708265 | H36: 37 | I36: 124.0625895 | J36: 137 | K36: 40.98219966 | L36: 49 | M36: 122.470192 | N36: 138 | O36: 182.7145287 | P36: 215
B37: Institute der Max-Planck-Gesellschaft | C37: 2459 | D37: 2568 | E37: 2043.39838 | F37: 2125 | G37: 26.78162327 | H37: 27 | I37: 107.4832391 | J37: 111 | K37: 12.36979108 | L37: 13 | M37: 131.81065 | N37: 141 | O37: 137.1563162 | P37: 151
B38: Öffentliche Einrichtungen für Wissenschaft
B39: Forschung und Entwicklung und Wissenschaftliche
B40: Bibliotheken und Museen (ohne Leibniz-Gemeinschaft) | C40: 1533 | D40: 1698 | E40: 393.4329822 | F40: 426.8396457 | G40: 194.7499167 | H40: 209.5450209 | I40: 335.0665098 | J40: 382.8150694 | K40: 233.8387613 | L40: 260.0649072 | M40: 335.466947 | N40: 373.4134577 | O40: 40.44488295 | P40: 45.32189903
B41: Sonstige öffentlich geförderte Organisationen
B42: ohne Erwerbszweck für Wissenschaft,
B43: Forschung und Entwicklung | C43: 1248 | D43: 1387 | E43: 374.5220757 | F43: 404.7734063 | G43: 263.1236833 | H43: 284.1862724 | I43: 69.66375027 | J43: 77.93779359 | K43: 36.50804767 | L43: 42.67678186 | M43: 296.6163661 | N43: 333.5334721 | O43: 207.566077 | P43: 243.8922738
B44: Insgesamt… | C44: =SUM(C34:C43) -> 10378.5 | D44: =SUM(D34:D43) -> 11230 | E44: 5488.164722 | F44: 5875.613052 | G44: 1728.660259 | H44: 1835.731293 | I44: 1260.612271 | J44: 1380.752863 | K44: 348.9329613 | L44: 391.7416891 | M44: 920.2476431 | N44: 1021.94693 | O44: 631.8657783 | P44: 725.2141728
A46: 2011
B47: Institute der Fraunhofer-Gesellschaft | C47: 1330 | D47: 1415 | E47: 460.168398 | F47: 491 | G47: 732.4301596 | H47: 774 | I47: 69.09620288 | J47: 75 | K47: 13.35113833 | L47: 14 | M47: 24.50650024 | N47: 28 | O47: 30.44760097 | P47: 33
B48: Helmholtz-Zentren | C48: 3385.5 | D48: 3611 | E48: 1805.647169 | F48: 1924 | G48: 907.3850073 | H48: 968 | I48: 633.2030676 | J48: 676 | K48: 9.290853531 | L48: 10 | M48: 0 | N48: 0 | O48: 29.97390237 | P48: 32
B49: Leibniz-Gemeinschaft ("Blaue Liste") | C49: 1592 | D49: 1765 | E49: 920.7967201 | F49: 990 | G49: 59.6719953 | H49: 68 | I49: 172.07432 | J49: 193 | K49: 42.13350384 | L49: 52 | M49: 146.3088082 | N49: 168 | O49: 251.0146525 | P49: 294
B50: Institute der Max-Planck-Gesellschaft | C50: 2518 | D50: 2635 | E50: 2081.623371 | F50: 2168 | G50: 32.97522881 | H50: 35 | I50: 110.7253837 | J50: 116 | K50: 7.874155816 | L50: 8 | M50: 135.5469029 | N50: 145 | O50: 149.2549575 | P50: 164
B51: Öffentliche Einrichtungen für Wissenschaft
B52: Forschung und Entwicklung und Wissenschaftliche
B53: Bibliotheken und Museen (ohne Leibniz-Gemeinschaft) | C53: 1625.5 | D53: 1807 | E53: 377.1147698 | F53: 406.8721127 | G53: 189.4531671 | H53: 204.201978 | I53: 364.4229697 | J53: 417.7166866 | K53: 245.4845259 | L53: 274.2779194 | M53: 395.8978629 | N53: 443.8356527 | O53: 53.1267045 | P53: 60.0956507
B54: Sonstige öffentlich geförderte Organisationen
B55: ohne Erwerbszweck für Wissenschaft,
B56: Forschung und Entwicklung | C56: 1339 | D56: 1486 | E56: 452.756039 | F56: 485.6141589 | G56: 250.3224859 | H56: 270.9124532 | I56: 63.51068697 | J56: 71.12664407 | K56: 39.12436346 | L56: 46.0305095 | M56: 309.3091276 | N56: 353.0397524 | O56: 223.9772971 | P56: 259.276482
B57: Insgesamt… | C57: =SUM(C47:C56) -> 11790 | D57: =SUM(D47:D56) -> 12719 | E57: 6098.106467 | F57: 6465.486272 | G57: 2172.238044 | H57: 2320.114431 | I57: 1413.032631 | J57: 1548.843331 | K57: 357.2585409 | L57: 404.3084289 | M57: 1011.569202 | N57: 1137.875405 | O57: 737.795115 | P57: 842.3721327
A59: 2012
B60: Institute der Fraunhofer-Gesellschaft | C60: 1499.5 | D60: 1616 | E60: 525.6694135 | F60: 566 | G60: 818.6970768 | H60: 876 | I60: 86.40600047 | J60: 96 | K60: 19.2274344 | L60: 21 | M60: 13.40232358 | N60: 17 | O60: 36.09775127 | P60: 40
B61: Helmholtz-Zentren | C61: 3808.5 | D61: 4071 | E61: 2078.080015 | F61: 2215 | G61: 921.0169067 | H61: 986 | I61: 771.8526276 | J61: 829 | K61: 9.331209108 | L61: 10 | M61: 0 | N61: 0 | O61: 28.21924195 | P61: 31
B62: Leibniz-Gemeinschaft ("Blaue Liste") | C62: 1686.999859 | D62: 1885 | E62: 881.6731752 | F62: 958 | G62: 74.15704304 | H62: 83 | I62: 210.5573189 | J62: 241 | K62: 56.6871255 | L62: 72 | M62: 185.9113511 | N62: 213 | O62: 278.0138448 | P62: 319
B63: Institute der Max-Planck-Gesellschaft | C63: 2463 | D63: 2588 | E63: 2024.112344 | F63: 2114 | G63: 29.27493177 | H63: 32 | I63: 105.7712562 | J63: 113 | K63: 8.795699233 | L63: 10 | M63: 133.0699349 | N63: 143 | O63: 161.9758338 | P63: 176
B64: Öffentliche Einrichtungen für Wissenschaft
B65: Forschung und Entwicklung und Wissenschaftliche
B66: Bibliotheken und Museen (ohne Leibniz-Gemeinschaft) | C66: 1505 | D66: 1698 | E66: 384.1120159 | F66: 420.8234786 | G66: 182.6000761 | H66: 200.9153851 | I66: 333.998451 | J66: 395.5720601 | K66: 239.6126037 | L66: 266.9387597 | M66: 314.0546469 | N66: 355.2511302 | O66: 50.62220634 | P66: 58.49918619
B67: Sonstige öffentlich geförderte Organisationen
B68: ohne Erwerbszweck für Wissenschaft,
B69: Forschung und Entwicklung | C69: 1378 | D69: 1550 | E69: 460.6732699 | F69: 502.4638058 | G69: 262.9793133 | H69: 285.8211725 | I69: 85.2839524 | J69: 98.98001533 | K69: 38.34110275 | L69: 45.20677408 | M69: 297.4545812 | N69: 343.572302 | O69: 233.2677804 | P69: 273.9559303
B70: Insgesamt… | C70: =SUM(C60:C69) -> 12340.99986 | D70: =SUM(D60:D69) -> 13408 | E70: 6354.320233 | F70: 6776.287284 | G70: 2288.725348 | H70: 2463.736558 | I70: 1593.869607 | J70: 1773.552075 | K70: 371.9951747 | L70: 425.1455338 | M70: 943.8928376 | N70: 1071.823432 | O70: 788.1966586 | P70: 898.4551165
A72: 2013
B73: Institute der Fraunhofer-Gesellschaft | C73: 1469.5 | D73: 1587 | E73: 534.2183563 | F73: 575 | G73: 781.1987763 | H73: 838 | I73: 101.4150156 | J73: 114 | K73: 12.06788755 | L73: 14 | M73: 0 | N73: 0 | O73: 40.59996419 | P73: 46
B74: Helmholtz-Zentren | C74: 4228 | D74: 4525 | E74: 2401.498221 | F74: 2552 | G74: 1019.322427 | H74: 1099 | I74: 764.8456159 | J74: 828 | K74: . | L74: . | M74: . | N74: . | O74: 25.61047969 | P74: 28
B75: Leibniz-Gemeinschaft ("Blaue Liste") | C75: 1754.5 | D75: 1974 | E75: 932.1468931 | F75: 1017 | G75: 95.41126653 | H75: 105 | I75: 191.0093934 | J75: 224 | K75: 44.97373903 | L75: 55 | M75: 168.5456065 | N75: 199 | O75: 322.4131015 | P75: 374
B76: Institute der Max-Planck-Gesellschaft | C76: 2470.000014 | D76: 2604 | E76: 2073.30711 | F76: 2175 | G76: 30.79434911 | H76: 32 | I76: 108.8046057 | J76: 115 | K76: . | L76: . | M76: . | N76: . | O76: 129.5795589 | P76: 145
B77: Öffentliche Einrichtungen für Wissenschaft
B78: Forschung und Entwicklung und Wissenschaftliche
B79: Bibliotheken und Museen (ohne Leibniz-Gemeinschaft) | C79: 1514.5 | D79: 1723 | E79: 400.9085178 | F79: 443.3654704 | G79: 195.9106895 | H79: 218.0445876 | I79: 327.1366765 | J79: 394.5649823 | K79: 244.1293506 | L79: 274.3483265 | M79: 284.3916169 | N79: 323.285639 | O79: 62.02314886 | P79: 69.39099411
B80: Sonstige öffentlich geförderte Organisationen
B81: ohne Erwerbszweck für Wissenschaft,
B82: Forschung und Entwicklung | C82: 1297.5 | D82: 1462 | E82: 399.9657403 | F82: 431.0695 | G82: 260.198774 | H82: 282.3570481 | I82: 62.3608186 | J82: 74.02139672 | K82: 32.40181448 | L82: 38.36884384 | M82: 300.2107696 | N82: 346.404188 | O82: 242.3620831 | P82: 289.7790233
B83: Insgesamt… | C83: =SUM(C73:C82) -> 12734.00001 | D83: =SUM(D73:D82) -> 13875 | E83: 6742.044839 | F83: 7193.43497 | G83: 2382.836283 | H83: 2574.401636 | I83: 1555.572126 | J83: 1749.586379 | K83: 333.5727916 | L83: 381.7171704 | M83: 753.1479929 | N83: 868.689827 | O83: 822.5883362 | P83: 952.1700174
A86: Statistisches Bundesamt (Destatis), H204 Forschung und Entwicklung

Sheet 1.3
A1: Wissenschaftlicher Nachwuchs der wissenschaftlichen Einrichtungen des öffentlichen Sektors
A2: nach ausgewählten Einrichtungsarten und Wissenschaftszweigen bis 44
A4: (Werte für "ohne Promotion bis 34" addiert mit Werten für "mit Promotion bis 44")
A6: Win bis 44 Jahre, mit und ohne Promotion | C6: Insgesamt | E6: Naturwissenschaften | G6: Ingenieurwissenschaften | I6: Humanmedizin | K6: Agrarwissenschaften | M6: Geisteswissenschaften | O6: Sozialwissenschaften
C7: VZÄ | D7: HC | E7: VZÄ | F7: HC | G7: VZÄ | H7: HC | I7: VZÄ | J7: HC | K7: VZÄ | L7: HC | M7: VZÄ | N7: HC | O7: VZÄ | P7: HC
A8: 2008
B9: Institute der Fraunhofer-Gesellschaft | C9: 4419 | D9: 6698 | E9: 1238.307297 | F9: 1842 | G9: 2866.87393 | H9: 4381 | I9: 108.3715753 | J9: 162 | K9: 27.65547066 | L9: 29 | M9: 0 | N9: 0 | O9: 143.8633074 | P9: 226
B10: Helmholtz-Zentren | C10: 6039.5 | D10: 6979 | E10: 3020.25639 | F10: 3577 | G10: 2083.554391 | H10: 2308 | I10: 879.580844 | J10: 1025 | K10: 16.22275931 | L10: 18 | M10: 0 | N10: 0 | O10: 39.88561599 | P10: 51
B11: Leibniz-Gemeinschaft ("Blaue Liste") | C11: 2561.5 | D11: 3431 | E11: 1572.097433 | F11: 2146 | G11: 119.785758 | H11: 151 | I11: 104.6406377 | J11: 145 | K11: 138.7161619 | L11: 197 | M11: 205.4033366 | N11: 266 | O11: 420.856673 | P11: 525
B12: Institute der Max-Planck-Gesellschaft | C12: 4180 | D12: 4610 | E12: 3480.525905 | F12: 3820 | G12: 80.33747584 | H12: 83 | I12: 153.0684493 | J12: 162 | K12: 2.417171284 | L12: 3 | M12: 101.1903297 | N12: 110 | O12: 256.6861411 | P12: 316
B13: Öffentliche Einrichtungen für Wissenschaft | C13: 0 | D13: 0 | E13: 0 | F13: 0 | G13: 0 | H13: 0 | I13: 0 | J13: 0 | K13: 0 | L13: 0 | M13: 0 | N13: 0 | O13: 0 | P13: 0
B14: Forschung und Entwicklung und Wissenschaftliche | C14: 0 | D14: 0 | E14: 0 | F14: 0 | G14: 0 | H14: 0 | I14: 0 | J14: 0 | K14: 0 | L14: 0 | M14: 0 | N14: 0 | O14: 0 | P14: 0
B15: Bibliotheken und Museen (ohne Leibniz-Gemeinschaft) | C15: 3291.5 | D15: 3803 | E15: 972.9312372 | F15: 1082.435582 | G15: 395.8456643 | H15: 434.9526886 | I15: 405.972742 | J15: 495.5610489 | K15: 600.1409562 | L15: 774.5554273 | M15: 869.9264996 | N15: 961.5700105 | O15: 46.68290073 | P15: 53.92524262
B16: Sonstige öffentlich geförderte Organisationen | C16: 0 | D16: 0 | E16: 0 | F16: 0 | G16: 0 | H16: 0 | I16: 0 | J16: 0 | K16: 0 | L16: 0 | M16: 0 | N16: 0 | O16: 0 | P16: 0
B17: ohne Erwerbszweck für Wissenschaft, | C17: 0 | D17: 0 | E17: 0 | F17: 0 | G17: 0 | H17: 0 | I17: 0 | J17: 0 | K17: 0 | L17: 0 | M17: 0 | N17: 0 | O17: 0 | P17: 0
B18: Forschung und Entwicklung | C18: 4144.5 | D18: 4892 | E18: 1306.797264 | F18: 1493.048177 | G18: 1296.855314 | H18: 1396.801891 | I18: 204.3314897 | J18: 282.8340566 | K18: 100.5909422 | L18: 120.2616611 | M18: 610.4347409 | N18: 785.7477759 | O18: 625.49025 | P18: 813.3064388
B19: Insgesamt… | C19: =SUM(C9:C18) -> 24636 | D19: =SUM(D9:D18) -> 30413 | E19: 11590.91553 | F19: 13960.48376 | G19: 6843.252533 | H19: 8754.75458 | I19: 1855.965738 | J19: 2272.395105 | K19: 885.7434616 | L19: 1141.817088 | M19: 1786.954907 | N19: 2123.317786 | O19: 1533.464888 | P19: 1985.231681
A21: 2009
B22: Institute der Fraunhofer-Gesellschaft | C22: 5571 | D22: 8062 | E22: 1389.529492 | F22: 2010 | G22: 3552.284175 | H22: 5127 | I22: 211.3588714 | J22: 296 | K22: 17.35519785 | L22: 28 | M22: 228.416985 | N22: 344 | O22: 127.1490946 | P22: 208
B23: Helmholtz-Zentren | C23: 6092 | D23: 7105 | E23: 3066.647778 | F23: 3649 | G23: 1878.013306 | H23: 2105 | I23: 1084.719806 | J23: 1275 | K23: 17.22451946 | L23: 18 | M23: 0 | N23: 0 | O23: 21.66542754 | P23: 33
B24: Leibniz-Gemeinschaft ("Blaue Liste") | C24: 2967 | D24: 3998 | E24: 1690.61461 | F24: 2336 | G24: 178.2914648 | H24: 215 | I24: 280.0280141 | J24: 393 | K24: 80.92646812 | L24: 107 | M24: 268.3877867 | N24: 351 | O24: 468.7516558 | P24: 595
B25: Institute der Max-Planck-Gesellschaft | C25: 4396 | D25: 4832 | E25: 3599.467549 | F25: 3936 | G25: 89.59026569 | H25: 92 | I25: 192.1640188 | J25: 206 | K25: 25.50363826 | L25: 27 | M25: 224.4936102 | N25: 241 | O25: 264.7809184 | P25: 329
B26: Öffentliche Einrichtungen für Wissenschaft | C26: 0 | D26: 0 | E26: 0 | F26: 0 | G26: 0 | H26: 0 | I26: 0 | J26: 0 | K26: 0 | L26: 0 | M26: 0 | N26: 0 | O26: 0 | P26: 0
B27: Forschung und Entwicklung und Wissenschaftliche | C27: 0 | D27: 0 | E27: 0 | F27: 0 | G27: 0 | H27: 0 | I27: 0 | J27: 0 | K27: 0 | L27: 0 | M27: 0 | N27: 0 | O27: 0 | P27: 0
B28: Bibliotheken und Museen (ohne Leibniz-Gemeinschaft) | C28: 3823.5 | D28: 4341 | E28: 1278.16912 | F28: 1421.105892 | G28: 514.3918881 | H28: 563.8897826 | I28: 536.2911453 | J28: 635.4574756 | K28: 596.4592661 | L28: 722.1378232 | M28: 855.0861458 | N28: 948.675534 | O28: 43.10243517 | P28: 49.73349287
B29: Sonstige öffentlich geförderte Organisationen | C29: 0 | D29: 0 | E29: 0 | F29: 0 | G29: 0 | H29: 0 | I29: 0 | J29: 0 | K29: 0 | L29: 0 | M29: 0 | N29: 0 | O29: 0 | P29: 0
B30: ohne Erwerbszweck für Wissenschaft, | C30: 0 | D30: 0 | E30: 0 | F30: 0 | G30: 0 | H30: 0 | I30: 0 | J30: 0 | K30: 0 | L30: 0 | M30: 0 | N30: 0 | O30: 0 | P30: 0
B31: Forschung und Entwicklung | C31: 3899 | D31: 4627 | E31: 1179.295187 | F31: 1396.939306 | G31: 1268.341698 | H31: 1372.677337 | I31: 132.1853965 | J31: 178.9269564 | K31: 105.9774851 | L31: 129.2840405 | M31: 603.0506927 | N31: 762.8463088 | O31: 610.1495411 | P31: 786.3260518
B32: Insgesamt… | C32: =SUM(C22:C31) -> 26748.5 | D32: =SUM(D22:D31) -> 32965 | E32: 12203.72374 | F32: 14749.0452 | G32: 7480.912797 | H32: 9475.567119 | I32: 2436.747252 | J32: 2984.384432 | K32: 843.446575 | L32: 1031.421864 | M32: 2179.43522 | N32: 2647.521843 | O32: 1535.599073 | P32: 2001.059545
A34: 2010
B35: Institute der Fraunhofer-Gesellschaft | C35: 6055 | D35: 8606 | E35: 1842.333 | F35: 2597 | G35: 3629.335847 | H35: 5200 | I35: 184.6570895 | J35: 251 | K35: 47.20504264 | L35: 69 | M35: 157.2090019 | N35: 190 | O35: 194.2600194 | P35: 299
B36: Helmholtz-Zentren | C36: 6953 | D36: 8159 | E36: 3497.893838 | F36: 4150 | G36: 2081.802298 | H36: 2334 | I36: 1291.771544 | J36: 1577 | K36: 16.55053336 | L36: 17 | M36: 0 | N36: 0 | O36: 64.94279212 | P36: 80
B37: Leibniz-Gemeinschaft ("Blaue Liste") | C37: 3340.5 | D37: 4529 | E37: 1899.462392 | F37: 2621 | G37: 180.9226028 | H37: 227 | I37: 301.7396318 | J37: 428 | K37: 94.1180375 | L37: 126 | M37: 308.7274027 | N37: 428 | O37: 555.5299336 | P37: 700
B38: Institute der Max-Planck-Gesellschaft | C38: 4666 | D38: 5114 | E38: 3830.598198 | F38: 4176 | G38: 64.38182387 | H38: 68 | I38: 204.9435392 | J38: 214 | K38: 30.187715 | L38: 32 | M38: 239.8564843 | N38: 259 | O38: 296.0322396 | P38: 365
B39: Öffentliche Einrichtungen für Wissenschaft | C39: 0 | D39: 0 | E39: 0 | F39: 0 | G39: 0 | H39: 0 | I39: 0 | J39: 0 | K39: 0 | L39: 0 | M39: 0 | N39: 0 | O39: 0 | P39: 0
B40: Forschung und Entwicklung und Wissenschaftliche | C40: 0 | D40: 0 | E40: 0 | F40: 0 | G40: 0 | H40: 0 | I40: 0 | J40: 0 | K40: 0 | L40: 0 | M40: 0 | N40: 0 | O40: 0 | P40: 0
B41: Bibliotheken und Museen (ohne Leibniz-Gemeinschaft) | C41: 3926 | D41: 4622 | E41: 1192.805863 | F41: 1373.613733 | G41: 573.6753593 | H41: 635.4171887 | I41: 536.4430534 | J41: 647.4939059 | K41: 660.1975827 | L41: 866.6313387 | M41: 870.1995124 | N41: 990.2536917 | O41: 92.67862902 | P41: 108.5901417
B42: Sonstige öffentlich geförderte Organisationen | C42: 0 | D42: 0 | E42: 0 | F42: 0 | G42: 0 | H42: 0 | I42: 0 | J42: 0 | K42: 0 | L42: 0 | M42: 0 | N42: 0 | O42: 0 | P42: 0
B43: ohne Erwerbszweck für Wissenschaft, | C43: 0 | D43: 0 | E43: 0 | F43: 0 | G43: 0 | H43: 0 | I43: 0 | J43: 0 | K43: 0 | L43: 0 | M43: 0 | N43: 0 | O43: 0 | P43: 0
B44: Forschung und Entwicklung | C44: 3959 | D44: 4732 | E44: 1157.82141 | F44: 1350.137129 | G44: 1312.979589 | H44: 1431.869778 | I44: 140.6260144 | J44: 194.9781975 | K44: 110.385739 | L44: 136.2964579 | M44: 561.560493 | N44: 726.0493883 | O44: 675.6267549 | P44: 892.6690493
B45: Insgesamt… | C45: =SUM(C35:C44) -> 28899.5 | D45: =SUM(D35:D44) -> 35762 | E45: 13420.9147 | F45: 16267.75086 | G45: 7843.09752 | H45: 9896.286967 | I45: 2660.180872 | J45: 3312.472103 | K45: 958.6446502 | L45: 1246.927797 | M45: 2137.552894 | N45: 2593.30308 | O45: 1879.070369 | P45: 2445.259191
A47: 2011
B48: Institute der Fraunhofer-Gesellschaft | C48: 6301 | D48: 8976 | E48: 2055.597768 | F48: 2875 | G48: 3684.918411 | H48: 5302 | I48: 193.069408 | J48: 264 | K48: 43.91361956 | L48: 65 | M48: 116.7640327 | N48: 154 | O48: 206.7367611 | P48: 315
B49: Helmholtz-Zentren | C49: 8117.5 | D49: 9502 | E49: 3947.083664 | F49: 4711 | G49: 2676.339781 | H49: 2982 | I49: 1402.355677 | J49: 1699 | K49: 22.27708944 | L49: 24 | M49: 0 | N49: 0 | O49: 69.44378868 | P49: 85
B50: Leibniz-Gemeinschaft ("Blaue Liste") | C50: 3493.5 | D50: 4692 | E50: 1921.629584 | F50: 2605 | G50: 198.4655916 | H50: 249 | I50: 302.7327027 | J50: 412 | K50: 99.9419527 | L50: 143 | M50: 336.1350245 | N50: 470 | O50: 634.595144 | P50: 813
B51: Institute der Max-Planck-Gesellschaft | C51: 4620.5 | D51: 5029 | E51: 3780.065344 | F51: 4088 | G51: 75.15657079 | H51: 83 | I51: 206.4537143 | J51: 218 | K51: 17.69437352 | L51: 19 | M51: 249.123464 | N51: 267 | O51: 292.0065337 | P51: 356
B52: Öffentliche Einrichtungen für Wissenschaft | C52: 0 | D52: 0 | E52: 0 | F52: 0 | G52: 0 | H52: 0 | I52: 0 | J52: 0 | K52: 0 | L52: 0 | M52: 0 | N52: 0 | O52: 0 | P52: 0
B53: Forschung und Entwicklung und Wissenschaftliche | C53: 0 | D53: 0 | E53: 0 | F53: 0 | G53: 0 | H53: 0 | I53: 0 | J53: 0 | K53: 0 | L53: 0 | M53: 0 | N53: 0 | O53: 0 | P53: 0
B54: Bibliotheken und Museen (ohne Leibniz-Gemeinschaft) | C54: 4088.5 | D54: 4820 | E54: 1190.459449 | F54: 1369.958477 | G54: 556.1187699 | H54: 624.7083439 | I54: 557.8323948 | J54: 679.0218458 | K54: 718.6394781 | L54: 944.8757452 | M54: 942.1775208 | N54: 1061.544873 | O54: 123.2723877 | P54: 139.8907148
B55: Sonstige öffentlich geförderte Organisationen | C55: 0 | D55: 0 | E55: 0 | F55: 0 | G55: 0 | H55: 0 | I55: 0 | J55: 0 | K55: 0 | L55: 0 | M55: 0 | N55: 0 | O55: 0 | P55: 0
B56: ohne Erwerbszweck für Wissenschaft, | C56: 0 | D56: 0 | E56: 0 | F56: 0 | G56: 0 | H56: 0 | I56: 0 | J56: 0 | K56: 0 | L56: 0 | M56: 0 | N56: 0 | O56: 0 | P56: 0
B57: Forschung und Entwicklung | C57: 4429 | D57: 5347 | E57: 1504.163464 | F57: 1760.792581 | G57: 1302.01123 | H57: 1439.661862 | I57: 116.0041281 | J57: 160.6087783 | K57: 113.8348558 | L57: 149.2322274 | M57: 649.5717658 | N57: 860.550199 | O57: 743.4145564 | P57: 976.1543515
B58: Insgesamt… | C58: =SUM(C48:C57) -> 31050 | D58: =SUM(D48:D57) -> 38366 | E58: 14398.99927 | F58: 17409.75106 | G58: 8493.010354 | H58: 10680.37021 | I58: 2778.448025 | J58: 3432.630624 | K58: 1016.301369 | L58: 1345.107973 | M58: 2293.771808 | N58: 2813.095072 | O58: 2069.469172 | P58: 2685.045066
A60: 2012
B61: Institute der Fraunhofer-Gesellschaft | C61: 5770.5 | D61: 7590 | E61: 1879.779007 | F61: 2438 | G61: 3412.186081 | H61: 4515 | I61: 185.2095588 | J61: 239 | K61: 43.37189517 | L61: 59 | M61: 72.49405695 | N61: 89 | O61: 177.4594013 | P61: 250
B62: Helmholtz-Zentren | C62: 8681 | D62: 10305 | E62: 4513.629842 | F62: 5477 | G62: 2434.998067 | H62: 2722 | I62: 1643.485248 | J62: 1996 | K62: 23.52039299 | L62: 25 | M62: 0 | N62: 0 | O62: 65.36645006 | P62: 85
B63: Leibniz-Gemeinschaft ("Blaue Liste") | C63: 3682.999444 | D63: 4968 | E63: 1904.686365 | F63: 2564 | G63: 189.2324242 | H63: 228 | I63: 378.2936914 | J63: 526 | K63: 142.0942406 | L63: 208 | M63: 416.2331964 | N63: 601 | O63: 652.4595257 | P63: 841
B64: Institute der Max-Planck-Gesellschaft | C64: 4809.5 | D64: 5389 | E64: 3917.792404 | F64: 4363 | G64: 75.20460753 | H64: 84 | I64: 207.5698734 | J64: 226 | K64: 19.48768428 | L64: 22 | M64: 251.9379068 | N64: 288 | O64: 337.507524 | P64: 407
B65: Öffentliche Einrichtungen für Wissenschaft | C65: 0 | D65: 0 | E65: 0 | F65: 0 | G65: 0 | H65: 0 | I65: 0 | J65: 0 | K65: 0 | L65: 0 | M65: 0 | N65: 0 | O65: 0 | P65: 0
B66: Forschung und Entwicklung und Wissenschaftliche | C66: 0 | D66: 0 | E66: 0 | F66: 0 | G66: 0 | H66: 0 | I66: 0 | J66: 0 | K66: 0 | L66: 0 | M66: 0 | N66: 0 | O66: 0 | P66: 0
B67: Bibliotheken und Museen (ohne Leibniz-Gemeinschaft) | C67: 3930.5 | D67: 4725 | E67: 1130.020531 | F67: 1311.034602 | G67: 558.972628 | H67: 639.1336952 | I67: 535.906584 | J67: 676.7089944 | K67: 731.0489076 | L67: 978.1151113 | M67: 855.0348513 | N67: 981.4912449 | O67: 119.5164981 | P67: 138.5163527
B68: Sonstige öffentlich geförderte Organisationen | C68: 0 | D68: 0 | E68: 0 | F68: 0 | G68: 0 | H68: 0 | I68: 0 | J68: 0 | K68: 0 | L68: 0 | M68: 0 | N68: 0 | O68: 0 | P68: 0
B69: ohne Erwerbszweck für Wissenschaft, | C69: 0 | D69: 0 | E69: 0 | F69: 0 | G69: 0 | H69: 0 | I69: 0 | J69: 0 | K69: 0 | L69: 0 | M69: 0 | N69: 0 | O69: 0 | P69: 0
B70: Forschung und Entwicklung | C70: 4497.995475 | D70: 5465.993213 | E70: 1552.542647 | F70: 1805.998223 | G70: 1286.894333 | H70: 1432.108061 | I70: 166.5417865 | J70: 223.8787271 | K70: 113.8311449 | L70: 149.3545203 | M70: 611.239199 | N70: 819.0795671 | O70: 766.9463647 | P70: 1035.574114
B71: Insgesamt… | C71: =SUM(C61:C70) -> 31372.49492 | D71: =SUM(D61:D70) -> 38442.99321 | E71: 14898.4508 | F71: 17959.03282 | G71: 7957.488141 | H71: 9620.241756 | I71: 3117.006742 | J71: 3887.587721 | K71: 1073.354266 | L71: 1441.469632 | M71: 2206.93921 | N71: 2778.570812 | O71: 2119.255764 | P71: 2757.090467
A73: 2013
B74: Institute der Fraunhofer-Gesellschaft | C74: 5354.5 | D74: 6442 | E74: 1830.656909 | F74: 2199 | G74: 3050.513843 | H74: 3648 | I74: 230.8795148 | J74: 289 | K74: 23.84875514 | L74: 32 | M74: 0 | N74: 0 | O74: 218.6009781 | P74: 275
B75: Helmholtz-Zentren | C75: 9590.5 | D75: 11412 | E75: 5116.495569 | F75: 6170 | G75: 2653.600186 | H75: 2996 | I75: 1721.159793 | J75: 2124 | K75: 0 | L75: 0 | M75: 0 | N75: 0 | O75: 60.90426596 | P75: 80
B76: Leibniz-Gemeinschaft ("Blaue Liste") | C76: 3887.5 | D76: 5278 | E76: 2027.686415 | F76: 2764 | G76: 227.477687 | H76: 272 | I76: 391.0845407 | J76: 552 | K76: 132.3628114 | L76: 180 | M76: 415.3628127 | N76: 601 | O76: 693.525733 | P76: 908
B77: Institute der Max-Planck-Gesellschaft | C77: 4732.999996 | D77: 5319 | E77: 3905.901779 | F77: 4364 | G77: 70.26077324 | H77: 79 | I77: 213.795193 | J77: 235 | K77: 0 | L77: 0 | M77: 0 | N77: 0 | O77: 299.1305776 | P77: 358
B78: Öffentliche Einrichtungen für Wissenschaft | C78: 0 | D78: 0 | E78: 0 | F78: 0 | G78: 0 | H78: 0 | I78: 0 | J78: 0 | K78: 0 | L78: 0 | M78: 0 | N78: 0 | O78: 0 | P78: 0
B79: Forschung und Entwicklung und Wissenschaftliche | C79: 0 | D79: 0 | E79: 0 | F79: 0 | G79: 0 | H79: 0 | I79: 0 | J79: 0 | K79: 0 | L79: 0 | M79: 0 | N79: 0 | O79: 0 | P79: 0
B80: Bibliotheken und Museen (ohne Leibniz-Gemeinschaft) | C80: 4018.5 | D80: 4837 | E80: 1142.745259 | F80: 1328.733464 | G80: 592.8014638 | H80: 681.8446358 | I80: 561.2899475 | J80: 716.6889466 | K80: 734.0411103 | L80: 965.0237082 | M80: 866.4447149 | N80: 1005.078207 | O80: 121.1775043 | P80: 139.631038
B81: Sonstige öffentlich geförderte Organisationen | C81: 0 | D81: 0 | E81: 0 | F81: 0 | G81: 0 | H81: 0 | I81: 0 | J81: 0 | K81: 0 | L81: 0 | M81: 0 | N81: 0 | O81: 0 | P81: 0
B82: ohne Erwerbszweck für Wissenschaft, | C82: 0 | D82: 0 | E82: 0 | F82: 0 | G82: 0 | H82: 0 | I82: 0 | J82: 0 | K82: 0 | L82: 0 | M82: 0 | N82: 0 | O82: 0 | P82: 0
B83: Forschung und Entwicklung | C83: 4393 | D83: 5316 | E83: 1401.79518 | F83: 1606.119278 | G83: 1315.029907 | H83: 1453.16589 | I83: 125.5400318 | J83: 163.6197121 | K83: 114.3927185 | L83: 144.7785837 | M83: 624.2412716 | N83: 840.3528317 | O83: 812.0008918 | P83: 1107.963704
B84: Insgesamt… | C84: =SUM(C74:C83) -> 31977 | D84: =SUM(D74:D83) -> 38604 | E84: 15425.28111 | F84: 18431.85274 | G84: 7909.68386 | H84: 9130.010526 | I84: 3243.749021 | J84: 4080.308659 | K84: 1004.645395 | L84: 1321.802292 | M84: 1906.048799 | N84: 2446.431039 | O84: 2205.339951 | P84: 2868.594742
A87: Quelle:Statistisches Bundesamt, Sonderauswertung AUF, eigene Darstellung

Sheet 1.4
A1: Wissenschaftler/-innen der wissenschaftlichen Einrichtungen des öffentlichen Sektors
A2: nach Altersklasse, ausgewählte Einrichtungsarten und Wissenschaftszweigen
A4: mit Promotion befristet | C4: Insgesamt | E4: Naturwissenschaften | G4: Ingenieurwissenschaften | I4: Humanmedizin | K4: Agrarwissenschaften | M4: Geisteswissenschaften | O4: Sozialwissenschaften
C5: VZÄ | D5: HC | E5: VZÄ | F5: HC | G5: VZÄ | H5: HC | I5: VZÄ | J5: HC | K5: VZÄ | L5: HC | M5: VZÄ | N5: HC | O5: VZÄ | P5: HC
A7: 2008
B8: Institute der Fraunhofer-Gesellschaft | C8: 693 | D8: 771 | E8: 187.2269474 | F8: 211 | G8: 435.8472278 | H8: 483 | I8: 25.6209068 | J8: 29 | K8: 26.6283888 | L8: 29 | M8: 0 | N8: 0 | O8: 17.45899929 | P8: 19
B9: Helmholtz-Zentren | C9: 1590 | D9: 1762 | E9: 916.4407921 | F9: 1042 | G9: 443.7286418 | H9: 471 | I9: 203.0923622 | J9: 219 | K9: 6.856801141 | L9: 7 | M9: 0 | N9: 0 | O9: 19.88140271 | P9: 22
B10: Leibniz-Gemeinschaft ("Blaue Liste") | C10: 960 | D10: 1085 | E10: 658.8684181 | F10: 728 | G10: 18.28929016 | H10: 21 | I10: 49.5 | J10: 60 | K10: 59.41811024 | L10: 71 | M10: 83.94910516 | N10: 100 | O10: 89.9750763 | P10: 106
B11: Institute der Max-Planck-Gesellschaft | C11: 2129.5 | D11: 2260 | E11: 1774.034397 | F11: 1874 | G11: 33.54237777 | H11: 34 | I11: 76.55075719 | J11: 80 | K11: 2.436018542 | L11: 3 | M11: 104.8347553 | N11: 114 | O11: 138.1016942 | P11: 154
B12: Öffentliche Einrichtungen für Wissenschaft
B13: Forschung und Entwicklung und Wissenschaftliche
B14: Bibliotheken und Museen (ohne Leibniz-Gemeinschaft) | C14: 579.5 | D14: 686 | E14: 147.3636779 | F14: 166.7786419 | G14: 58.35064895 | H14: 69.06578566 | I14: 76.53906862 | J14: 93.95882127 | K14: 121.9873202 | L14: 146.904481 | M14: 167.8901445 | N14: 200.7801188 | O14: 7.36913978 | P14: 8.512151326
B15: Sonstige öffentlich geförderte Organisationen
B16: ohne Erwerbszweck für Wissenschaft,
B17: Forschung und Entwicklung | C17: 1201 | D17: 1388 | E17: 335.2696177 | F17: 377.6106961 | G17: 201.3395699 | H17: 234.8614242 | I17: 99.62225782 | J17: 111.3657106 | K17: 27.18865176 | L17: 34.44219687 | M17: 358.7839415 | N17: 400.2418457 | O17: 178.7959613 | P17: 229.4781265
B18: Insgesamt… | C18: =SUM(C8:C17) -> 7153 | D18: =SUM(D8:D17) -> 7952 | E18: 4019.20385 | F18: 4399.389338 | G18: 1191.097756 | H18: 1312.92721 | I18: 530.9253526 | J18: 593.3245318 | K18: 244.5152907 | L18: 291.3466779 | M18: 715.4579465 | N18: 815.0219645 | O18: 451.5822736 | P18: 538.9902778
A20: 2009
B21: Institute der Fraunhofer-Gesellschaft | C21: 927 | D21: 1028 | E21: 253.2028712 | F21: 284 | G21: 560.9571823 | H21: 620 | I21: 67.46522172 | J21: 75 | K21: . | L21: . | M21: 10.76606871 | N21: 11 | O21: . | P21: .
B22: Helmholtz-Zentren | C22: 1404.5 | D22: 1572 | E22: 855.4517835 | F22: 974 | G22: 275.8323117 | H22: 306 | I22: 252.110821 | J22: 268 | K22: . | L22: . | M22: 0 | N22: 0 | O22: . | P22: .
B23: Leibniz-Gemeinschaft ("Blaue Liste") | C23: 1113.5 | D23: 1258 | E23: 686.3276025 | F23: 764 | G23: 37.79446322 | H23: 44 | I23: 126.2081564 | J23: 142 | K23: 29.87106577 | L23: 37 | M23: 112.62829 | N23: 129 | O23: 120.670422 | P23: 142
B24: Institute der Max-Planck-Gesellschaft | C24: 2255 | D24: 2388 | E24: 1850.373655 | F24: 1952 | G24: 35.24146876 | H24: 37 | I24: 94.5197936 | J24: 99 | K24: 9.934272242 | L24: 11 | M24: 125.7246568 | N24: 134 | O24: 139.2061533 | P24: 155
B25: Öffentliche Einrichtungen für Wissenschaft
B26: Forschung und Entwicklung und Wissenschaftliche
B27: Bibliotheken und Museen (ohne Leibniz-Gemeinschaft) | C27: 463 | D27: 543 | E27: 101.1710354 | F27: 113.1207596 | G27: 52.0267176 | H27: 57.765683 | I27: 91.10359819 | J27: 115.6137572 | K27: 50.90472085 | L27: 58.53919823 | M27: 164.3814317 | N27: 194.3641884 | O27: 3.41249625 | P27: 3.596413589
B28: Sonstige öffentlich geförderte Organisationen
B29: ohne Erwerbszweck für Wissenschaft,
B30: Museen (ohne Leibniz-Gemeinschaft) | C30: 1117 | D30: 1273 | E30: 318.1416777 | F30: 358.9405266 | G30: 173.7261544 | H30: 198.8877261 | I30: 59.27324593 | J30: 65.9132473 | K30: 34.72297372 | L30: 39.18194224 | M30: 365.0265854 | N30: 407.9672676 | O30: 166.1093629 | P30: 202.1092901
B31: Insgesamt… | C31: =SUM(C21:C30) -> 7280 | D31: =SUM(D21:D30) -> 8062 | E31: 4064.668626 | F31: 4446.061286 | G31: 1135.578298 | H31: 1263.653409 | I31: 690.6808368 | J31: 765.5270045 | K31: 125.4330326 | L31: 145.7211405 | M31: 778.5270326 | N31: 876.331456 | O31: 429.3984345 | P31: 502.7057037
A34: 2010
B35: Institute der Fraunhofer-Gesellschaft | C35: 945 | D35: 1046 | E35: 302.9481545 | F35: 337 | G35: 531.5009211 | H35: 586 | I35: 55.20788593 | J35: 62 | K35: 13.90416164 | L35: 15 | M35: 16.74738304 | N35: 19 | O35: 24.69149382 | P35: 27
B36: Helmholtz-Zentren | C36: 1805 | D36: 2022 | E36: 1107.565021 | F36: 1253 | G36: 273.0164317 | H36: 308 | I36: 391.7427032 | J36: 426 | K36: 6.457517672 | L36: 7 | M36: 0 | N36: 0 | O36: 26.19890017 | P36: 29
B37: Leibniz-Gemeinschaft ("Blaue Liste") | C37: 1172.5 | D37: 1334 | E37: 730.0812269 | F37: 814 | G37: 24.25452153 | H37: 30 | I37: 133.5039118 | J37: 152 | K37: 34.29228136 | L37: 42 | M37: 106.7900772 | N37: 124 | O37: 143.5779811 | P37: 172
B38: Institute der Max-Planck-Gesellschaft | C38: 2417.5 | D38: 2570 | E38: 2007.673241 | F38: 2127 | G38: 21.68312191 | H38: 22 | I38: 99.41619905 | J38: 104 | K38: 12.51234393 | L38: 14 | M38: 135.7941333 | N38: 145 | O38: 140.4209604 | P38: 158
B39: Öffentliche Einrichtungen für Wissenschaft
B40: Forschung und Entwicklung und Wissenschaftliche
B41: Bibliotheken und Museen (ohne Leibniz-Gemeinschaft) | C41: 751 | D41: 887 | E41: 196.1629658 | F41: 224.4032477 | G41: 87.54087302 | H41: 95.92236979 | I41: 151.7919363 | J41: 184.0701898 | K41: 151.5139136 | L41: 179.1138814 | M41: 147.3776442 | N41: 183.3776442 | O41: 16.61266705 | P41: 20.11266705
B42: Sonstige öffentlich geförderte Organisationen
B43: ohne Erwerbszweck für Wissenschaft,
B44: Forschung und Entwicklung | C44: 1099.5 | D44: 1266 | E44: 298.702481 | F44: 333.0556039 | G44: 172.8231439 | H44: 198.766604 | I44: 58.29530984 | J44: 66.7801537 | K44: 24.80908777 | L44: 30.03070451 | M44: 372.8259734 | N44: 422.4437862 | O44: 172.0440041 | P44: 214.9231476
B45: Insgesamt… | C45: =SUM(C35:C44) -> 8190.5 | D45: =SUM(D35:D44) -> 9125 | E45: 4643.133091 | F45: 5088.458852 | G45: 1110.819013 | H45: 1240.688974 | I45: 889.9579462 | J45: 994.8503435 | K45: 243.489306 | L45: 287.144586 | M45: 779.5352111 | N45: 893.8214305 | O45: 523.5460066 | P45: 621.0358146
A47: 2011
B48: Institute der Fraunhofer-Gesellschaft | C48: 952 | D48: 1059 | E48: 318.3583644 | F48: 356 | G48: 524.9831805 | H48: 583 | I48: 62.34380539 | J48: 69 | K48: 11.98437091 | L48: 13 | M48: 11.41658438 | N48: 13 | O48: 22.91369435 | P48: 25
B49: Helmholtz-Zentren | C49: 2545 | D49: 2768 | E49: 1354.083381 | F49: 1474 | G49: 690.8854911 | H49: 755 | I49: 462.3419739 | J49: 499 | K49: 9.235811177 | L49: 10 | M49: 0 | N49: 0 | O49: 28.45334316 | P49: 31
B50: Leibniz-Gemeinschaft ("Blaue Liste") | C50: 1488.5 | D50: 1685 | E50: 895.3118277 | F50: 985 | G50: 55.89585827 | H50: 65 | I50: 185.5078232 | J50: 210 | K50: 41.3443284 | L50: 52 | M50: 136.4391086 | N50: 163 | O50: 174.0010539 | P50: 210
B51: Institute der Max-Planck-Gesellschaft | C51: 2482.5 | D51: 2636 | E51: 2065.386056 | F51: 2185 | G51: 24.86179182 | H51: 26 | I51: 102.1507426 | J51: 107 | K51: 7.450827116 | L51: 8 | M51: 129.2999287 | N51: 139 | O51: 153.350654 | P51: 171
B52: Öffentliche Einrichtungen für Wissenschaft
B53: Forschung und Entwicklung und Wissenschaftliche
B54: Bibliotheken und Museen (ohne Leibniz-Gemeinschaft) | C54: 888.5 | D54: 1056 | E54: 224.4014596 | F54: 258.1142005 | G54: 96.54888164 | H54: 108.8051508 | I54: 158.9958007 | J54: 200.0774764 | K54: 173.8229851 | L54: 208.0318925 | M54: 209.6199725 | N54: 251.5753332 | O54: 25.11090037 | P54: 29.39594656
B55: Sonstige öffentlich geförderte Organisationen
B56: ohne Erwerbszweck für Wissenschaft,
B57: Forschung und Entwicklung | C57: 1213.5 | D57: 1386 | E57: 392.6477709 | F57: 428.7557085 | G57: 162.1422476 | H57: 188.9245621 | I57: 61.01258138 | J57: 69.12352582 | K57: 29.73002193 | L57: 35.8990934 | M57: 386.905401 | N57: 443.1532531 | O57: 181.0619771 | P57: 220.1438571
B58: Insgesamt… | C58: =SUM(C48:C57) -> 9570 | D58: =SUM(D48:D57) -> 10590 | E58: 5250.188859 | F58: 5686.869909 | G58: 1555.317451 | H58: 1726.729713 | I58: 1032.352727 | J58: 1154.201002 | K58: 273.5683447 | L58: 326.9309859 | M58: 873.6809952 | N58: 1009.728586 | O58: 584.891623 | P58: 686.5398036
A60: 2012
B61: Institute der Fraunhofer-Gesellschaft | C61: 1105.5 | D61: 1236 | E61: 375.0215158 | F61: 420 | G61: 601.0881819 | H61: 670 | I61: 84.09085386 | J61: 96 | K61: 16.54769817 | L61: 18 | M61: 3.9308863 | N61: 4 | O61: 24.82086405 | P61: 28
B62: Helmholtz-Zentren | C62: 2951 | D62: 3213 | E62: 1607.91187 | F62: 1748 | G62: 731.2076682 | H62: 800 | I62: 578.4244214 | J62: 628 | K62: 8.817182961 | L62: 10 | M62: 0 | N62: 0 | O62: 24.63885748 | P62: 27
B63: Leibniz-Gemeinschaft ("Blaue Liste") | C63: 1635.999953 | D63: 1888 | E63: 876.0732123 | F63: 984 | G63: 67.37343332 | H63: 77 | I63: 240.0996255 | J63: 279 | K63: 52.53101269 | L63: 71 | M63: 176.4068787 | N63: 211 | O63: 223.5157904 | P63: 267
B64: Institute der Max-Planck-Gesellschaft | C64: 2443 | D64: 2611 | E64: 2017.463272 | F64: 2146 | G64: 22.58963802 | H64: 25 | I64: 98.5349264 | J64: 106 | K64: 8.348137099 | L64: 9 | M64: 129.8368661 | N64: 142 | O64: 166.2271601 | P64: 184
B65: Öffentliche Einrichtungen für Wissenschaft
B66: Forschung und Entwicklung und Wissenschaftliche
B67: Bibliotheken und Museen (ohne Leibniz-Gemeinschaft) | C67: 887.5 | D67: 1069 | E67: 236.2931742 | F67: 271.9958927 | G67: 99.52000827 | H67: 114.4811258 | I67: 162.8585734 | J67: 210.4462444 | K67: 168.0678002 | L67: 202.159471 | M67: 199.2859526 | N67: 243.2496826 | O67: 21.47449141 | P67: 26.66758364
B68: Sonstige öffentlich geförderte Organisationen
B69: ohne Erwerbszweck für Wissenschaft,
B70: Forschung und Entwicklung | C70: 1252.5 | D70: 1458 | E70: 380.8234356 | F70: 433.6542898 | G70: 183.6313102 | H70: 214.3048676 | I70: 63.56097144 | J70: 73.88133731 | K70: 31.14864424 | L70: 39.01387599 | M70: 403.3465442 | N70: 462.5412989 | O70: 189.9890944 | P70: 234.6043304
B71: Insgesamt… | C71: =SUM(C61:C70) -> 10275.49995 | D71: =SUM(D61:D70) -> 11475 | E71: 5493.58648 | F71: 6003.650182 | G71: 1705.41024 | H71: 1900.785993 | I71: 1227.569372 | J71: 1393.327582 | K71: 285.4604754 | L71: 349.173347 | M71: 912.8071279 | N71: 1062.790982 | O71: 650.6662577 | P71: 767.271914
A73: 2013
B74: Institute der Fraunhofer-Gesellschaft | C74: 1084 | D74: 1221 | E74: 377.0299308 | F74: 420 | G74: 576.8366647 | H74: 649 | I74: 95.63990825 | J74: 111 | K74: 10 | L74: 12 | M74: 0 | N74: 0 | O74: 24.22024022 | P74: 28
B75: Helmholtz-Zentren | C75: 3341.5 | D75: 3661 | E75: 1975.061615 | F75: 2142 | G75: 773.1878843 | H75: 857 | I75: 553.3648351 | J75: 618 | K75: . | L75: . | M75: . | N75: . | O75: 24.32942968 | P75: 27
B76: Leibniz-Gemeinschaft ("Blaue Liste") | C76: 1726 | D76: 1994 | E76: 951.0115651 | F76: 1071 | G76: 94.1009385 | H76: 105 | I76: 210.5093934 | J76: 251 | K76: 42.49411109 | L76: 57 | M76: 164.0719197 | N76: 198 | O76: 263.8120723 | P76: 311
B77: Institute der Max-Planck-Gesellschaft | C77: 2459.500009 | D77: 2631 | E77: 2072.950086 | F77: 2208 | G77: 27.41340531 | H77: 29 | I77: 97.03038292 | J77: 103 | K77: . | L77: . | M77: . | N77: . | O77: 136.1929928 | P77: 153
B78: Öffentliche Einrichtungen für Wissenschaft
B79: Forschung und Entwicklung und Wissenschaftliche
B80: Bibliotheken und Museen (ohne Leibniz-Gemeinschaft) | C80: 1019.5 | D80: 1224 | E80: 299.758199 | F80: 343.193592 | G80: 111.8307536 | H80: 128.2681574 | I80: 204.3635307 | J80: 263.3401181 | K80: 194.5017949 | L80: 231.0690618 | M80: 185.7698379 | N80: 228.7612254 | O80: 23.27588394 | P80: 29.36784525
B81: Sonstige öffentlich geförderte Organisationen
B82: ohne Erwerbszweck für Wissenschaft,
B83: Forschung und Entwicklung | C83: 1180 | D83: 1376 | E83: 333.9285886 | F83: 374.5087008 | G83: 171.7674847 | H83: 198.9601432 | I83: 42.35688405 | J83: 50.10780186 | K83: 28.02792657 | L83: 36.15703693 | M83: 404.6941193 | N83: 463.1839621 | O83: 199.2249968 | P83: 253.0823551
B84: Insgesamt… | C84: =SUM(C74:C83) -> 10810.50001 | D84: =SUM(D74:D83) -> 12107 | E84: 6009.739984 | F84: 6558.702293 | G84: 1755.137131 | H84: 1967.228301 | I84: 1203.264934 | J84: 1396.44792 | K84: 275.0238325 | L84: 336.2260988 | M84: 754.5358769 | N84: 889.9451875 | O84: 671.0556158 | P84: 801.4502003
A89: Statistisches Bundesamt (Destatis), H204 Forschung und Entwicklung

Sheet 2. Wiss. Personal (un)befristet

Sheet 2.1
A1: Vollzeit Wissenschaftler/-innen der wissenschaftlichen Einrichtungen des öffentlichen Sektors 2013
A2: nach ausgewählten Einrichtungsarten, Altersklassen und Dauer des Arbeitsvertragsverhältnisses
A4: Einrichtungsarten | C4: ohne Promotion bis 34 Jahre | E4: mit Promotion bis 44 Jahre
C5: befristet | D5: unbefristet | E5: befristet | F5: unbefristet
C6: HC
B8: Institute der Fraunhofer-Gesellschaft | C8: 2646 | D8: 269 | E8: 795 | F8: 557
B9: Helmholtz-Zentren | C9: 2943 | D9: 894 | E9: 2601 | F9: 1330
B10: Leibniz-Gemeinschaft ("Blaue Liste") | C10: 837 | D10: 125 | E10: 1215 | F10: 320
B11: Institute der Max-Planck-Gesellschaft | C11: 1708 | D11: 103 | E11: 2053 | F11: 283
B12: Insgesamt … | C12: 8134 | D12: 1391 | E12: 6664 | F12: 2490
A13: _______
A14: Durch verfahrensbedingte Anpassungen können einzelne Summen voneinander abweichen.
A16: Statistisches Bundesamt (Destatis), H204 Forschung und Entwicklung

Sheet 2.2
A1: Teilzeit Wissenschaftler/-innen der wissenschaftlichen Einrichtungen des öffentlichen Sektors 2013
A2: nach ausgewählten Einrichtungsarten, Altersklassen und Dauer des Arbeitsvertragsverhältnisses
A4: Einrichtungsarten | C4: ohne Promotion bis 34 Jahre | E4: mit Promotion bis 44 Jahre
C5: befristet | D5: unbefristet | E5: befristet | F5: unbefristet
C6: HC
B8: Institute der Fraunhofer-Gesellschaft | C8: 1910 | D8: 30 | E8: 152 | F8: 83
B9: Helmholtz-Zentren | C9: 2880 | D9: 170 | E9: 401 | F9: 193
B10: Leibniz-Gemeinschaft ("Blaue Liste") | C10: 2231 | D10: 111 | E10: 364 | F10: 75
B11: Institute der Max-Planck-Gesellschaft | C11: 892 | D11: 13 | E11: 238 | F11: 30
B12: Insgesamt … | C12: 7913 | D12: 324 | E12: 1155 | F12: 381
A13: _______
A14: Durch verfahrensbedingte Anpassungen können einzelne Summen voneinander abweichen.
A16: Statistisches Bundesamt (Destatis), H204 Forschung und Entwicklung

Sheet 3. Personal AUF

Sheet 3.1
B1: Statistisches Bundesamt (2016): Ausgaben, Einnahmen und Personal der öffentlichen und öffentlich geförderten Einrichtungen für Wissenschaft, Forschung und Entwicklung, Sonderauswertung, Wiesbaden
B3: Methodische Anmerkungen
B6: Aufgrund einer Anpassung des Finanz- und Personalstatistikgesetzes wird seit dem Berichtsjahr 2014 für das Personal der öffentlich geförderten Einrichtungen eine schwerpunktmäßige Zuordnung zu einem oder mehreren Wissenschaftszweigen erhoben. Durch diese direkte Erhebung anstelle des bisherigen Schätzverfahrens ist von einer deutlich verbesserten Qualität der Darstellung der Beschäftigten nach Wissenschaftszweigen auszugehen. Zu beachten ist gleichwohl, dass die Vergleichbarkeit mit früheren Berichtsjahren durch diese Neuerung eingeschränkt ist.
B8: Die erwähnte Gesetzesänderung gilt nur für die öffentlich geförderten, aber nicht für die öffentlichen Forschungseinrichtungen. Um auch deren Personal nach Wissenschaftszweigen darstellen zu können, werden für diese Einrichtungen wie bisher die Ergebnisse für die Ausgaben herangezogen. Die Zuordnung des Personals erfolgt bei diesem Konzept proportional zu den Anteilen der Wissenschaftszweige an den Ausgaben einer Einrichtung. Dieses Verfahren führt dann zu unvermeidlichen systematischen Fehlern, wenn in einigen Wissenschaftszweigen überdurchschnittlich hohe oder niedrige Ausgaben getätigt werden, die nicht der jeweiligen Personalintensität entsprechen oder wenn sich die Forschungstätigkeit in bestimmten Wissenschaftszweigen sehr stark auf einzelne Standorte konzentrieren.
B14: Ebenfalls seit dem Berichtsjahr 2014 werden an öffentlich geförderten Einrichtungen auch die Personalkategorien, aus denen sich die Zuordnung zu den Gruppen wissenschaftliches, technisches und sonstiges Personal ergibt, direkt erhoben. Auch hier gilt, dass dadurch von einer deutlichen Qualitätssteigerung der Ergebnisse zu diesem Merkmal auszugehen und die Vergleichbarkeit mit früheren Berichtszeiträumen stark eingeschränkt ist. Für die öffentlichen Einrichtungen wird wie bisher ein Schätzverfahren auf Basis der Vergütungsgruppe und dem jeweiligen Bildungsabschluss angewandt. Dabei werden Beschäftigte des höheren Dienstes dem wissenschaftlichen Personal zugerechnet, ebenso Beschäftigte des gehobenen Dienstes mit Hochschulabschluss. Die übrigen Beschäftigten des gehobenen Dienstes gelten als technisches Personal. Alle übrigen Beschäftigten werden zum sonstigen Personal aggregiert.

Sheet 3.2
A1: Personal der wissenschaftlichen Einrichtungen des öffentlichen Sektors 2014
A3: Nach Einrichtungsarten und Personalgruppen 1
A5: Einrichtungsgruppe ------- Einrichtungsart (i = insgesamt, w = weiblich) | C5: Insgesamt | D5: Wissenschaft- liches Personal | E5: Technisches Personal | F5: Sonstiges Personal
C6: Headcount
A8: Öffentliche Einrichtungen für Wissenschaft,
A9: Forschung und Entwicklung | B9: i | C9: 29108 | D9: 12326 | E9: 4817 | F9: 11965
B10: w | C10: 14169 | D10: 4987 | E10: 2333 | F10: 6849
A12: Bundesforschungseinrichtungen | B12: i | C12: 22350 | D12: 8986 | E12: 3977 | F12: 9387
B13: w | C13: 10978 | D13: 3697 | E13: 1941 | F13: 5340
A15: Landes- und kommunale Forschungs-
A16: einrichtungen (ohne Leibniz-Gemeinschaft) | B16: i | C16: 6758 | D16: 3340 | E16: 840 | F16: 2578
B17: w | C17: 3191 | D17: 1290 | E17: 392 | F17: 1509
A19: Gemeinsam von Bund und Ländern
A20: geförderte Einrichtungen für Wissenschaft,
A21: Forschung und Entwicklung 2 ................................................. | B21: i | C21: 88409 | D21: 45444 | E21: 18215 | F21: 24750
B22: w | C22: 36769 | D22: 15101 | E22: 8422 | F22: 13246
A24: Helmholtz-Zentren | B24: i | C24: 36409 | D24: 20574 | E24: 7293 | F24: 8542
B25: w | C25: 14454 | D25: 6915 | E25: 3079 | F25: 4460
A27: Institute der Max-Planck-Gesellschaft | B27: i | C27: 14445 | D27: 6919 | E27: 3438 | F27: 4088
B28: w | C28: 6600 | D28: 2434 | E28: 1508 | F28: 2658
A30: Institute der Fraunhofer-Gesellschaft | B30: i | C30: 20511 | D30: 9437 | E30: 2813 | F30: 8261
B31: w | C31: 6670 | D31: 2031 | E31: 988 | F31: 3651
A33: Leibniz-Gemeinschaft ("Blaue Liste") | B33: i | C33: 17044 | D33: 8514 | E33: 4671 | F33: 3859
B34: w | C34: 9045 | D34: 3721 | E34: 2847 | F34: 2477
A36: Sonstige öffentlich geförderte Organisationen
A37: ohne Erwerbszweck für Wissenschaft,
A38: Forschung und Entwicklung | B38: i | C38: 17329 | D38: 10240 | E38: 2705 | F38: 4384
B39: w | C39: 7754 | D39: 3880 | E39: 1264 | F39: 2610
A41: Wissenschaftliche Bibliotheken und
A42: Museen (ohne Leibniz-Gemeinschaft) | B42: i | C42: 11962 | D42: 3448 | E42: 2429 | F42: 6085
B43: w | C43: 7375 | D43: 1952 | E43: 1660 | F43: 3763
A45: Wissenschaftliche Bibliotheken, Archive und
A46: Fachinformationszentren | B46: i | C46: 7580 | D46: 2089 | E46: 1694 | F46: 3797
B47: w | C47: 4879 | D47: 1184 | E47: 1201 | F47: 2494
A49: Wissenschaftliche Museen | B49: i | C49: 4382 | D49: 1359 | E49: 735 | F49: 2288
B50: w | C50: 2496 | D50: 768 | E50: 459 | F50: 1269
A52: Insgesamt … | B52: i | C52: 146808 | D52: 71458 | E52: 28166 | F52: 47184
B53: w | C53: 66067 | D53: 25920 | E53: 13679 | F53: 26468
A54: Nachrichtlich:
A55: Institute an Hochschulen | B55: i | C55: 9130 | D55: 5368 | E55: 1495 | F55: 2267
B56: w | C56: 3938 | D56: 1934 | E56: 743 | F56: 1261
A58: _______
A59: 1 Die Vergleichbarkeit der Personalgruppen zu früheren Jahren ist eingeschränkt
A60: (siehe Erläuterungen, Kapitel 2.2).
A61: 2 Die Akademien (lt. Akademienprogramm) werden bei den sonstigen öffentlich
A62: geförderten Organisationen ohne Erwerbszweck nachgewiesen.
A65: Statistisches Bundesamt (Destatis)
A66: H 204 Forschung und Entwicklung, Kultur, Berufsbildung

Sheet 4. Wiss. F&E Personal AUF 08-13

Sheet 4.1
A1: Wissenschaftler für Forschung und Entwicklung der wissenschaftlichen Einrichtungen des öffentlichen Sektors 2008
A3: Nach Einrichtungsgruppen, ausgewählten Einrichtungsarten, Geschlecht und Wissenschaftszweigen
A5: Einrichtungsgruppe ------- Einrichtungsart (i = insgesamt, w = weiblich) | C5: Insgesamt | E5: Naturwissen- schaften | G5: Ingenieurwissen- schaften | I5: Humanmedizin | K5: Agrarwissen- schaften | M5: Geisteswissen- schaften und Sozialwissenschaften
C6: VZÄ | D6: HC | E6: VZÄ | F6: HC | G6: VZÄ | H6: HC | I6: VZÄ | J6: HC | K6: VZÄ | L6: HC | M6: VZÄ | N6: HC
A8: Öffentliche Einrichtungen für Wissenschaft
A9: Forschung und Entwicklung und Wissenschaftliche
A10: Bibliotheken und Museen (ohne Leibniz-Gemeinschaft) | B10: i | C10: 5999 | D10: 6834 | E10: 1545 | F10: 1705 | G10: 621 | H10: 691 | I10: 543 | J10: 636 | K10: 1647 | L10: 1959 | M10: 1644 | N10: 1844
B11: w | C11: 2058 | D11: 2558 | E11: 353 | F11: 431 | G11: 150 | H11: 188 | I11: 253 | J11: 321 | K11: 527 | L11: 704 | M11: 775 | N11: 914
A13: Gemeinsam von Bund und Ländern geförderte
A14: Einrichtungen für Wissenschaft, Forschung
A15: und Entwicklung 1) ......................................................................... | B15: i | C15: 31572 | D15: 37647 | E15: 16958 | F15: 19731 | G15: 9704 | H15: 12051 | I15: 2140 | J15: 2504 | K15: 503 | L15: 622 | M15: 2267 | N15: 2740
B16: w | C16: 8614 | D16: 11178 | E16: 4569 | F16: 5773 | G16: 1982 | H16: 2763 | I16: 921 | J16: 1157 | K16: 226 | L16: 313 | M16: 916 | N16: 1173
A18: Helmholtz-Zentren | B18: i | C18: 12913 | D18: 14482 | E18: 6727 | F18: 7569 | G18: 4604 | H18: 5090 | I18: 1482 | J18: 1707 | K18: 26 | L18: 28 | M18: 73 | N18: 88
B19: w | C19: 3407 | D19: 4147 | E19: 1790 | F19: 2187 | G19: 921 | H19: 1109 | I19: 663 | J19: 809 | K19: 10 | L19: 11 | M19: 22 | N19: 30
A21: Institute der Max-Planck-Gesellschaft | B21: i | C21: 6178 | D21: 6789 | E21: 5099 | F21: 5579 | G21: 101 | H21: 105 | I21: 208 | J21: 222 | K21: 6 | L21: 7 | M21: 763 | N21: 876
B22: w | C22: 1831 | D22: 2127 | E22: 1376 | F22: 1592 | G22: 24 | H22: 26 | I22: 83 | J22: 92 | K22: 2 | L22: 3 | M22: 345 | N22: 413
A24: Institute der Fraunhofer-Gesellschaft | B24: i | C24: 7113 | D24: 9842 | E24: 1968 | F24: 2698 | G24: 4642 | H24: 6446 | I24: 209 | J24: 277 | K24: 101 | L24: 134 | M24: 193 | N24: 287
B25: w | C25: 1543 | D25: 2446 | E25: 419 | F25: 657 | G25: 945 | H25: 1515 | I25: 71 | J25: 107 | K25: 42 | L25: 64 | M25: 66 | N25: 103
A27: Leibniz-Gemeinschaft ("Blaue Liste") | B27: i | C27: 5369 | D27: 6534 | E27: 3164 | F27: 3884 | G27: 357 | H27: 410 | I27: 240 | J27: 298 | K27: 370 | L27: 453 | M27: 1238 | N27: 1489
B28: w | C28: 1834 | D28: 2458 | E28: 984 | F28: 1335 | G28: 92 | H28: 113 | I28: 104 | J28: 149 | K28: 172 | L28: 234 | M28: 483 | N28: 627
A30: Sonstige öffentlich geförderte Organisationen
A31: ohne Erwerbszweck für Wissenschaft,
A32: Forschung und Entwicklung | B32: i | C32: 7771 | D32: 8988 | E32: 2345 | F32: 2629 | G32: 2536 | H32: 2767 | I32: 316 | J32: 417 | K32: 186 | L32: 215 | M32: 2388 | N32: 2960
B33: w | C33: 2329 | D33: 2983 | E33: 513 | F33: 638 | G33: 506 | H33: 602 | I33: 145 | J33: 213 | K33: 82 | L33: 102 | M33: 1082 | N33: 1428
A35: Insgesamt … | B35: i | C35: 45342 | D35: 53469 | E35: 20848 | F35: 24065 | G35: 12861 | H35: 15509 | I35: 2998 | J35: 3557 | K35: 2335 | L35: 2796 | M35: 6299 | N35: 7543
B36: w | C36: 13001 | D36: 16720 | E36: 5435 | F36: 6841 | G36: 2639 | H36: 3553 | I36: 1319 | J36: 1691 | K36: 835 | L36: 1119 | M36: 2774 | N36: 3516
A38: _______
A39: 1) Die Akademien (lt. Akademienprogramm) werden bei den sonstigen öffentlich
A40: geförderten Organisationen ohne Erwerbszweck nachgewiesen.
A43: Statistisches Bundesamt (Destatis)
A44: H204 Forschung und Entwicklung, Kultur, Berufsbildung

Sheet 4.2
A1: Wissenschaftler für Forschung und Entwicklung der wissenschaftlichen Einrichtungen des öffentlichen Sektors 2009
A3: Nach Einrichtungsgruppen, ausgewählten Einrichtungsarten, Geschlecht und Wissenschaftszweigen
A5: Einrichtungsgruppe ------- Einrichtungsart (i = insgesamt, w = weiblich) | C5: Insgesamt | E5: Naturwissen- schaften | G5: Ingenieurwissen- schaften | I5: Humanmedizin | K5: Agrarwissen- schaften | M5: Geisteswissen- schaften und Sozialwissenschaften
C6: VZÄ | D6: HC | E6: VZÄ | F6: HC | G6: VZÄ | H6: HC | I6: VZÄ | J6: HC | K6: VZÄ | L6: HC | M6: VZÄ | N6: HC
A8: Öffentliche Einrichtungen für Wissenschaft
A9: Forschung und Entwicklung und Wissenschaftliche
A10: Bibliotheken und Museen (ohne Leibniz-Gemeinschaft) | B10: i | C10: 6603 | D10: 7537 | E10: 1799 | F10: 1994 | G10: 791 | H10: 880 | I10: 677 | J10: 790 | K10: 1676 | L10: 1998 | M10: 1660 | N10: 1875
B11: w | C11: 2524 | D11: 3145 | E11: 480 | F11: 595 | G11: 225 | H11: 277 | I11: 339 | J11: 427 | K11: 688 | L11: 908 | M11: 792 | N11: 939
A13: Gemeinsam von Bund und Ländern geförderte
A14: Einrichtungen für Wissenschaft, Forschung
A15: und Entwicklung 1) ......................................................................... | B15: i | C15: 35256 | D15: 41954 | E15: 17786 | F15: 20705 | G15: 11317 | H15: 13816 | I15: 2924 | J15: 3474 | K15: 411 | L15: 481 | M15: 2818 | N15: 3478
B16: w | C16: 9886 | D16: 12702 | E16: 4906 | F16: 6165 | G16: 2443 | H16: 3270 | I16: 1279 | J16: 1638 | K16: 166 | L16: 208 | M16: 1092 | N16: 1421
A18: Helmholtz-Zentren | B18: i | C18: 13607 | D18: 15313 | E18: 6887 | F18: 7763 | G18: 4774 | H18: 5305 | I18: 1828 | J18: 2108 | K18: 35 | L18: 37 | M18: 83 | N18: 100
B19: w | C19: 3718 | D19: 4528 | E19: 1818 | F19: 2225 | G19: 1041 | H19: 1254 | I19: 817 | J19: 998 | K19: 15 | L19: 16 | M19: 27 | N19: 36
A21: Institute der Max-Planck-Gesellschaft | B21: i | C21: 6463 | D21: 7087 | E21: 5246 | F21: 5722 | G21: 119 | H21: 124 | I21: 261 | J21: 280 | K21: 32 | L21: 34 | M21: 806 | N21: 926
B22: w | C22: 1999 | D22: 2307 | E22: 1493 | F22: 1711 | G22: 31 | H22: 34 | I22: 90 | J22: 102 | K22: 17 | L22: 19 | M22: 368 | N22: 442
A24: Institute der Fraunhofer-Gesellschaft | B24: i | C24: 9276 | D24: 12300 | E24: 2290 | F24: 3058 | G24: 6041 | H24: 7948 | I24: 352 | J24: 460 | K24: 67 | L24: 85 | M24: 526 | N24: 749
B25: w | C25: 2060 | D25: 3022 | E25: 512 | F25: 749 | G25: 1267 | H25: 1854 | I25: 120 | J25: 177 | K25: 23 | L25: 34 | M25: 137 | N25: 208
A27: Leibniz-Gemeinschaft ("Blaue Liste") | B27: i | C27: 5910 | D27: 7254 | E27: 3363 | F27: 4162 | G27: 383 | H27: 438 | I27: 484 | J27: 626 | K27: 277 | L27: 324 | M27: 1403 | N27: 1703
B28: w | C28: 2110 | D28: 2845 | E28: 1084 | F28: 1480 | G28: 104 | H28: 128 | I28: 251 | J28: 362 | K28: 111 | L28: 139 | M28: 559 | N28: 736
A30: Sonstige öffentlich geförderte Organisationen
A31: ohne Erwerbszweck für Wissenschaft,
A32: Forschung und Entwicklung | B32: i | C32: 7381 | D32: 8607 | E32: 2101 | F32: 2434 | G32: 2447 | H32: 2675 | I32: 214 | J32: 274 | K32: 178 | L32: 211 | M32: 2440 | N32: 3013
B33: w | C33: 2339 | D33: 3005 | E33: 512 | F33: 657 | G33: 518 | H33: 622 | I33: 95 | J33: 133 | K33: 79 | L33: 99 | M33: 1135 | N33: 1494
A35: Insgesamt … | B35: i | C35: 49241 | D35: 58098 | E35: 21687 | F35: 25133 | G35: 14555 | H35: 17370 | I35: 3815 | J35: 4538 | K35: 2266 | L35: 2690 | M35: 6918 | N35: 8366
B36: w | C36: 14749 | D36: 18852 | E36: 5898 | F36: 7417 | G36: 3187 | H36: 4169 | I36: 1712 | J36: 2198 | K36: 932 | L36: 1215 | M36: 3019 | N36: 3854
A38: _______
A39: 1) Die Akademien (lt. Akademienprogramm) werden bei den sonstigen öffentlich
A40: geförderten Organisationen ohne Erwerbszweck nachgewiesen.
A43: Statistisches Bundesamt (Destatis)
A44: H204 Forschung und Entwicklung, Kultur, Berufsbildung

Sheet 4.3
A1: Wissenschaftler für Forschung und Entwicklung der wissenschaftlichen Einrichtungen des öffentlichen Sektors 2010
A3: Nach Einrichtungsgruppen, ausgewählten Einrichtungsarten, Geschlecht und Wissenschaftszweigen
A5: Einrichtungsgruppe ------- Einrichtungsart (i = insgesamt, w = weiblich) | C5: Insgesamt | E5: Naturwissen- schaften | G5: Ingenieurwissen- schaften | I5: Humanmedizin | K5: Agrarwissen- schaften | M5: Geisteswissen- schaften und Sozialwissenschaften
C6: VZÄ | D6: HC | E6: VZÄ | F6: HC | G6: VZÄ | H6: HC | I6: VZÄ | J6: HC | K6: VZÄ | L6: HC | M6: VZÄ | N6: HC
A8: Öffentliche Einrichtungen für Wissenschaft
A9: Forschung und Entwicklung und Wissenschaftliche
A10: Bibliotheken und Museen (ohne Leibniz-Gemeinschaft) | B10: i | C10: 6396 | D10: 7383 | E10: 1622 | F10: 1817 | G10: 763 | H10: 853 | I10: 710 | J10: 833 | K10: 1679 | L10: 2024 | M10: 1622 | N10: 1856
B11: w | C11: 2376 | D11: 3001 | E11: 409 | F11: 509 | G11: 210 | H11: 257 | I11: 365 | J11: 463 | K11: 586 | L11: 795 | M11: 806 | N11: 977
A13: Gemeinsam von Bund und Ländern geförderte
A14: Einrichtungen für Wissenschaft, Forschung
A15: und Entwicklung 1) ......................................................................... | B15: i | C15: 37809 | D15: 45089 | E15: 19571 | F15: 22883 | G15: 11546 | H15: 14092 | I15: 3194 | J15: 3852 | K15: 451 | L15: 538 | M15: 3048 | N15: 3723
B16: w | C16: 10909 | D16: 14072 | E16: 5468 | F16: 6902 | G16: 2555 | H16: 3431 | I16: 1469 | J16: 1901 | K16: 185 | L16: 243 | M16: 1231 | N16: 1595
A18: Helmholtz-Zentren | B18: i | C18: 14725 | D18: 16676 | E18: 7391 | F18: 8355 | G18: 5091 | H18: 5658 | I18: 2090 | J18: 2487 | K18: 24 | L18: 26 | M18: 128 | N18: 149
B19: w | C19: 4217 | D19: 5191 | E19: 2046 | F19: 2515 | G19: 1134 | H19: 1375 | I19: 988 | J19: 1240 | K19: 11 | L19: 12 | M19: 38 | N19: 49
A21: Institute der Max-Planck-Gesellschaft | B21: i | C21: 6777 | D21: 7423 | E21: 5519 | F21: 6013 | G21: 84 | H21: 90 | I21: 275 | J21: 292 | K21: 40 | L21: 43 | M21: 859 | N21: 984
B22: w | C22: 2124 | D22: 2436 | E22: 1578 | F22: 1801 | G22: 24 | H22: 28 | I22: 108 | J22: 120 | K22: 19 | L22: 20 | M22: 394 | N22: 468
A24: Institute der Fraunhofer-Gesellschaft | B24: i | C24: 9846 | D24: 12959 | E24: 2987 | F24: 3924 | G24: 5970 | H24: 7870 | I24: 311 | J24: 396 | K24: 95 | L24: 125 | M24: 483 | N24: 644
B25: w | C25: 2162 | D25: 3166 | E25: 631 | F25: 918 | G25: 1280 | H25: 1878 | I25: 95 | J25: 138 | K25: 37 | L25: 55 | M25: 120 | N25: 176
A27: Leibniz-Gemeinschaft ("Blaue Liste") | B27: i | C27: 6462 | D27: 8031 | E27: 3673 | F27: 4591 | G27: 401 | H27: 474 | I27: 517 | J27: 678 | K27: 293 | L27: 343 | M27: 1577 | N27: 1945
B28: w | C28: 2406 | D28: 3279 | E28: 1213 | F28: 1668 | G28: 116 | H28: 151 | I28: 277 | J28: 403 | K28: 119 | L28: 155 | M28: 681 | N28: 903
A30: Sonstige öffentlich geförderte Organisationen
A31: ohne Erwerbszweck für Wissenschaft,
A32: Forschung und Entwicklung | B32: i | C32: 7578 | D32: 8870 | E32: 2040 | F32: 2332 | G32: 2513 | H32: 2757 | I32: 224 | J32: 292 | K32: 213 | L32: 253 | M32: 2589 | N32: 3235
B33: w | C33: 2494 | D33: 3190 | E33: 543 | F33: 682 | G33: 536 | H33: 646 | I33: 102 | J33: 146 | K33: 92 | L33: 116 | M33: 1220 | N33: 1600
A35: Insgesamt … | B35: i | C35: 51783 | D35: 61342 | E35: 23232 | F35: 27032 | G35: 14822 | H35: 17702 | I35: 4128 | J35: 4977 | K35: 2344 | L35: 2815 | M35: 7258 | N35: 8814
B36: w | C36: 15779 | D36: 20263 | E36: 6421 | F36: 8093 | G36: 3301 | H36: 4334 | I36: 1936 | J36: 2510 | K36: 863 | L36: 1154 | M36: 3258 | N36: 4172
A38: _______
A39: 1) Die Akademien (lt. Akademienprogramm) werden bei den sonstigen öffentlich
A40: geförderten Organisationen ohne Erwerbszweck nachgewiesen.
A43: Statistisches Bundesamt (Destatis)
A44: H204 Forschung und Entwicklung, Kultur, Berufsbildung

Sheet 4.4
A1: Wissenschaftler für Forschung und Entwicklung der wissenschaftlichen Einrichtungen des öffentlichen Sektors 2011
A3: Nach Einrichtungsgruppen, ausgewählten Einrichtungsarten, Geschlecht und Wissenschaftszweigen
A5: Einrichtungsgruppe ------- Einrichtungsart (i = insgesamt, w = weiblich) | C5: Insgesamt | E5: Naturwissen- schaften | G5: Ingenieurwissen- schaften | I5: Humanmedizin | K5: Agrarwissen- schaften | M5: Geisteswissen- schaften und Sozialwissenschaften
C6: VZÄ | D6: HC | E6: VZÄ | F6: HC | G6: VZÄ | H6: HC | I6: VZÄ | J6: HC | K6: VZÄ | L6: HC | M6: VZÄ | N6: HC
A8: Öffentliche Einrichtungen für Wissenschaft
A9: Forschung und Entwicklung und Wissenschaftliche
A10: Bibliotheken und Museen (ohne Leibniz-Gemeinschaft) | B10: i | C10: 6580 | D10: 7616 | E10: 1591 | F10: 1785 | G10: 763 | H10: 860 | I10: 697 | J10: 821 | K10: 1793 | L10: 2170 | M10: 1737 | N10: 1980
B11: w | C11: 2516 | D11: 3180 | E11: 404 | F11: 507 | G11: 214 | H11: 269 | I11: 368 | J11: 465 | K11: 634 | L11: 862 | M11: 895 | N11: 1077
A13: Gemeinsam von Bund und Ländern geförderte
A14: Einrichtungen für Wissenschaft, Forschung
A15: und Entwicklung 1) ......................................................................... | B15: i | C15: 39364 | D15: 46954 | E15: 20285 | F15: 23728 | G15: 11845 | H15: 14418 | I15: 3457 | J15: 4154 | K15: 447 | L15: 549 | M15: 3330 | N15: 4106
B16: w | C16: 11505 | D16: 14863 | E16: 5695 | F16: 7211 | G16: 2564 | H16: 3435 | I16: 1611 | J16: 2058 | K16: 187 | L16: 253 | M16: 1447 | N16: 1906
A18: Helmholtz-Zentren | B18: i | C18: 15912 | D18: 18084 | E18: 8049 | F18: 9180 | G18: 5396 | H18: 5984 | I18: 2296 | J18: 2723 | K18: 34 | L18: 37 | M18: 137 | N18: 161
B19: w | C19: 4596 | D19: 5676 | E19: 2237 | F19: 2778 | G19: 1228 | H19: 1480 | I19: 1076 | J19: 1347 | K19: 15 | L19: 17 | M19: 41 | N19: 53
A21: Institute der Max-Planck-Gesellschaft | B21: i | C21: 6792 | D21: 7396 | E21: 5461 | F21: 5908 | G21: 118 | H21: 130 | I21: 295 | J21: 314 | K21: 33 | L21: 35 | M21: 886 | N21: 1009
B22: w | C22: 2121 | D22: 2427 | E22: 1556 | F22: 1764 | G22: 39 | H22: 46 | I22: 118 | J22: 132 | K22: 13 | L22: 15 | M22: 395 | N22: 470
A24: Institute der Fraunhofer-Gesellschaft | B24: i | C24: 10370 | D24: 13620 | E24: 3376 | F24: 4393 | G24: 5919 | H24: 7816 | I24: 322 | J24: 413 | K24: 80 | L24: 110 | M24: 672 | N24: 888
B25: w | C25: 2323 | D25: 3402 | E25: 720 | F25: 1048 | G25: 1179 | H25: 1754 | I25: 105 | J25: 152 | K25: 34 | L25: 52 | M25: 285 | N25: 396
A27: Leibniz-Gemeinschaft ("Blaue Liste") | B27: i | C27: 6290 | D27: 7854 | E27: 3399 | F27: 4248 | G27: 413 | H27: 488 | I27: 543 | J27: 705 | K27: 300 | L27: 367 | M27: 1635 | N27: 2047
B28: w | C28: 2465 | D28: 3358 | E28: 1182 | F28: 1620 | G28: 118 | H28: 155 | I28: 313 | J28: 427 | K28: 126 | L28: 169 | M28: 726 | N28: 986
A30: Sonstige öffentlich geförderte Organisationen
A31: ohne Erwerbszweck für Wissenschaft,
A32: Forschung und Entwicklung | B32: i | C32: 8241 | D32: 9709 | E32: 2540 | F32: 2906 | G32: 2462 | H32: 2742 | I32: 200 | J32: 259 | K32: 206 | L32: 256 | M32: 2833 | N32: 3546
B33: w | C33: 2675 | D33: 3464 | E33: 589 | F33: 745 | G33: 549 | H33: 675 | I33: 90 | J33: 132 | K33: 92 | L33: 124 | M33: 1356 | N33: 1789
A35: Insgesamt … | B35: i | C35: 54185 | D35: 64279 | E35: 24415 | F35: 28419 | G35: 15070 | H35: 18020 | I35: 4353 | J35: 5235 | K35: 2446 | L35: 2975 | M35: 7900 | N35: 9631
B36: w | C36: 16696 | D36: 21507 | E36: 6688 | F36: 8463 | G36: 3328 | H36: 4379 | I36: 2069 | J36: 2654 | K36: 914 | L36: 1239 | M36: 3697 | N36: 4772
A38: _______
A39: 1) Die Akademien (lt. Akademienprogramm) werden bei den sonstigen öffentlich
A40: geförderten Organisationen ohne Erwerbszweck nachgewiesen.
A43: Statistisches Bundesamt (Destatis)
A44: H204 Forschung und Entwicklung, Kultur, Berufsbildung

Sheet 4.5
A1: Wissenschaftler für Forschung und Entwicklung der wissenschaftlichen Einrichtungen des öffentlichen Sektors 2012
A3: Nach Einrichtungsgruppen, ausgewählten Einrichtungsarten, Geschlecht und Wissenschaftszweigen
A5: Einrichtungsgruppe ------- Einrichtungsart (i = insgesamt, w = weiblich) | C5: Insgesamt | E5: Naturwissen- schaften | G5: Ingenieurwissen- schaften | I5: Humanmedizin | K5: Agrarwissen- schaften | M5: Geisteswissen- schaften und Sozialwissenschaften
C6: VZÄ | D6: HC | E6: VZÄ | F6: HC | G6: VZÄ | H6: HC | I6: VZÄ | J6: HC | K6: VZÄ | L6: HC | M6: VZÄ | N6: HC
A8: Öffentliche Einrichtungen für Wissenschaft
A9: Forschung und Entwicklung und Wissenschaftliche
A10: Bibliotheken und Museen (ohne Leibniz-Gemeinschaft) | B10: i | C10: 6510 | D10: 7573 | E10: 1458 | F10: 1641 | G10: 831 | H10: 940 | I10: 676 | J10: 802 | K10: 1754 | L10: 2135 | M10: 1791 | N10: 2055
B11: w | C11: 2544 | D11: 3241 | E11: 367 | F11: 464 | G11: 243 | H11: 304 | I11: 360 | J11: 457 | K11: 643 | L11: 883 | M11: 932 | N11: 1133
A13: Gemeinsam von Bund und Ländern geförderte
A14: Einrichtungen für Wissenschaft, Forschung
A15: und Entwicklung 1) ......................................................................... | B15: i | C15: 40827 | D15: 48176 | E15: 21753 | F15: 25353 | G15: 11139 | H15: 13124 | I15: 3894 | J15: 4687 | K15: 503 | L15: 628 | M15: 3538 | N15: 4384
B16: w | C16: 12297 | D16: 15744 | E16: 6332 | F16: 7978 | G16: 2289 | H16: 2965 | I16: 1850 | J16: 2366 | K16: 220 | L16: 302 | M16: 1605 | N16: 2133
A18: Helmholtz-Zentren | B18: i | C18: 16817 | D18: 19237 | E18: 9153 | F18: 10527 | G18: 4856 | H18: 5374 | I18: 2654 | J18: 3154 | K18: 34 | L18: 37 | M18: 121 | N18: 145
B19: w | C19: 5029 | D19: 6256 | E19: 2646 | F19: 3318 | G19: 1041 | H19: 1259 | I19: 1286 | J19: 1608 | K19: 16 | L19: 18 | M19: 39 | N19: 52
A21: Institute der Max-Planck-Gesellschaft | B21: i | C21: 7395 | D21: 8247 | E21: 5847 | F21: 6473 | G21: 126 | H21: 140 | I21: 312 | J21: 341 | K21: 41 | L21: 45 | M21: 1069 | N21: 1248
B22: w | C22: 2448 | D22: 2889 | E22: 1749 | F22: 2042 | G22: 46 | H22: 54 | I22: 128 | J22: 148 | K22: 16 | L22: 19 | M22: 509 | N22: 625
A24: Institute der Fraunhofer-Gesellschaft | B24: i | C24: 10080 | D24: 12485 | E24: 3312 | F24: 4074 | G24: 5769 | H24: 7162 | I24: 319 | J24: 391 | K24: 87 | L24: 109 | M24: 594 | N24: 750
B25: w | C25: 2177 | D25: 2990 | E25: 697 | F25: 954 | G25: 1091 | H25: 1508 | I25: 100 | J25: 135 | K25: 34 | L25: 47 | M25: 255 | N25: 346
A27: Leibniz-Gemeinschaft ("Blaue Liste") | B27: i | C27: 6535 | D27: 8207 | E27: 3442 | F27: 4280 | G27: 388 | H27: 448 | I27: 609 | J27: 801 | K27: 342 | L27: 438 | M27: 1755 | N27: 2241
B28: w | C28: 2644 | D28: 3609 | E28: 1240 | F28: 1664 | G28: 112 | H28: 144 | I28: 336 | J28: 474 | K28: 154 | L28: 218 | M28: 802 | N28: 1109
A30: Sonstige öffentlich geförderte Organisationen
A31: ohne Erwerbszweck für Wissenschaft,
A32: Forschung und Entwicklung | B32: i | C32: 8259 | D32: 9788 | E32: 2510 | F32: 2880 | G32: 2475 | H32: 2766 | I32: 291 | J32: 372 | K32: 210 | L32: 259 | M32: 2774 | N32: 3510
B33: w | C33: 2730 | D33: 3563 | E33: 591 | F33: 749 | G33: 540 | H33: 666 | I33: 152 | J33: 210 | K33: 93 | L33: 124 | M33: 1353 | N33: 1814
A35: Insgesamt … | B35: i | C35: 55597 | D35: 65538 | E35: 25722 | F35: 29874 | G35: 14445 | H35: 16830 | I35: 4861 | J35: 5862 | K35: 2467 | L35: 3023 | M35: 8102 | N35: 9949
B36: w | C36: 17571 | D36: 22548 | E36: 7291 | F36: 9191 | G36: 3073 | H36: 3936 | I36: 2361 | J36: 3033 | K36: 956 | L36: 1308 | M36: 3890 | N36: 5080
A38: _______
A39: 1) Die Akademien (lt. Akademienprogramm) werden bei den sonstigen öffentlich
A40: geförderten Organisationen ohne Erwerbszweck nachgewiesen.
A43: Statistisches Bundesamt (Destatis)
A44: H204 Forschung und Entwicklung, Kultur, Berufsbildung

Sheet 4.6
A1: Wissenschaftler für Forschung und Entwicklung der wissenschaftlichen Einrichtungen des öffentlichen Sektors 2013
A3: Nach Einrichtungsgruppen, ausgewählten Einrichtungsarten, Geschlecht und Wissenschaftszweigen
A5: Einrichtungsgruppe ------- Einrichtungsart (i = insgesamt, w = weiblich) | C5: Insgesamt | E5: Naturwissen- schaften und Agrarwissenschaften | G5: Ingenieurwissen- schaften | I5: Humanmedizin | K5: Geisteswissen- schaften und Sozialwissenschaften
C6: VZÄ | D6: HC | E6: VZÄ | F6: HC | G6: VZÄ | H6: HC | I6: VZÄ | J6: HC | K6: VZÄ | L6: HC
A8: Öffentliche Einrichtungen für Wissenschaft
A9: Forschung und Entwicklung und Wissenschaftliche
A10: Bibliotheken und Museen (ohne Leibniz-Gemeinschaft) | B10: i | C10: 6394.235 | D10: 7457.07 | E10: 3135.592072 | F10: 3674.694843 | G10: 813.6691462 | H10: 929.0084445 | I10: 594.5236981 | J10: 723.913479 | K10: 1850.450083 | L10: 2129.453234
B11: w | C11: 2558.375 | D11: 3264.34 | E11: 1039.324006 | F11: 1368.495402 | G11: 237.0034218 | H11: 299.7501435 | I11: 297.6231176 | J11: 392.0365894 | K11: 984.4244542 | L11: 1204.057866
A13: Gemeinsam von Bund und Ländern geförderte
A14: Einrichtungen für Wissenschaft, Forschung
A15: und Entwicklung 1) ..................................................................... | B15: i | C15: 42296.255 | D15: 49267.54998 | E15: 23451.8772 | F15: 27180.31057 | G15: 11564.77987 | H15: 13187.61593 | I15: 4011.28208 | J15: 4876.235815 | K15: 3268.315853 | L15: 4023.387672
B16: w | C16: 12857.05502 | D16: 16305.88001 | E16: 7058.599685 | F16: 8866.615566 | G16: 2486.111251 | H16: 3134.940149 | I16: 1871.153861 | J16: 2411.88902 | K16: 1441.19022 | L16: 1892.435274
A18: Helmholtz-Zentren | B18: i | C18: 17893.5 | D18: 20537 | E18: 9953.07834 | F18: 11444.85725 | G18: 5188.703146 | H18: 5778.301626 | I18: 2629.829547 | J18: 3166.38962 | K18: 121.8889662 | L18: 147.4515031
B19: w | C19: 5442.5 | D19: 6771 | E19: 2999.054204 | F19: 3733.355465 | G19: 1152.578353 | H19: 1413.569776 | I19: 1249.539533 | J19: 1569.24274 | K19: 41.32791003 | L19: 54.83201937
A21: Institute der Max-Planck-Gesellschaft | B21: i | C21: 7438.000001 | D21: 8285.999985 | E21: 6020.708145 | F21: 6667.419606 | G21: 109.5605345 | H21: 123.1992766 | I21: 305.4232691 | J21: 335.0030099 | K21: 1002.308052 | L21: 1160.378092
B22: w | C22: 2535.000017 | D22: 2979.000009 | E22: 1874.498809 | F22: 2186.079643 | G22: 34.59610995 | H22: 42.0146773 | I22: 133.5894289 | J22: 153.8567957 | K22: 492.3156688 | L22: 597.0488929
A24: Institute der Fraunhofer-Gesellschaft | B24: i | C24: 9997 | D24: 11681 | E24: 3463.79372 | F24: 4053.409319 | G24: 5746.105554 | H24: 6678.223041 | I24: 437.1116309 | J24: 524.5680375 | K24: 349.9890954 | L24: 424.7996028
B25: w | C25: 2080 | D25: 2715 | E25: 726.4676518 | F25: 953.5997376 | G25: 1125.713987 | H25: 1457.556315 | I25: 134.8410821 | J25: 181.0500325 | K25: 92.97727916 | L25: 122.793915
A27: Leibniz-Gemeinschaft ("Blaue Liste") | B27: i | C27: 6967.755 | D27: 8763.55 | E27: 4014.296995 | F27: 5014.624395 | G27: 520.4106341 | H27: 607.8919841 | I27: 638.9176325 | J27: 850.2751472 | K27: 1794.129739 | L27: 2290.758474
B28: w | C28: 2799.555 | D28: 3840.88 | E28: 1458.57902 | F28: 1993.58072 | G28: 173.2228011 | H28: 221.7993814 | I28: 353.1838163 | J28: 507.7394523 | K28: 814.5693625 | L28: 1117.760447
A30: Sonstige öffentlich geförderte Organisationen
A31: ohne Erwerbszweck für Wissenschaft,
A32: Forschung und Entwicklung | B32: i | C32: 8064.428 | D32: 9539.63 | E32: 2494.935684 | F32: 2859.317605 | G32: 2466.451491 | H32: 2727.754703 | I32: 241.9319005 | J32: 303.515644 | K32: 2861.108924 | L32: 3649.042047
B33: w | C33: 2737.334 | D33: 3567.134 | E33: 646.216433 | F33: 816.2469701 | G33: 563.6053546 | H33: 685.0957033 | I33: 122.7582929 | J33: 166.5299966 | K33: 1404.75392 | L33: 1899.26133
A35: Insgesamt … | B35: i | C35: 56754.918 | D35: 66264.24998 | E35: 29082.40496 | F35: 33714.32302 | G35: 14844.90051 | H35: 16844.37908 | I35: 4847.737678 | J35: 5903.664938 | K35: 7979.87486 | L35: 9801.882953
B36: w | C36: 18152.76402 | D36: 23137.35401 | E36: 8744.140124 | F36: 11051.35794 | G36: 3286.720027 | H36: 4119.785996 | I36: 2291.535271 | J36: 2970.455606 | K36: 3830.368594 | L36: 4995.754469
A38: _______
A39: 1) Die Akademien (lt. Akademienprogramm) werden bei den sonstigen öffentlich
A40: geförderten Organisationen ohne Erwerbszweck nachgewiesen.
A43: Statistisches Bundesamt (Destatis)
A44: H204 Forschung und Entwicklung, Kultur, Berufsbildung

Sheet 5. Die 4 großen AUF

Sheet 5.1
A1: Wissenschaftler der wissenschaftlichen Einrichtungen des öffentlichen Sektors
A2: nach Altersklasse, ausgewählte Einrichtungsarten, Wissenschaftszweigen und Geschlecht
A4: ohne Promotion bis 34 Jahre | C4: Insgesamt | E4: Naturwissenschaften | G4: Ingenieurwissenschaften | I4: Humanmedizin | K4: Agrarwissenschaften | M4: Geisteswissenschaften | O4: Sozialwissenschaften
C5: männlich | D5: weiblich | E5: männlich | F5: weiblich | G5: männlich | H5: weiblich | I5: männlich | J5: weiblich | K5: männlich | L5: weiblich | M5: männlich | N5: weiblich | O5: männlich | P5: weiblich
C6: HC
A8: 2008
B9: Institute der Fraunhofer-Gesellschaft | C9: 4035 | D9: 1465 | E9: 1122 | F9: 382 | G9: 2702 | H9: 915 | I9: 68 | J9: 56 | K9: . | L9: . | M9: . | N9: . | O9: 124 | P9: 75
B10: Helmholtz-Zentren | C10: 2509 | D10: 1612 | E10: 1232 | F10: 855 | G10: 987 | H10: 385 | I10: 272 | J10: 353 | K10: 4 | L10: 6 | M10: 0 | N10: 0 | O10: 14 | P10: 13
B11: Leibniz-Gemeinschaft ("Blaue Liste") | C11: 1118 | D11: 1054 | E11: 720 | F11: 601 | G11: 89 | H11: 39 | I11: 16 | J11: 59 | K11: 32 | L11: 93 | M11: 44 | N11: 104 | O11: 217 | P11: 159
B12: Institute der Max-Planck-Gesellschaft | C12: 1420 | D12: 918 | E12: 1226 | F12: 707 | G12: 28 | H12: 13 | I12: 35 | J12: 39 | K12: . | L12: . | M12: . | N12: . | O12: 87 | P12: 87
B13: Insgesamt … | C13: 9082 | D13: 5049 | E13: 4300 | F13: 2545 | G13: 3805 | H13: 1352 | I13: 390 | J13: 506 | K13: 56 | L13: 137 | M13: 89 | N13: 175 | O13: 441 | P13: 334
A15: 2009
B16: Institute der Fraunhofer-Gesellschaft | C16: 4955 | D16: 1687 | E16: 1230 | F16: 393 | G16: 3206 | H16: 1043 | I16: 117 | J16: 91 | K16: 14 | L16: 15 | M16: 257 | N16: 68 | O16: 132 | P16: 77
B17: Helmholtz-Zentren | C17: 2935 | D17: 1893 | E17: 1380 | F17: 913 | G17: 1158 | H17: 484 | I17: 372 | J17: 470 | K17: 8 | L17: 10 | M17: 0 | N17: 0 | O17: 17 | P17: 15
B18: Leibniz-Gemeinschaft ("Blaue Liste") | C18: 1357 | D18: 1298 | E18: 841 | F18: 691 | G18: 114 | H18: 49 | I18: 65 | J18: 195 | K18: 27 | L18: 32 | M18: 69 | N18: 138 | O18: 241 | P18: 193
B19: Institute der Max-Planck-Gesellschaft | C19: 1448 | D19: 1019 | E19: 1229 | F19: 770 | G19: 34 | H19: 17 | I19: 53 | J19: 46 | K19: 6 | L19: 10 | M19: 40 | N19: 75 | O19: 86 | P19: 102
B20: Insgesamt … | C20: 10695 | D20: 5897 | E20: 4679 | F20: 2766 | G20: 4513 | H20: 1593 | I20: 607 | J20: 802 | K20: 54 | L20: 67 | M20: 366 | N20: 281 | O20: 476 | P20: 387
A22: 2010
B23: Institute der Fraunhofer-Gesellschaft | C23: 5343 | D23: 1815 | E23: 1629 | F23: 506 | G23: 3295 | H23: 1090 | I23: 105 | J23: 68 | K23: 21 | L23: 27 | M23: 119 | N23: 36 | O23: 173 | P23: 88
B24: Helmholtz-Zentren | C24: 3310 | D24: 2138 | E24: 1524 | F24: 1011 | G24: 1325 | H24: 547 | I24: 430 | J24: 553 | K24: 5 | L24: 6 | M24: 0 | N24: 0 | O24: 27 | P24: 22
B25: Leibniz-Gemeinschaft ("Blaue Liste") | C25: 1535 | D25: 1576 | E25: 965 | F25: 813 | G25: 119 | H25: 71 | I25: 68 | J25: 223 | K25: 36 | L25: 41 | M25: 88 | N25: 202 | O25: 259 | P25: 226
B26: Institute der Max-Planck-Gesellschaft | C26: 1530 | D26: 1016 | E26: 1293 | F26: 758 | G26: 27 | H26: 14 | I26: 51 | J26: 52 | K26: 9 | L26: 11 | M26: 47 | N26: 70 | O26: 103 | P26: 110
B27: Insgesamt … | C27: 11718 | D27: 6545 | E27: 5411 | F27: 3089 | G27: 4765 | H27: 1721 | I27: 655 | J27: 896 | K27: 70 | L27: 85 | M27: 255 | N27: 308 | O27: 562 | P27: 446
A29: 2011
B30: Institute der Fraunhofer-Gesellschaft | C30: 5571 | D30: 1990 | E30: 1789 | F30: 594 | G30: 3419 | H30: 1109 | I30: 104 | J30: 85 | K30: 21 | L30: 30 | M30: 59 | N30: 67 | O30: 178 | P30: 104
B31: Helmholtz-Zentren | C31: 3663 | D31: 3653 | E31: 1703 | F31: 1814 | G31: 1464 | H31: 609 | I31: 459 | J31: 717 | K31: 6 | L31: 51 | M31: 0 | N31: 205 | O31: 30 | P31: 257
B32: Leibniz-Gemeinschaft ("Blaue Liste") | C32: 1415 | D32: 87 | E32: 831 | F32: 54 | G32: 116 | H32: 5 | I32: 58 | J32: 7 | K32: 47 | L32: 0 | M32: 87 | N32: 11 | O32: 276 | P32: 10
B33: Institute der Max-Planck-Gesellschaft | C33: 1429 | D33: 965 | E33: 1206 | F33: 713 | G33: 30 | H33: 18 | I33: 50 | J33: 52 | K33: 6 | L33: 5 | M33: 47 | N33: 75 | O33: 90 | P33: 102
B34: Insgesamt … | C34: 12078 | D34: 6695 | E34: 5530 | F34: 3175 | G34: 5030 | H34: 1742 | I34: 672 | J34: 861 | K34: 80 | L34: 87 | M34: 194 | N34: 358 | O34: 573 | P34: 473
A36: 2012
B37: Institute der Fraunhofer-Gesellschaft | C37: 4549 | D37: 1425 | E37: 1442 | F37: 430 | G37: 2841 | H37: 799 | I37: 85 | J37: 57 | K37: 17 | L37: 21 | M37: 25 | N37: 47 | O37: 138 | P37: 71
B38: Helmholtz-Zentren | C38: 3825 | D38: 2409 | E38: 1964 | F38: 1299 | G38: 1307 | H38: 429 | I38: 517 | J38: 649 | K38: 6 | L38: 9 | M38: 0 | N38: 0 | O38: 30 | P38: 24
B39: Leibniz-Gemeinschaft ("Blaue Liste") | C39: 1459 | D39: 1624 | E39: 841 | F39: 766 | G39: 90 | H39: 55 | I39: 80 | J39: 204 | K39: 61 | L39: 75 | M39: 109 | N39: 279 | O39: 278 | P39: 245
B40: Institute der Max-Planck-Gesellschaft | C40: 1679 | D40: 1122 | E40: 1424 | F40: 825 | G40: 32 | H40: 19 | I40: 52 | J40: 60 | K40: 6 | L40: 6 | M40: 60 | N40: 85 | O40: 104 | P40: 126
B41: Insgesamt … | C41: 11512 | D41: 6580 | E41: 5671 | F41: 3319 | G41: 4271 | H41: 1302 | I41: 736 | J41: 971 | K41: 91 | L41: 110 | M41: 194 | N41: 412 | O41: 550 | P41: 466
A43: 2013
B44: Institute der Fraunhofer-Gesellschaft | C44: 3761 | D44: 1094 | E44: 1250 | F44: 373 | G44: 2232 | H44: 578 | I44: 104 | J44: 71 | K44: 6 | L44: 12 | M44: 0 | N44: 0 | O44: 169 | P44: 60
B45: Helmholtz-Zentren | C45: 4168 | D45: 2719 | E45: 2133 | F45: 1485 | G45: 1417 | H45: 480 | I45: 580 | J45: 717 | K45: . | L45: . | M45: . | N45: . | O45: 28 | P45: 23
B46: Leibniz-Gemeinschaft ("Blaue Liste") | C46: 1581 | D46: 1723 | E46: 904 | F46: 843 | G46: 103 | H46: 64 | I46: 102 | J46: 226 | K46: 60 | L46: 66 | M46: 122 | N46: 281 | O46: 290 | P46: 244
B47: Institute der Max-Planck-Gesellschaft | C47: 1571 | D47: 1145 | E47: 1335 | F47: 855 | G47: 30 | H47: 17 | I47: 46 | J47: 73 | K47: . | L47: . | M47: . | N47: . | O47: 103 | P47: 110
B48: Insgesamt … | C48: 11081 | D48: 6681 | E48: 5622 | F48: 3556 | G48: 3782 | H48: 1140 | I48: 832 | J48: 1087 | K48: 78 | L48: 94 | M48: 176 | N48: 367 | O48: 591 | P48: 437
A49: _______
A50: Durch verfahrensbedingte Anpassungen können einzelne Summen voneinander abweichen.
A52: Statistisches Bundesamt (Destatis), H204 Forschung und Entwicklung

Sheet 5.2
A1: Wissenschaftler der wissenschaftlichen Einrichtungen des öffentlichen Sektors
A2: nach Altersklasse, ausgewählte Einrichtungsarten, Wissenschaftszweigen und Geschlecht
A4: mit Promotion bis 44 Jahre | C4: Insgesamt | E4: Naturwissenschaften | G4: Ingenieurwissenschaften | I4: Humanmedizin | K4: Agrarwissenschaften | M4: Geisteswissenschaften | O4: Sozialwissenschaften
C5: männlich | D5: weiblich | E5: männlich | F5: weiblich | G5: männlich | H5: weiblich | I5: männlich | J5: weiblich | K5: männlich | L5: weiblich | M5: männlich | N5: weiblich | O5: männlich | P5: weiblich
C6: HC
A8: 2008
B9: Institute der Fraunhofer-Gesellschaft | C9: 1009 | D9: 189 | E9: 277 | F9: 61 | G9: 668 | H9: 96 | I9: 25 | J9: 14 | K9: 19 | L9: 10 | M9: 0 | N9: 0 | O9: 19 | P9: 7
B10: Helmholtz-Zentren | C10: 1994 | D10: 864 | E10: 1018 | F10: 472 | G10: 718 | H10: 217 | I10: 237 | J10: 164 | K10: 4 | L10: 3 | M10: 0 | N10: 0 | O10: 16 | P10: 8
B11: Leibniz-Gemeinschaft ("Blaue Liste") | C11: 820 | D11: 439 | E11: 564 | F11: 262 | G11: 17 | H11: 7 | I11: 36 | J11: 34 | K11: . | L11: . | M11: . | N11: . | O11: 103 | P11: 46
B12: Institute der Max-Planck-Gesellschaft | C12: 1599 | D12: 673 | E12: 1372 | F12: 515 | G12: 35 | H12: 8 | I12: 51 | J12: 37 | K12: . | L12: . | M12: . | N12: . | O12: 85 | P12: 57
B13: Insgesamt … | C13: 5422 | D13: 2165 | E13: 3230 | F13: 1310 | G13: 1437 | H13: 329 | I13: 350 | J13: 249 | K13: 57 | L13: 55 | M13: 125 | N13: 104 | O13: 223 | P13: 118
A15: 2009
B16: Institute der Fraunhofer-Gesellschaft | C16: 1166 | D16: 254 | E16: 310 | F16: 77 | G16: 751 | H16: 127 | I16: 57 | J16: 30 | K16: . | L16: . | M16: . | N16: . | O16: . | P16: .
B17: Helmholtz-Zentren | C17: 1597 | D17: 680 | E17: 962 | F17: 394 | G17: 361 | H17: 102 | I17: 256 | J17: 176 | K17: . | L17: . | M17: 0 | N17: 0 | O17: . | P17: .
B18: Leibniz-Gemeinschaft ("Blaue Liste") | C18: 830 | D18: 513 | E18: 523 | F18: 283 | G18: 36 | H18: 16 | I18: 67 | J18: 66 | K18: 23 | L18: 24 | M18: 79 | N18: 65 | O18: 102 | P18: 59
B19: Institute der Max-Planck-Gesellschaft | C19: 1656 | D19: 709 | E19: 1391 | F19: 547 | G19: 32 | H19: 10 | I19: 71 | J19: 36 | K19: . | L19: . | M19: . | N19: . | O19: 93 | P19: 49
B20: Insgesamt … | C20: 5249 | D20: 2156 | E20: 3186 | F20: 1300 | G20: 1179 | H20: 255 | I20: 452 | J20: 309 | K20: 40 | L20: 36 | M20: 160 | N20: 129 | O20: 232 | P20: 127
A22: 2010
B23: Institute der Fraunhofer-Gesellschaft | C23: 1204 | D23: 244 | E23: 380 | F23: 81 | G23: 700 | H23: 115 | I23: 53 | J23: 25 | K23: . | L23: . | M23: . | N23: . | O23: 26 | P23: 12
B24: Helmholtz-Zentren | C24: 1784 | D24: 927 | E24: 1069 | F24: 546 | G24: 358 | H24: 105 | I24: 332 | J24: 262 | K24: 4 | L24: 4 | M24: 0 | N24: 0 | O24: 22 | P24: 10
B25: Leibniz-Gemeinschaft ("Blaue Liste") | C25: 847 | D25: 571 | E25: 533 | F25: 311 | G25: 25 | H25: 11 | I25: 65 | J25: 72 | K25: 22 | L25: 27 | M25: 70 | N25: 68 | O25: 132 | P25: 83
B26: Institute der Max-Planck-Gesellschaft | C26: 1761 | D26: 807 | E26: 1495 | F26: 630 | G26: 21 | H26: 7 | I26: 68 | J26: 43 | K26: . | L26: . | M26: . | N26: . | O26: 100 | P26: 51
B27: Insgesamt … | C27: 5596 | D27: 2549 | E27: 3477 | F27: 1567 | G27: 1104 | H27: 238 | I27: 517 | J27: 403 | K27: 44 | L27: 45 | M27: 174 | N27: 140 | O27: 280 | P27: 155
A29: 2011
B30: Institute der Fraunhofer-Gesellschaft | C30: 1172 | D30: 243 | E30: 406 | F30: 85 | G30: 660 | H30: 114 | I30: 54 | J30: 21 | K30: 8 | L30: 6 | M30: 20 | N30: 8 | O30: 25 | P30: 8
B31: Helmholtz-Zentren | C31: 2371 | D31: 1240 | E31: 1289 | F31: 635 | G31: 693 | H31: 275 | I31: 363 | J31: 314 | K31: 5 | L31: 5 | M31: 0 | N31: 0 | O31: 22 | P31: 11
B32: Leibniz-Gemeinschaft ("Blaue Liste") | C32: 1017 | D32: 748 | E32: 635 | F32: 355 | G32: 46 | H32: 22 | I32: 70 | J32: 123 | K32: 20 | L32: 32 | M32: 79 | N32: 89 | O32: 167 | P32: 127
B33: Institute der Max-Planck-Gesellschaft | C33: 1810 | D33: 825 | E33: 1525 | F33: 643 | G33: 25 | H33: 10 | I33: 70 | J33: 46 | K33: 5 | L33: 3 | M33: 79 | N33: 66 | O33: 106 | P33: 57
B34: Insgesamt … | C34: 6370 | D34: 3056 | E34: 3855 | F34: 1718 | G34: 1424 | H34: 422 | I34: 556 | J34: 504 | K34: 38 | L34: 46 | M34: 178 | N34: 163 | O34: 319 | P34: 204
A36: 2012
B37: Institute der Fraunhofer-Gesellschaft | C37: 1296 | D37: 320 | E37: 458 | F37: 108 | G37: 729 | H37: 147 | I37: 63 | J37: 33 | K37: 11 | L37: 10 | M37: 7 | N37: 10 | O37: 28 | P37: 12
B38: Helmholtz-Zentren | C38: 2590 | D38: 1481 | E38: 1456 | F38: 759 | G38: 691 | H38: 295 | I38: 419 | J38: 410 | K38: 4 | L38: 6 | M38: 0 | N38: 0 | O38: 20 | P38: 10
B39: Leibniz-Gemeinschaft ("Blaue Liste") | C39: 1066 | D39: 819 | E39: 593 | F39: 366 | G39: 62 | H39: 21 | I39: 87 | J39: 154 | K39: 28 | L39: 43 | M39: 104 | N39: 109 | O39: 192 | P39: 127
B40: Institute der Max-Planck-Gesellschaft | C40: 1790 | D40: 798 | E40: 1501 | F40: 613 | G40: 20 | H40: 12 | I40: 67 | J40: 46 | K40: 6 | L40: 3 | M40: 81 | N40: 62 | O40: 114 | P40: 62
B41: Insgesamt … | C41: 6742 | D41: 3418 | E41: 4008 | F41: 1846 | G41: 1503 | H41: 474 | I41: 636 | J41: 643 | K41: 49 | L41: 63 | M41: 192 | N41: 181 | O41: 354 | P41: 211
A43: 2013
B44: Institute der Fraunhofer-Gesellschaft | C44: 1256 | D44: 331 | E44: 464 | F44: 112 | G44: 678 | H44: 160 | I44: 76 | J44: 38 | K44: 7 | L44: 7 | M44: 0 | N44: 0 | O44: 31 | P44: 15
B45: Helmholtz-Zentren | C45: 2849 | D45: 1676 | E45: 1645 | F45: 907 | G45: 769 | H45: 330 | I45: 410 | J45: 419 | K45: . | L45: . | M45: . | N45: . | O45: 18 | P45: 10
B46: Leibniz-Gemeinschaft ("Blaue Liste") | C46: 1133 | D46: 841 | E46: 635 | F46: 382 | G46: 75 | H46: 30 | I46: 74 | J46: 150 | K46: 19 | L46: 36 | M46: 96 | N46: 103 | O46: 234 | P46: 140
B47: Institute der Max-Planck-Gesellschaft | C47: 1766 | D47: 838 | E47: 1518 | F47: 657 | G47: 22 | H47: 10 | I47: 67 | J47: 47 | K47: . | L47: . | M47: . | N47: . | O47: 83 | P47: 62
B48: Insgesamt … | C48: 7004 | D48: 3686 | E48: 4262 | F48: 2057 | G48: 1545 | H48: 530 | I48: 627 | J48: 654 | K48: 37 | L48: 55 | M48: 168 | N48: 163 | O48: 366 | P48: 226
A49: _______
A50: Durch verfahrensbedingte Anpassungen können einzelne Summen voneinander abweichen.
A52: Statistisches Bundesamt (Destatis), H204 Forschung und Entwicklung

Sheet 5.3
A1: Wissenschaftler der wissenschaftlichen Einrichtungen des öffentlichen Sektors
A2: nach Altersklasse, ausgewählte Einrichtungsarten, Wissenschaftszweigen und Geschlecht
A4: mit Promotion befristet | C4: Insgesamt | E4: Naturwissenschaften | G4: Ingenieurwissenschaften | I4: Humanmedizin | K4: Agrarwissenschaften | M4: Geisteswissenschaften | O4: Sozialwissenschaften
C5: männlich | D5: weiblich | E5: männlich | F5: weiblich | G5: männlich | H5: weiblich | I5: männlich | J5: weiblich | K5: männlich | L5: weiblich | M5: männlich | N5: weiblich | O5: männlich | P5: weiblich
C6: HC
A8: 2008
B9: Institute der Fraunhofer-Gesellschaft | C9: 639 | D9: 132 | E9: 171 | F9: 40 | G9: 413 | H9: 70 | I9: 20 | J9: 9 | K9: 20 | L9: 9 | M9: 0 | N9: 0 | O9: 15 | P9: 4
B10: Helmholtz-Zentren | C10: 1208 | D10: 554 | E10: 705 | F10: 338 | G10: 350 | H10: 122 | I10: 134 | J10: 85 | K10: 4 | L10: 3 | M10: 0 | N10: 0 | O10: 15 | P10: 7
B11: Leibniz-Gemeinschaft ("Blaue Liste") | C11: 699 | D11: 386 | E11: 488 | F11: 240 | G11: 16 | H11: 5 | I11: 30 | J11: 30 | K11: . | L11: . | M11: . | N11: . | O11: 76 | P11: 30
B12: Institute der Max-Planck-Gesellschaft | C12: 1565 | D12: 695 | E12: 1343 | F12: 531 | G12: 31 | H12: 4 | I12: 44 | J12: 36 | K12: . | L12: . | M12: . | N12: . | O12: 88 | P12: 66
B13: Insgesamt … | C13: 4111 | D13: 1767 | E13: 2707 | F13: 1148 | G13: 810 | H13: 199 | I13: 228 | J13: 160 | K13: 55 | L13: 54 | M13: 117 | N13: 98 | O13: 193 | P13: 107
A15: 2009
B16: Institute der Fraunhofer-Gesellschaft | C16: 825 | D16: 203 | E16: 222 | F16: 62 | G16: 520 | H16: 100 | I16: 51 | J16: 23 | K16: . | L16: . | M16: 8 | N16: 4 | O16: . | P16: .
B17: Helmholtz-Zentren | C17: 1125 | D17: 447 | E17: 698 | F17: 277 | G17: 243 | H17: 64 | I17: 169 | J17: 100 | K17: . | L17: . | M17: 0 | N17: 0 | O17: . | P17: .
B18: Leibniz-Gemeinschaft ("Blaue Liste") | C18: 773 | D18: 485 | E18: 485 | F18: 279 | G18: 30 | H18: 14 | I18: 76 | J18: 66 | K18: 15 | L18: 22 | M18: 72 | N18: 57 | O18: 95 | P18: 47
B19: Institute der Max-Planck-Gesellschaft | C19: 1661 | D19: 727 | E19: 1395 | F19: 557 | G19: 30 | H19: 6 | I19: 64 | J19: 35 | K19: 5 | L19: 6 | M19: 71 | N19: 64 | O19: 96 | P19: 59
B20: Insgesamt … | C20: 4384 | D20: 1862 | E20: 2800 | F20: 1175 | G20: 823 | H20: 184 | I20: 360 | J20: 224 | K20: 29 | L20: 33 | M20: 150 | N20: 125 | O20: 222 | P20: 121
A22: 2010
B23: Institute der Fraunhofer-Gesellschaft | C23: 849 | D23: 197 | E23: 269 | F23: 68 | G23: 493 | H23: 93 | I23: 42 | J23: 20 | K23: . | L23: . | M23: . | N23: . | O23: 19 | P23: 8
B24: Helmholtz-Zentren | C24: 1341 | D24: 681 | E24: 833 | F24: 420 | G24: 236 | H24: 71 | I24: 249 | J24: 177 | K24: 3 | L24: 4 | M24: 0 | N24: 0 | O24: 20 | P24: 9
B25: Leibniz-Gemeinschaft ("Blaue Liste") | C25: 805 | D25: 529 | E25: 512 | F25: 303 | G25: 21 | H25: 9 | I25: 74 | J25: 78 | K25: . | L25: . | M25: . | N25: . | O25: 115 | P25: 57
B26: Institute der Max-Planck-Gesellschaft | C26: 1753 | D26: 817 | E26: 1493 | F26: 634 | G26: 18 | H26: 4 | I26: 61 | J26: 43 | K26: 7 | L26: 6 | M26: 74 | N26: 71 | O26: 100 | P26: 58
B27: Insgesamt … | C27: 4748 | D27: 2224 | E27: 3106 | F27: 1425 | G27: 768 | H27: 178 | I27: 426 | J27: 318 | K27: 38 | L27: 40 | M27: 157 | N27: 131 | O27: 253 | P27: 132
A29: 2011
B30: Institute der Fraunhofer-Gesellschaft | C30: 861 | D30: 198 | E30: 285 | F30: 71 | G30: 488 | H30: 96 | I30: 52 | J30: 17 | K30: 8 | L30: 5 | M30: 10 | N30: 3 | O30: 18 | P30: 7
B31: Helmholtz-Zentren | C31: 1833 | D31: 935 | E31: 996 | F31: 477 | G31: 531 | H31: 224 | I31: 280 | J31: 219 | K31: 5 | L31: 5 | M31: 0 | N31: 0 | O31: 21 | P31: 10
B32: Leibniz-Gemeinschaft ("Blaue Liste") | C32: 988 | D32: 697 | E32: 640 | F32: 346 | G32: 46 | H32: 19 | I32: 82 | J32: 128 | K32: 18 | L32: 34 | M32: 72 | N32: 91 | O32: 130 | P32: 80
B33: Institute der Max-Planck-Gesellschaft | C33: 1809 | D33: 827 | E33: 1539 | F33: 646 | G33: 20 | H33: 6 | I33: 61 | J33: 46 | K33: 5 | L33: 3 | M33: 77 | N33: 62 | O33: 107 | P33: 63
B34: Insgesamt … | C34: 5491 | D34: 2657 | E34: 3459 | F34: 1540 | G34: 1085 | H34: 345 | I34: 475 | J34: 409 | K34: 36 | L34: 47 | M34: 159 | N34: 156 | O34: 277 | P34: 159
A36: 2012
B37: Institute der Fraunhofer-Gesellschaft | C37: 968 | D37: 268 | E37: 329 | F37: 90 | G37: 543 | H37: 127 | I37: 66 | J37: 30 | K37: . | L37: . | M37: . | N37: . | O37: 19 | P37: 9
B38: Helmholtz-Zentren | C38: 2061 | D38: 1152 | E38: 1159 | F38: 589 | G38: 552 | H38: 248 | I38: 328 | J38: 300 | K38: 4 | L38: 6 | M38: 0 | N38: 0 | O38: 18 | P38: 9
B39: Leibniz-Gemeinschaft ("Blaue Liste") | C39: 1076 | D39: 812 | E39: 620 | F39: 365 | G39: 56 | H39: 21 | I39: 110 | J39: 169 | K39: 25 | L39: 46 | M39: 98 | N39: 112 | O39: 168 | P39: 99
B40: Institute der Max-Planck-Gesellschaft | C40: 1805 | D40: 806 | E40: 1523 | F40: 623 | G40: 17 | H40: 8 | I40: 62 | J40: 44 | K40: . | L40: . | M40: . | N40: . | O40: 115 | P40: 69
B41: Insgesamt … | C41: 5910 | D41: 3038 | E41: 3631 | F41: 1667 | G41: 1167 | H41: 404 | I41: 566 | J41: 543 | K41: 44 | L41: 64 | M41: 182 | N41: 174 | O41: 319 | P41: 186
A43: 2013
B44: Institute der Fraunhofer-Gesellschaft | C44: 946 | D44: 275 | E44: 327 | F44: 93 | G44: 517 | H44: 132 | I44: 77 | J44: 34 | K44: 6 | L44: 6 | M44: 0 | N44: 0 | O44: 18 | P44: 11
B45: Helmholtz-Zentren | C45: 2332 | D45: 1329 | E45: 1389 | F45: 753 | G45: 588 | H45: 269 | I45: 329 | J45: 289 | K45: . | L45: . | M45: . | N45: . | O45: 18 | P45: 9
B46: Leibniz-Gemeinschaft ("Blaue Liste") | C46: 1167 | D46: 827 | E46: 678 | F46: 394 | G46: 78 | H46: 27 | I46: 91 | J46: 160 | K46: 20 | L46: 38 | M46: 93 | N46: 105 | O46: 207 | P46: 104
B47: Institute der Max-Planck-Gesellschaft | C47: 1794 | D47: 837 | E47: 1549 | F47: 660 | G47: 21 | H47: 8 | I47: 62 | J47: 41 | K47: . | L47: . | M47: . | N47: . | O47: 86 | P47: 67
B48: Insgesamt … | C48: 6239 | D48: 3268 | E48: 3943 | F48: 1899 | G48: 1205 | H48: 435 | I48: 559 | J48: 524 | K48: 37 | L48: 55 | M48: 166 | N48: 164 | O48: 329 | P48: 191
A49: _______
A50: Durch verfahrensbedingte Anpassungen können einzelne Summen voneinander abweichen.
A52: Statistisches Bundesamt (Destatis), H204 Forschung und Entwicklung

Sheet 5.4
A1: Wissenschaftler der wissenschaftlichen Einrichtungen des öffentlichen Sektors
A2: nach Altersklasse, ausgewählte Einrichtungsarten und Wissenschaftszweigen
A4: ohne Pormotion bis 34 Jahre | C4: Insgesamt | E4: Naturwissenschaften | G4: Ingenieurwissenschaften | I4: Humanmedizin | K4: Agrarwissenschaften | M4: Geisteswissenschaften | O4: Sozialwissenschaften
C5: VZÄ | D5: HC | E5: VZÄ | F5: HC | G5: VZÄ | H5: HC | I5: VZÄ | J5: HC | K5: VZÄ | L5: HC | M5: VZÄ | N5: HC | O5: VZÄ | P5: HC
A7: 2008
B8: Institute der Fraunhofer-Gesellschaft | C8: 3303 | D8: 5500 | E8: 929.0286931 | F8: 1504 | G8: 2147.64397 | H8: 3617 | I8: 73.11889216 | J8: 123 | K8: . | L8: . | M8: . | N8: . | O8: 119.6775789 | P8: 199
B9: Helmholtz-Zentren | C9: 3381.5 | D9: 4121 | E9: 1661.337266 | F9: 2087 | G9: 1191.115136 | H9: 1373 | I9: 502.7401869 | J9: 624 | K9: 9.108669093 | L9: 10 | M9: 0 | N9: 0 | O9: 17.19874243 | P9: 27
B10: Leibniz-Gemeinschaft ("Blaue Liste") | C10: 1419 | D10: 2172 | E10: 808.9260467 | F10: 1321 | G10: 98.0015127 | H10: 127 | I10: 44.56418173 | J10: 75 | K10: 75.37324835 | L10: 125 | M10: 101.4741998 | N10: 148 | O10: 290.6608107 | P10: 376
B11: Institute der Max-Planck-Gesellschaft | C11: 2007 | D11: 2338 | E11: 1665.166796 | F11: 1933 | G11: 38.9819331 | H11: 41 | I11: 68.83213148 | J11: 74 | K11: . | L11: . | M11: . | N11: . | O11: 128.2446114 | P11: 174
B12: Insgesamt … | C12: =SUM(C8:C11) -> 10110.5 | D12: =SUM(D8:D11) -> 14131 | E12: 5064.458801 | F12: 6845 | G12: 3475.742551 | H12: 5158 | I12: 689.2553922 | J12: 896 | K12: 84.48191744 | L12: 135 | M12: 101.4741998 | N12: 148 | O12: 555.7817435 | P12: 776
A14: 2009
B15: Institute der Fraunhofer-Gesellschaft | C15: 4239.5 | D15: 6642 | E15: 1030.902061 | F15: 1623 | G15: 2721.952019 | H15: 4249 | I15: 131.405102 | J15: 208 | K15: 17.35519785 | L15: 28 | M15: 210.7365262 | N15: 325 | O15: 127.1490946 | P15: 208
B16: Helmholtz-Zentren | C16: 3983.5 | D16: 4828 | E16: 1834.585604 | F16: 2293 | G16: 1435.950496 | H16: 1642 | I16: 674.0739527 | J16: 842 | K16: 17.22451946 | L16: 18 | M16: 0 | N16: 0 | O16: 21.66542754 | P16: 33
B17: Leibniz-Gemeinschaft ("Blaue Liste") | C17: 1753.5 | D17: 2655 | E17: 955.4880427 | F17: 1531 | G17: 132.8078221 | H17: 163 | I17: 159.2614587 | J17: 260 | K17: 38.23474296 | L17: 59 | M17: 140.2103371 | N17: 207 | O17: 327.4975964 | P17: 434
B18: Institute der Max-Planck-Gesellschaft | C18: 2127 | D18: 2467 | E18: 1730.478275 | F18: 1998 | G18: 49.4796699 | H18: 51 | I18: 89.77163361 | J18: 99 | K18: 15.38794048 | L18: 16 | M18: 107.0515071 | N18: 115 | O18: 134.8309735 | P18: 187
B19: Insgesamt … | C19: =SUM(C15:C18) -> 12103.5 | D19: =SUM(D15:D18) -> 16592 | E19: 5551.453983 | F19: 7445 | G19: 4340.190007 | H19: 6105 | I19: 1054.512147 | J19: 1409 | K19: 88.20240075 | L19: 121 | M19: 457.9983704 | N19: 647 | O19: 611.143092 | P19: 862
A21: 2010
B22: Institute der Fraunhofer-Gesellschaft | C22: 4692.5 | D22: 7158 | E22: 1410.125728 | F22: 2136 | G22: 2856.36894 | H22: 4385 | I22: 114.2895657 | J22: 173 | K22: 28.83241324 | L22: 49 | M22: 123.3255138 | N22: 154 | O22: 159.5578394 | P22: 261
B23: Helmholtz-Zentren | C23: 4455.5 | D23: 5448 | E23: 2029.973234 | F23: 2535 | G23: 1642.351252 | H23: 1871 | I23: 737.8028861 | J23: 983 | K23: 9.689001167 | L23: 10 | M23: 0 | N23: 0 | O23: 35.66099886 | P23: 48
B24: Leibniz-Gemeinschaft ("Blaue Liste") | C24: 2062 | D24: 3111 | E24: 1122.778984 | F24: 1778 | G24: 149.3355201 | H24: 190 | I24: 177.6770423 | J24: 291 | K24: 53.13583784 | L24: 77 | M24: 186.2572108 | N24: 290 | O24: 372.8154049 | P24: 485
B25: Institute der Max-Planck-Gesellschaft | C25: 2207 | D25: 2546 | E25: 1787.199818 | F25: 2051 | G25: 37.60020061 | H25: 41 | I25: 97.46030009 | J25: 103 | K25: 17.81792393 | L25: 19 | M25: 108.0458343 | N25: 118 | O25: 158.8759234 | P25: 214
B26: Insgesamt … | C26: =SUM(C22:C25) -> 13417 | D26: =SUM(D22:D25) -> 18263 | E26: 6350.077764 | F26: 8500 | G26: 4685.655913 | H26: 6487 | I26: 1127.229794 | J26: 1550 | K26: 109.4751762 | L26: 155 | M26: 417.6285588 | N26: 562 | O26: 726.9101665 | P26: 1008
A28: 2011
B29: Institute der Fraunhofer-Gesellschaft | C29: 4971 | D29: 7561 | E29: 1595.42937 | F29: 2384 | G29: 2952.488251 | H29: 4528 | I29: 123.9732051 | J29: 189 | K29: 30.56248124 | L29: 51 | M29: 92.25753251 | N29: 126 | O29: 176.2891602 | P29: 282
B30: Helmholtz-Zentren | C30: 4732 | D30: 5891 | E30: 2141.436495 | F30: 2787 | G30: 1768.954773 | H30: 2014 | I30: 769.1526098 | J30: 1023 | K30: 12.98623591 | L30: 14 | M30: 0 | N30: 0 | O30: 39.46988631 | P30: 53
B31: Leibniz-Gemeinschaft ("Blaue Liste") | C31: 1901.5 | D31: 2927 | E31: 1000.832864 | F31: 1615 | G31: 138.7935964 | H31: 181 | I31: 130.6583826 | J31: 219 | K31: 57.80844886 | L31: 91 | M31: 189.8262163 | N31: 302 | O31: 383.5804915 | P31: 519
B32: Institute der Max-Planck-Gesellschaft | C32: 2102.5 | D32: 2394 | E32: 1698.441972 | F32: 1920 | G32: 42.18134197 | H32: 48 | I32: 95.72833059 | J32: 102 | K32: 9.820217701 | L32: 11 | M32: 113.5765611 | N32: 122 | O32: 142.7515762 | P32: 192
B33: Insgesamt … | C33: =SUM(C29:C32) -> 13707 | D33: =SUM(D29:D32) -> 18773 | E33: 6436.140701 | F33: 8706 | G33: 4902.417963 | H33: 6771 | I33: 1119.512528 | J33: 1533 | K33: 111.1773837 | L33: 167 | M33: 395.6603099 | N33: 550 | O33: 742.0911142 | P33: 1046
A35: 2012
B36: Institute der Fraunhofer-Gesellschaft | C36: 4271 | D36: 5974 | E36: 1354.109594 | F36: 1872 | G36: 2593.489004 | H36: 3639 | I36: 98.80355832 | J36: 143 | K36: 24.14446078 | L36: 38 | M36: 59.09173337 | N36: 72 | O36: 141.36165 | P36: 210
B37: Helmholtz-Zentren | C37: 4872.5 | D37: 6234 | E37: 2435.549827 | F37: 3262 | G37: 1513.98116 | H37: 1736 | I37: 871.6326204 | J37: 1167 | K37: 14.18918388 | L37: 15 | M37: 0 | N37: 0 | O37: 37.14720812 | P37: 54
B38: Leibniz-Gemeinschaft ("Blaue Liste") | C38: 1995.999585 | D38: 3083 | E38: 1023.01319 | F38: 1606 | G38: 115.0753811 | H38: 145 | I38: 167.7363725 | J38: 285 | K38: 85.40711508 | L38: 136 | M38: 230.3218453 | N38: 388 | O38: 374.4456808 | P38: 522
B39: Institute der Max-Planck-Gesellschaft | C39: 2346.5 | D39: 2801 | E39: 1893.68006 | F39: 2249 | G39: 45.92967577 | H39: 52 | I39: 101.7986172 | J39: 113 | K39: 10.69198505 | L39: 12 | M39: 118.867972 | N39: 145 | O39: 175.5316903 | P39: 231
B40: Insgesamt … | C40: =SUM(C36:C39) -> 13485.99959 | D40: =SUM(D36:D39) -> 18092 | E40: 6706.352671 | F40: 8989 | G40: 4268.475221 | H40: 5572 | I40: 1239.971168 | J40: 1708 | K40: 134.4327448 | L40: 201 | M40: 408.2815506 | N40: 605 | O40: 728.4862293 | P40: 1017
A42: 2013
B43: Institute der Fraunhofer-Gesellschaft | C43: 3885 | D43: 4855 | E43: 1296.438553 | F43: 1624 | G43: 2269.315067 | H43: 2810 | I43: 129.4644991 | J43: 175 | K43: 11.78086759 | L43: 18 | M43: 0 | N43: 0 | O43: 178.0010139 | P43: 229
B44: Helmholtz-Zentren | C44: 5362.5 | D44: 6887 | E44: 2714.997348 | F44: 3618 | G44: 1634.277759 | H44: 1897 | I44: 956.3141769 | J44: 1296 | K44: . | L44: . | M44: . | N44: . | O44: 35.29378628 | P44: 52
B45: Leibniz-Gemeinschaft ("Blaue Liste") | C45: 2133 | D45: 3304 | E45: 1095.539522 | F45: 1747 | G45: 132.0664205 | H45: 167 | I45: 200.0751472 | J45: 328 | K45: 87.38907236 | L45: 125 | M45: 246.8172062 | N45: 402 | O45: 371.1126315 | P45: 534
B46: Institute der Max-Planck-Gesellschaft | C46: 2262.999982 | D46: 2715 | E46: 1832.59467 | F46: 2189 | G46: 39.46642414 | H46: 47 | I46: 104.9905874 | J46: 120 | K46: . | L46: . | M46: . | N46: . | O46: 169.5510187 | P46: 213
B47: Insgesamt … | C47: =SUM(C43:C46) -> 13643.49998 | D47: =SUM(D43:D46) -> 17761 | E47: 6939.570092 | F47: 9178 | G47: 4075.12567 | H47: 4921 | I47: 1390.844411 | J47: 1919 | K47: 99.16993995 | L47: 143 | M47: 246.8172062 | N47: 402 | O47: 753.9584503 | P47: 1028
A67: _______
A68: Durch verfahrensbedingte Anpassungen können einzelne Summen voneinander abweichen.
A70: Statistisches Bundesamt (Destatis), H204 Forschung und Entwicklung

Sheet 5.5
A1: Wissenschaftler der wissenschaftlichen Einrichtungen des öffentlichen Sektors
A2: nach Altersklasse, ausgewählte Einrichtungsarten und Wissenschaftszweigen
A4: mit Pormotion bis 44 Jahre | C4: Insgesamt | E4: Naturwissenschaften | G4: Ingenieurwissenschaften | I4: Humanmedizin | K4: Agrarwissenschaften | M4: Geisteswissenschaften | O4: Sozialwissenschaften
C5: VZÄ | D5: HC | E5: VZÄ | F5: HC | G5: VZÄ | H5: HC | I5: VZÄ | J5: HC | K5: VZÄ | L5: HC | M5: VZÄ | N5: HC | O5: VZÄ | P5: HC
A7: 2008
B8: Institute der Fraunhofer-Gesellschaft | C8: 1116 | D8: 1198 | E8: 309.2786041 | F8: 338 | G8: 719.2299608 | H8: 764 | I8: 35.25268316 | J8: 39 | K8: 27.65547066 | L8: 29 | M8: 0 | N8: 0 | O8: 24.18572849 | P8: 27
B9: Helmholtz-Zentren | C9: 2658 | D9: 2858 | E9: 1358.919125 | F9: 1490 | G9: 892.4392545 | H9: 935 | I9: 376.8406572 | J9: 401 | K9: 7.11409022 | L9: 8 | M9: 0 | N9: 0 | O9: 22.68687357 | P9: 24
B10: Leibniz-Gemeinschaft ("Blaue Liste") | C10: 1142.5 | D10: 1259 | E10: 763.1713861 | F10: 825 | G10: 21.78424532 | H10: 24 | I10: 60.076456 | J10: 70 | K10: 63.34291358 | L10: 72 | M10: 103.9291368 | N10: 118 | O10: 130.1958623 | P10: 149
B11: Institute der Max-Planck-Gesellschaft | C11: 2173 | D11: 2272 | E11: 1815.359109 | F11: 1887 | G11: 41.35554273 | H11: 42 | I11: 84.23631786 | J11: 88 | K11: 2.417171284 | L11: 3 | M11: 101.1903297 | N11: 110 | O11: 128.4415298 | P11: 142
B12: Insgesamt … | C12: =SUM(C8:C11) -> 7089.5 | D12: =SUM(D8:D11) -> 7587 | E12: 4246.728223 | F12: 4540 | G12: 1674.809003 | H12: 1765 | I12: 556.4061142 | J12: 598 | K12: 100.5296457 | L12: 112 | M12: 205.1194664 | N12: 228 | O12: 305.5099941 | P12: 342
A14: 2009
B15: Institute der Fraunhofer-Gesellschaft | C15: 1331.5 | D15: 1420 | E15: 358.6274313 | F15: 387 | G15: 830.3321558 | H15: 878 | I15: 79.95376944 | J15: 88 | K15: . | L15: . | M15: 17.68045878 | N15: 19 | O15: . | P15: .
B16: Helmholtz-Zentren | C16: 2108.5 | D16: 2277 | E16: 1232.062174 | F16: 1356 | G16: 442.0628102 | H16: 463 | I16: 410.6458535 | J16: 433 | K16: . | L16: . | M16: 0 | N16: 0 | O16: . | P16: .
B17: Leibniz-Gemeinschaft ("Blaue Liste") | C17: 1213.5 | D17: 1343 | E17: 735.1265677 | F17: 805 | G17: 45.48364273 | H17: 52 | I17: 120.7665554 | J17: 133 | K17: 42.69172516 | L17: 48 | M17: 128.1774496 | N17: 144 | O17: 141.2540594 | P17: 161
B18: Institute der Max-Planck-Gesellschaft | C18: 2269 | D18: 2365 | E18: 1868.989273 | F18: 1938 | G18: 40.11059579 | H18: 41 | I18: 102.3923852 | J18: 107 | K18: 10.11569778 | L18: 11 | M18: 117.4421031 | N18: 126 | O18: 129.9499449 | P18: 142
B19: Insgesamt … | C19: =SUM(C15:C18) -> 6922.5 | D19: =SUM(D15:D18) -> 7405 | E19: 4194.805446 | F19: 4486 | G19: 1357.989205 | H19: 1434 | I19: 713.7585635 | J19: 761 | K19: 52.80742295 | L19: 59 | M19: 263.3000115 | N19: 289 | O19: 271.2040043 | P19: 303
A21: 2010
B22: Institute der Fraunhofer-Gesellschaft | C22: 1362.5 | D22: 1448 | E22: 432.2072724 | F22: 461 | G22: 772.9669063 | H22: 815 | I22: 70.36752379 | J22: 78 | K22: 18.3726294 | L22: 20 | M22: 33.88348807 | N22: 36 | O22: 34.70218001 | P22: 38
B23: Helmholtz-Zentren | C23: 2497.5 | D23: 2711 | E23: 1467.920604 | F23: 1615 | G23: 439.4510466 | H23: 463 | I23: 553.9686581 | J23: 594 | K23: 6.861532189 | L23: 7 | M23: 0 | N23: 0 | O23: 29.28179325 | P23: 32
B24: Leibniz-Gemeinschaft ("Blaue Liste") | C24: 1278.5 | D24: 1418 | E24: 776.6834075 | F24: 843 | G24: 31.58708265 | H24: 37 | I24: 124.0625895 | J24: 137 | K24: 40.98219966 | L24: 49 | M24: 122.470192 | N24: 138 | O24: 182.7145287 | P24: 215
B25: Institute der Max-Planck-Gesellschaft | C25: 2459 | D25: 2568 | E25: 2043.39838 | F25: 2125 | G25: 26.78162327 | H25: 27 | I25: 107.4832391 | J25: 111 | K25: 12.36979108 | L25: 13 | M25: 131.81065 | N25: 141 | O25: 137.1563162 | P25: 151
B26: Insgesamt … | C26: =SUM(C22:C25) -> 7597.5 | D26: =SUM(D22:D25) -> 8145 | E26: 4720.209664 | F26: 5044 | G26: 1270.786659 | H26: 1342 | I26: 855.8820105 | J26: 920 | K26: 78.58615233 | L26: 89 | M26: 288.1643301 | N26: 315 | O26: 383.8548183 | P26: 436
A28: 2011
B29: Institute der Fraunhofer-Gesellschaft | C29: 1330 | D29: 1415 | E29: 460.168398 | F29: 491 | G29: 732.4301596 | H29: 774 | I29: 69.09620288 | J29: 75 | K29: 13.35113833 | L29: 14 | M29: 24.50650024 | N29: 28 | O29: 30.44760097 | P29: 33
B30: Helmholtz-Zentren | C30: 3385.5 | D30: 3611 | E30: 1805.647169 | F30: 1924 | G30: 907.3850073 | H30: 968 | I30: 633.2030676 | J30: 676 | K30: 9.290853531 | L30: 10 | M30: 0 | N30: 0 | O30: 29.97390237 | P30: 32
B31: Leibniz-Gemeinschaft ("Blaue Liste") | C31: 1592 | D31: 1765 | E31: 920.7967201 | F31: 990 | G31: 59.6719953 | H31: 68 | I31: 172.07432 | J31: 193 | K31: 42.13350384 | L31: 52 | M31: 146.3088082 | N31: 168 | O31: 251.0146525 | P31: 294
B32: Institute der Max-Planck-Gesellschaft | C32: 2518 | D32: 2635 | E32: 2081.623371 | F32: 2168 | G32: 32.97522881 | H32: 35 | I32: 110.7253837 | J32: 116 | K32: 7.874155816 | L32: 8 | M32: 135.5469029 | N32: 145 | O32: 149.2549575 | P32: 164
B33: Insgesamt … | C33: =SUM(C29:C32) -> 8825.5 | D33: =SUM(D29:D32) -> 9426 | E33: 5268.235658 | F33: 5573 | G33: 1732.462391 | H33: 1845 | I33: 985.0989742 | J33: 1060 | K33: 72.64965152 | L33: 84 | M33: 306.3622114 | N33: 341 | O33: 460.6911134 | P33: 523
A35: 2012
B36: Institute der Fraunhofer-Gesellschaft | C36: 1499.5 | D36: 1616 | E36: 525.6694135 | F36: 566 | G36: 818.6970768 | H36: 876 | I36: 86.40600047 | J36: 96 | K36: 19.2274344 | L36: 21 | M36: 13.40232358 | N36: 17 | O36: 36.09775127 | P36: 40
B37: Helmholtz-Zentren | C37: 3808.5 | D37: 4071 | E37: 2078.080015 | F37: 2215 | G37: 921.0169067 | H37: 986 | I37: 771.8526276 | J37: 829 | K37: 9.331209108 | L37: 10 | M37: 0 | N37: 0 | O37: 28.21924195 | P37: 31
B38: Leibniz-Gemeinschaft ("Blaue Liste") | C38: 1686.999859 | D38: 1885 | E38: 881.6731752 | F38: 958 | G38: 74.15704304 | H38: 83 | I38: 210.5573189 | J38: 241 | K38: 56.6871255 | L38: 72 | M38: 185.9113511 | N38: 213 | O38: 278.0138448 | P38: 319
B39: Institute der Max-Planck-Gesellschaft | C39: 2463 | D39: 2588 | E39: 2024.112344 | F39: 2114 | G39: 29.27493177 | H39: 32 | I39: 105.7712562 | J39: 113 | K39: 8.795699233 | L39: 10 | M39: 133.0699349 | N39: 143 | O39: 161.9758338 | P39: 176
B40: Insgesamt … | C40: =SUM(C36:C39) -> 9457.999859 | D40: =SUM(D36:D39) -> 10160 | E40: 5509.534947 | F40: 5853 | G40: 1843.145958 | H40: 1977 | I40: 1174.587203 | J40: 1279 | K40: 94.04146824 | L40: 113 | M40: 332.3836096 | N40: 373 | O40: 504.3066718 | P40: 566
A42: 2013
B43: Institute der Fraunhofer-Gesellschaft | C43: 1469.5 | D43: 1587 | E43: 534.2183563 | F43: 575 | G43: 781.1987763 | H43: 838 | I43: 101.4150156 | J43: 114 | K43: 12.06788755 | L43: 14 | M43: 0 | N43: 0 | O43: 40.59996419 | P43: 46
B44: Helmholtz-Zentren | C44: 4228 | D44: 4525 | E44: 2401.498221 | F44: 2552 | G44: 1019.322427 | H44: 1099 | I44: 764.8456159 | J44: 828 | K44: . | L44: . | M44: . | N44: . | O44: 25.61047969 | P44: 28
B45: Leibniz-Gemeinschaft ("Blaue Liste") | C45: 1754.5 | D45: 1974 | E45: 932.1468931 | F45: 1017 | G45: 95.41126653 | H45: 105 | I45: 191.0093934 | J45: 224 | K45: 44.97373903 | L45: 55 | M45: 168.5456065 | N45: 199 | O45: 322.4131015 | P45: 374
B46: Institute der Max-Planck-Gesellschaft | C46: 2470.000014 | D46: 2604 | E46: 2073.30711 | F46: 2175 | G46: 30.79434911 | H46: 32 | I46: 108.8046057 | J46: 115 | K46: . | L46: . | M46: . | N46: . | O46: 129.5795589 | P46: 145
B47: Insgesamt … | C47: =SUM(C43:C46) -> 9922.000014 | D47: =SUM(D43:D46) -> 10690 | E47: 5941.170581 | F47: 6319 | G47: 1926.726819 | H47: 2074 | I47: 1166.074631 | J47: 1281 | K47: 57.04162658 | L47: 69 | M47: 168.5456065 | N47: 199 | O47: 518.2031043 | P47: 593
A67: _______
A68: Durch verfahrensbedingte Anpassungen können einzelne Summen voneinander abweichen.
A70: Statistisches Bundesamt (Destatis), H204 Forschung und Entwicklung

Sheet 5.6
A1: Wissenschaftler der wissenschaftlichen Einrichtungen des öffentlichen Sektors
A2: nach Altersklasse, ausgewählte Einrichtungsarten und Wissenschaftszweigen
A4: mit Promotion befristet | C4: Insgesamt | E4: Naturwissenschaften | G4: Ingenieurwissenschaften | I4: Humanmedizin | K4: Agrarwissenschaften | M4: Geisteswissenschaften | O4: Sozialwissenschaften
C5: VZÄ | D5: HC | E5: VZÄ | F5: HC | G5: VZÄ | H5: HC | I5: VZÄ | J5: HC | K5: VZÄ | L5: HC | M5: VZÄ | N5: HC | O5: VZÄ | P5: HC
A7: 2008
B8: Institute der Fraunhofer-Gesellschaft | C8: 693 | D8: 771 | E8: 187.2269474 | F8: 211 | G8: 435.8472278 | H8: 483 | I8: 25.6209068 | J8: 29 | K8: 26.6283888 | L8: 29 | M8: 0 | N8: 0 | O8: 17.45899929 | P8: 19
B9: Helmholtz-Zentren | C9: 1590 | D9: 1762 | E9: 916.4407921 | F9: 1042 | G9: 443.7286418 | H9: 471 | I9: 203.0923622 | J9: 219 | K9: 6.856801141 | L9: 7 | M9: 0 | N9: 0 | O9: 19.88140271 | P9: 22
B10: Leibniz-Gemeinschaft ("Blaue Liste") | C10: 960 | D10: 1085 | E10: 658.8684181 | F10: 728 | G10: 18.28929016 | H10: 21 | I10: 49.5 | J10: 60 | K10: 59.41811024 | L10: 71 | M10: 83.94910516 | N10: 100 | O10: 89.9750763 | P10: 106
B11: Institute der Max-Planck-Gesellschaft | C11: 2129.5 | D11: 2260 | E11: 1774.034397 | F11: 1874 | G11: 33.54237777 | H11: 34 | I11: 76.55075719 | J11: 80 | K11: 2.436018542 | L11: 3 | M11: 104.8347553 | N11: 114 | O11: 138.1016942 | P11: 154
B12: Insgesamt … | C12: =SUM(C8:C11) -> 5372.5 | D12: =SUM(D8:D11) -> 5878 | E12: 3536.570555 | F12: 3855 | G12: 931.4075376 | H12: 1009 | I12: 354.7640262 | J12: 388 | K12: 95.33931872 | L12: 110 | M12: 188.7838605 | N12: 214 | O12: 265.4171725 | P12: 301
A14: 2009
B15: Institute der Fraunhofer-Gesellschaft | C15: 927 | D15: 1028 | E15: 253.2028712 | F15: 284 | G15: 560.9571823 | H15: 620 | I15: 67.46522172 | J15: 75 | K15: . | L15: . | M15: 10.76606871 | N15: 11 | O15: . | P15: .
B16: Helmholtz-Zentren | C16: 1404.5 | D16: 1572 | E16: 855.4517835 | F16: 974 | G16: 275.8323117 | H16: 306 | I16: 252.110821 | J16: 268 | K16: . | L16: . | M16: 0 | N16: 0 | O16: . | P16: .
B17: Leibniz-Gemeinschaft ("Blaue Liste") | C17: 1113.5 | D17: 1258 | E17: 686.3276025 | F17: 764 | G17: 37.79446322 | H17: 44 | I17: 126.2081564 | J17: 142 | K17: 29.87106577 | L17: 37 | M17: 112.62829 | N17: 129 | O17: 120.670422 | P17: 142
B18: Institute der Max-Planck-Gesellschaft | C18: 2255 | D18: 2388 | E18: 1850.373655 | F18: 1952 | G18: 35.24146876 | H18: 37 | I18: 94.5197936 | J18: 99 | K18: 9.934272242 | L18: 11 | M18: 125.7246568 | N18: 134 | O18: 139.2061533 | P18: 155
B19: Insgesamt … | C19: =SUM(C15:C18) -> 5700 | D19: =SUM(D15:D18) -> 6246 | E19: 3645.355913 | F19: 3974 | G19: 909.825426 | H19: 1007 | I19: 540.3039927 | J19: 584 | K19: 39.80533802 | L19: 48 | M19: 249.1190156 | N19: 274 | O19: 259.8765754 | P19: 297
A21: 2010
B22: Institute der Fraunhofer-Gesellschaft | C22: 945 | D22: 1046 | E22: 302.9481545 | F22: 337 | G22: 531.5009211 | H22: 586 | I22: 55.20788593 | J22: 62 | K22: 13.90416164 | L22: 15 | M22: 16.74738304 | N22: 19 | O22: 24.69149382 | P22: 27
B23: Helmholtz-Zentren | C23: 1805 | D23: 2022 | E23: 1107.565021 | F23: 1253 | G23: 273.0164317 | H23: 308 | I23: 391.7427032 | J23: 426 | K23: 6.457517672 | L23: 7 | M23: 0 | N23: 0 | O23: 26.19890017 | P23: 29
B24: Leibniz-Gemeinschaft ("Blaue Liste") | C24: 1172.5 | D24: 1334 | E24: 730.0812269 | F24: 814 | G24: 24.25452153 | H24: 30 | I24: 133.5039118 | J24: 152 | K24: 34.29228136 | L24: 42 | M24: 106.7900772 | N24: 124 | O24: 143.5779811 | P24: 172
B25: Institute der Max-Planck-Gesellschaft | C25: 2417.5 | D25: 2570 | E25: 2007.673241 | F25: 2127 | G25: 21.68312191 | H25: 22 | I25: 99.41619905 | J25: 104 | K25: 12.51234393 | L25: 14 | M25: 135.7941333 | N25: 145 | O25: 140.4209604 | P25: 158
B26: Insgesamt … | C26: =SUM(C22:C25) -> 6340 | D26: =SUM(D22:D25) -> 6972 | E26: 4148.267644 | F26: 4531 | G26: 850.4549962 | H26: 946 | I26: 679.8707001 | J26: 744 | K26: 67.16630461 | L26: 78 | M26: 259.3315935 | N26: 288 | O26: 334.8893355 | P26: 386
A28: 2011
B29: Institute der Fraunhofer-Gesellschaft | C29: 952 | D29: 1059 | E29: 318.3583644 | F29: 356 | G29: 524.9831805 | H29: 583 | I29: 62.34380539 | J29: 69 | K29: 11.98437091 | L29: 13 | M29: 11.41658438 | N29: 13 | O29: 22.91369435 | P29: 25
B30: Helmholtz-Zentren | C30: 2545 | D30: 2768 | E30: 1354.083381 | F30: 1474 | G30: 690.8854911 | H30: 755 | I30: 462.3419739 | J30: 499 | K30: 9.235811177 | L30: 10 | M30: 0 | N30: 0 | O30: 28.45334316 | P30: 31
B31: Leibniz-Gemeinschaft ("Blaue Liste") | C31: 1488.5 | D31: 1685 | E31: 895.3118277 | F31: 985 | G31: 55.89585827 | H31: 65 | I31: 185.5078232 | J31: 210 | K31: 41.3443284 | L31: 52 | M31: 136.4391086 | N31: 163 | O31: 174.0010539 | P31: 210
B32: Institute der Max-Planck-Gesellschaft | C32: 2482.5 | D32: 2636 | E32: 2065.386056 | F32: 2185 | G32: 24.86179182 | H32: 26 | I32: 102.1507426 | J32: 107 | K32: 7.450827116 | L32: 8 | M32: 129.2999287 | N32: 139 | O32: 153.350654 | P32: 171
B33: Insgesamt … | C33: =SUM(C29:C32) -> 7468 | D33: =SUM(D29:D32) -> 8148 | E33: 4633.139628 | F33: 5000 | G33: 1296.626322 | H33: 1429 | I33: 812.3443451 | J33: 885 | K33: 70.0153376 | L33: 83 | M33: 277.1556217 | N33: 315 | O33: 378.7187455 | P33: 437
A35: 2012
B36: Institute der Fraunhofer-Gesellschaft | C36: 1105.5 | D36: 1236 | E36: 375.0215158 | F36: 420 | G36: 601.0881819 | H36: 670 | I36: 84.09085386 | J36: 96 | K36: 16.54769817 | L36: 18 | M36: 3.9308863 | N36: 4 | O36: 24.82086405 | P36: 28
B37: Helmholtz-Zentren | C37: 2951 | D37: 3213 | E37: 1607.91187 | F37: 1748 | G37: 731.2076682 | H37: 800 | I37: 578.4244214 | J37: 628 | K37: 8.817182961 | L37: 10 | M37: 0 | N37: 0 | O37: 24.63885748 | P37: 27
B38: Leibniz-Gemeinschaft ("Blaue Liste") | C38: 1635.999953 | D38: 1888 | E38: 876.0732123 | F38: 984 | G38: 67.37343332 | H38: 77 | I38: 240.0996255 | J38: 279 | K38: 52.53101269 | L38: 71 | M38: 176.4068787 | N38: 211 | O38: 223.5157904 | P38: 267
B39: Institute der Max-Planck-Gesellschaft | C39: 2443 | D39: 2611 | E39: 2017.463272 | F39: 2146 | G39: 22.58963802 | H39: 25 | I39: 98.5349264 | J39: 106 | K39: 8.348137099 | L39: 9 | M39: 129.8368661 | N39: 142 | O39: 166.2271601 | P39: 184
B40: Insgesamt … | C40: =SUM(C36:C39) -> 8135.499953 | D40: =SUM(D36:D39) -> 8948 | E40: 4876.46987 | F40: 5298 | G40: 1422.258921 | H40: 1572 | I40: 1001.149827 | J40: 1109 | K40: 86.24403092 | L40: 108 | M40: 310.1746312 | N40: 357 | O40: 439.202672 | P40: 506
A42: 2013
B43: Institute der Fraunhofer-Gesellschaft | C43: 1084 | D43: 1221 | E43: 377.0299308 | F43: 420 | G43: 576.8366647 | H43: 649 | I43: 95.63990825 | J43: 111 | K43: 10 | L43: 12 | M43: 0 | N43: 0 | O43: 24.22024022 | P43: 28
B44: Helmholtz-Zentren | C44: 3341.5 | D44: 3661 | E44: 1975.061615 | F44: 2142 | G44: 773.1878843 | H44: 857 | I44: 553.3648351 | J44: 618 | K44: . | L44: . | M44: . | N44: . | O44: 24.32942968 | P44: 27
B45: Leibniz-Gemeinschaft ("Blaue Liste") | C45: 1726 | D45: 1994 | E45: 951.0115651 | F45: 1071 | G45: 94.1009385 | H45: 105 | I45: 210.5093934 | J45: 251 | K45: 42.49411109 | L45: 57 | M45: 164.0719197 | N45: 198 | O45: 263.8120723 | P45: 311
B46: Institute der Max-Planck-Gesellschaft | C46: 2459.500009 | D46: 2631 | E46: 2072.950086 | F46: 2208 | G46: 27.41340531 | H46: 29 | I46: 97.03038292 | J46: 103 | K46: . | L46: . | M46: . | N46: . | O46: 136.1929928 | P46: 153
B47: Insgesamt … | C47: =SUM(C43:C46) -> 8611.000009 | D47: =SUM(D43:D46) -> 9507 | E47: 5376.053196 | F47: 5841 | G47: 1471.538893 | H47: 1640 | I47: 956.5445196 | J47: 1083 | K47: 52.49411109 | L47: 69 | M47: 164.0719197 | N47: 198 | O47: 448.554735 | P47: 519
A67: _______
A68: Durch verfahrensbedingte Anpassungen können einzelne Summen voneinander abweichen.
A70: Statistisches Bundesamt (Destatis), H204 Forschung und Entwicklung

Sheet 5.7
A1: Wissenschaftler der wissenschaftlichen Einrichtungen des öffentlichen Sektors
A2: nach Altersklasse, ausgewählte Einrichtungsarten, Wissenschaftszweigen und Umfang
A4: ohne Promotion bis 34 Jahre | C4: Insgesamt | E4: Naturwissenschaften | G4: Ingenieurwissenschaften | I4: Humanmedizin | K4: Agrarwissenschaften | M4: Geisteswissenschaften | O4: Sozialwissenschaften
C5: Vollzeit | D5: Teilzeit | E5: Vollzeit | F5: Teilzeit | G5: Vollzeit | H5: Teilzeit | I5: Vollzeit | J5: Teilzeit | K5: Vollzeit | L5: Teilzeit | M5: Vollzeit | N5: Teilzeit | O5: Vollzeit | P5: Teilzeit
C6: HC
A8: 2008
B9: Institute der Fraunhofer-Gesellschaft | C9: 1106 | D9: 4394 | E9: 354 | F9: 1151 | G9: 678 | H9: 2938 | I9: 23 | J9: 100 | K9: . | L9: . | M9: . | N9: . | O9: 41 | P9: 158
B10: Helmholtz-Zentren | C10: 2642 | D10: 1479 | E10: 1235 | F10: 852 | G10: 1010 | H10: 363 | I10: 381 | J10: 243 | K10: . | L10: . | M10: . | N10: . | O10: 7 | P10: 20
B11: Leibniz-Gemeinschaft ("Blaue Liste") | C11: 666 | D11: 1506 | E11: 297 | F11: 1024 | G11: 69 | H11: 58 | I11: 14 | J11: 61 | K11: 26 | L11: 99 | M11: 55 | N11: 93 | O11: 206 | P11: 170
B12: Institute der Max-Planck-Gesellschaft | C12: 1676 | D12: 662 | E12: 1398 | F12: 535 | G12: 37 | H12: 3 | I12: 64 | J12: 10 | K12: . | L12: . | M12: . | N12: . | O12: 83 | P12: 91
B13: Insgesamt … | C13: 6090 | D13: 8041 | E13: 3283 | F13: 3562 | G13: 1794 | H13: 3363 | I13: 482 | J13: 414 | K13: 46 | L13: 147 | M13: 148 | N13: 115 | O13: 336 | P13: 439
A15: 2009
B16: Institute der Fraunhofer-Gesellschaft | C16: 1837 | D16: 4805 | E16: 439 | F16: 1183 | G16: 1195 | H16: 3055 | I16: 55 | J16: 154 | K16: 6 | L16: 22 | M16: 96 | N16: 229 | O16: 46 | P16: 162
B17: Helmholtz-Zentren | C17: 3139 | D17: 1689 | E17: 1376 | F17: 916 | G17: 1229 | H17: 413 | I17: 506 | J17: 336 | K17: . | L17: . | M17: . | N17: . | O17: 11 | P17: 22
B18: Leibniz-Gemeinschaft ("Blaue Liste") | C18: 852 | D18: 1803 | E18: 380 | F18: 1152 | G18: 103 | H18: 60 | I18: 58 | J18: 202 | K18: 18 | L18: 41 | M18: 73 | N18: 134 | O18: 221 | P18: 214
B19: Institute der Max-Planck-Gesellschaft | C19: 1787 | D19: 680 | E19: 1462 | F19: 536 | G19: 48 | H19: 3 | I19: 81 | J19: 18 | K19: . | L19: . | M19: . | N19: . | O19: 82 | P19: 105
B20: Insgesamt … | C20: 7615 | D20: 8977 | E20: 3658 | F20: 3788 | G20: 2575 | H20: 3531 | I20: 700 | J20: 709 | K20: 55 | L20: 67 | M20: 268 | N20: 379 | O20: 360 | P20: 503
A22: 2010
B23: Institute der Fraunhofer-Gesellschaft | C23: 2227 | D23: 4931 | E23: 685 | F23: 1451 | G23: 1328 | H23: 3057 | I23: 55 | J23: 118 | K23: 9 | L23: 40 | M23: 92 | N23: 62 | O23: 58 | P23: 203
B24: Helmholtz-Zentren | C24: 3463 | D24: 1985 | E24: 1525 | F24: 1011 | G24: 1413 | H24: 458 | I24: 493 | J24: 490 | K24: . | L24: . | M24: . | N24: . | O24: 23 | P24: 25
B25: Leibniz-Gemeinschaft ("Blaue Liste") | C25: 1013 | D25: 2098 | E25: 468 | F25: 1310 | G25: 109 | H25: 81 | I25: 64 | J25: 227 | K25: 30 | L25: 47 | M25: 82 | N25: 208 | O25: 260 | P25: 225
B26: Institute der Max-Planck-Gesellschaft | C26: 1868 | D26: 678 | E26: 1524 | F26: 527 | G26: 34 | H26: 7 | I26: 91 | J26: 12 | K26: . | L26: . | M26: . | N26: . | O26: 104 | P26: 110
B27: Insgesamt … | C27: 8571 | D27: 9692 | E27: 4201 | F27: 4299 | G27: 2885 | H27: 3602 | I27: 704 | J27: 847 | K27: 64 | L27: 91 | M27: 273 | N27: 289 | O27: 445 | P27: 563
A29: 2011
B30: Institute der Fraunhofer-Gesellschaft | C30: 2381 | D30: 5180 | E30: 807 | F30: 1577 | G30: 1377 | H30: 3152 | I30: 59 | J30: 130 | K30: 10 | L30: 41 | M30: 58 | N30: 68 | O30: 70 | P30: 212
B31: Helmholtz-Zentren | C31: 3573 | D31: 2318 | E31: 1496 | F31: 1292 | G31: 1524 | H31: 490 | I31: 515 | J31: 507 | K31: . | L31: . | M31: . | N31: . | O31: 26 | P31: 28
B32: Leibniz-Gemeinschaft ("Blaue Liste") | C32: 876 | D32: 2051 | E32: 387 | F32: 1228 | G32: 96 | H32: 85 | I32: 42 | J32: 177 | K32: 25 | L32: 66 | M32: 77 | N32: 225 | O32: 249 | P32: 270
B33: Institute der Max-Planck-Gesellschaft | C33: 1811 | D33: 583 | E33: 1477 | F33: 442 | G33: 37 | H33: 11 | I33: 90 | J33: 12 | K33: . | L33: . | M33: . | N33: . | O33: 94 | P33: 98
B34: Insgesamt … | C34: 8641 | D34: 10132 | E34: 4167 | F34: 4538 | G34: 3033 | H34: 3738 | I34: 706 | J34: 827 | K34: 56 | L34: 110 | M34: 240 | N34: 311 | O34: 438 | P34: 608
A36: 2012
B37: Institute der Fraunhofer-Gesellschaft | C37: 2568 | D37: 3406 | E37: 836 | F37: 1036 | G37: 1547 | H37: 2092 | I37: 55 | J37: 88 | K37: 10 | L37: 28 | M37: 46 | N37: 26 | O37: 73 | P37: 136
B38: Helmholtz-Zentren | C38: 3511 | D38: 2723 | E38: 1609 | F38: 1653 | G38: 1292 | H38: 444 | I38: 577 | J38: 590 | K38: . | L38: . | M38: . | N38: . | O38: 21 | P38: 33
B39: Leibniz-Gemeinschaft ("Blaue Liste") | C39: 909 | D39: 2174 | E39: 440 | F39: 1167 | G39: 85 | H39: 60 | I39: 51 | J39: 234 | K39: 35 | L39: 101 | M39: 72 | N39: 316 | O39: 227 | P39: 295
B40: Institute der Max-Planck-Gesellschaft | C40: 1892 | D40: 909 | E40: 1539 | F40: 710 | G40: 40 | H40: 12 | I40: 91 | J40: 22 | K40: . | L40: . | M40: . | N40: . | O40: 120 | P40: 111
B41: Insgesamt … | C41: 8880 | D41: 9212 | E41: 4423 | F41: 4567 | G41: 2964 | H41: 2609 | I41: 773 | J41: 934 | K41: 68 | L41: 133 | M41: 211 | N41: 394 | O41: 441 | P41: 576
A43: 2013
B44: Institute der Fraunhofer-Gesellschaft | C44: 2915 | D44: 1940 | E44: 969 | F44: 654 | G44: 1729 | H44: 1081 | I44: 84 | J44: 92 | K44: 6 | L44: 12 | M44: 0 | N44: 0 | O44: 127 | P44: 101
B45: Helmholtz-Zentren | C45: 3837 | D45: 3050 | E45: 1811 | F45: 1806 | G45: 1371 | H45: 526 | I45: 616 | J45: 680 | K45: . | L45: . | M45: . | N45: . | O45: 19 | P45: 33
B46: Leibniz-Gemeinschaft ("Blaue Liste") | C46: 962 | D46: 2342 | E46: 444 | F46: 1303 | G46: 97 | H46: 70 | I46: 72 | J46: 256 | K46: 49 | L46: 76 | M46: 91 | N46: 311 | O46: 208 | P46: 326
B47: Institute der Max-Planck-Gesellschaft | C47: 1811 | D47: 905 | E47: 1476 | F47: 714 | G47: 32 | H47: 15 | I47: 90 | J47: 29 | K47: . | L47: . | M47: . | N47: . | O47: 126 | P47: 87
B48: Insgesamt … | C48: 9525 | D48: 8237 | E48: 4701 | F48: 4477 | G48: 3229 | H48: 1692 | I48: 862 | J48: 1058 | K48: 79 | L48: 93 | M48: 174 | N48: 370 | O48: 480 | P48: 547
A49: _______
A50: Durch verfahrensbedingte Anpassungen können einzelne Summen voneinander abweichen.
A52: Statistisches Bundesamt (Destatis), H204 Forschung und Entwicklung

Sheet 5.8
A1: Wissenschaftler der wissenschaftlichen Einrichtungen des öffentlichen Sektors
A2: nach Altersklasse, ausgewählte Einrichtungsarten, Wissenschaftszweigen und Umfang
A4: mit Promotion bis 44 Jahre | C4: Insgesamt | E4: Naturwissenschaften | G4: Ingenieurwissenschaften | I4: Humanmedizin | K4: Agrarwissenschaften | M4: Geisteswissenschaften | O4: Sozialwissenschaften
C5: Vollzeit | D5: Teilzeit | E5: Vollzeit | F5: Teilzeit | G5: Vollzeit | H5: Teilzeit | I5: Vollzeit | J5: Teilzeit | K5: Vollzeit | L5: Teilzeit | M5: Vollzeit | N5: Teilzeit | O5: Vollzeit | P5: Teilzeit
C6: HC
A8: 2008
B9: Institute der Fraunhofer-Gesellschaft | C9: 1034 | D9: 164 | E9: 281 | F9: 57 | G9: 674 | H9: 90 | I9: 31 | J9: 8 | K9: . | L9: . | M9: 0 | N9: 0 | O9: . | P9: .
B10: Helmholtz-Zentren | C10: 2458 | D10: 400 | E10: 1228 | F10: 263 | G10: 850 | H10: 85 | I10: 353 | J10: 48 | K10: . | L10: . | M10: 0 | N10: 0 | O10: . | P10: .
B11: Leibniz-Gemeinschaft ("Blaue Liste") | C11: 1026 | D11: 233 | E11: 701 | F11: 124 | G11: . | H11: . | I11: 50 | J11: 20 | K11: . | L11: . | M11: 90 | N11: 29 | O11: 111 | P11: 38
B12: Institute der Max-Planck-Gesellschaft | C12: 2074 | D12: 198 | E12: 1744 | F12: 143 | G12: . | H12: . | I12: 80 | J12: 8 | K12: . | L12: . | M12: 92 | N12: 18 | O12: 115 | P12: 26
B13: Insgesamt … | C13: 6592 | D13: 995 | E13: 3953 | F13: 587 | G13: 1584 | H13: 182 | I13: 514 | J13: 85 | K13: 89 | L13: 23 | M13: 182 | N13: 47 | O13: 270 | P13: 72
A15: 2009
B16: Institute der Fraunhofer-Gesellschaft | C16: 1243 | D16: 177 | E16: 330 | F16: 57 | G16: 783 | H16: 94 | I16: 72 | J16: 15 | K16: . | L16: . | M16: . | N16: . | O16: . | P16: .
B17: Helmholtz-Zentren | C17: 1940 | D17: 337 | E17: 1108 | F17: 248 | G17: 422 | H17: 41 | I17: 389 | J17: 44 | K17: . | L17: . | M17: 0 | N17: 0 | O17: . | P17: .
B18: Leibniz-Gemeinschaft ("Blaue Liste") | C18: 1084 | D18: 259 | E18: 665 | F18: 140 | G18: . | H18: . | I18: 108 | J18: 25 | K18: . | L18: . | M18: 113 | N18: 31 | O18: 122 | P18: 39
B19: Institute der Max-Planck-Gesellschaft | C19: 2173 | D19: 192 | E19: 1800 | F19: 138 | G19: . | H19: . | I19: 98 | J19: 9 | K19: . | L19: . | M19: 109 | N19: 17 | O19: 118 | P19: 24
B20: Insgesamt … | C20: 6440 | D20: 965 | E20: 3903 | F20: 583 | G20: 1282 | H20: 152 | I20: 667 | J20: 93 | K20: 62 | L20: 14 | M20: 238 | N20: 50 | O20: 288 | P20: 72
A22: 2010
B23: Institute der Fraunhofer-Gesellschaft | C23: 1277 | D23: 171 | E23: 403 | F23: 58 | G23: 731 | H23: 83 | I23: 63 | J23: 15 | K23: . | L23: . | M23: 31 | N23: 5 | O23: . | P23: .
B24: Helmholtz-Zentren | C24: 2284 | D24: 427 | E24: 1321 | F24: 294 | G24: 416 | H24: 47 | I24: 514 | J24: 80 | K24: . | L24: . | M24: 0 | N24: 0 | O24: . | P24: .
B25: Leibniz-Gemeinschaft ("Blaue Liste") | C25: 1139 | D25: 279 | E25: 710 | F25: 133 | G25: . | H25: . | I25: 111 | J25: 26 | K25: 33 | L25: 15 | M25: 107 | N25: 30 | O25: 151 | P25: 64
B26: Institute der Max-Planck-Gesellschaft | C26: 2350 | D26: 218 | E26: 1962 | F26: 162 | G26: . | H26: . | I26: 104 | J26: 7 | K26: . | L26: . | M26: 123 | N26: 18 | O26: 123 | P26: 28
B27: Insgesamt … | C27: 7050 | D27: 1095 | E27: 4396 | F27: 647 | G27: 1200 | H27: 142 | I27: 792 | J27: 128 | K27: 67 | L27: 22 | M27: 262 | N27: 53 | O27: 333 | P27: 103
A29: 2011
B30: Institute der Fraunhofer-Gesellschaft | C30: 1245 | D30: 170 | E30: 430 | F30: 61 | G30: 691 | H30: 84 | I30: 63 | J30: 12 | K30: . | L30: . | M30: 21 | N30: 7 | O30: . | P30: .
B31: Helmholtz-Zentren | C31: 3160 | D31: 451 | E31: 1687 | F31: 236 | G31: 846 | H31: 122 | I31: 590 | J31: 87 | K31: . | L31: . | M31: 0 | N31: 0 | O31: . | P31: .
B32: Leibniz-Gemeinschaft ("Blaue Liste") | C32: 1419 | D32: 346 | E32: 852 | F32: 139 | G32: . | H32: . | I32: 151 | J32: 42 | K32: . | L32: . | M32: 125 | N32: 43 | O32: 208 | P32: 86
B33: Institute der Max-Planck-Gesellschaft | C33: 2401 | D33: 234 | E33: 1995 | F33: 173 | G33: . | H33: . | I33: 106 | J33: 10 | K33: . | L33: . | M33: 126 | N33: 19 | O33: 135 | P33: 29
B34: Insgesamt … | C34: 8225 | D34: 1201 | E34: 4964 | F34: 608 | G34: 1620 | H34: 226 | I34: 910 | J34: 150 | K34: 61 | L34: 24 | M34: 272 | N34: 69 | O34: 398 | P34: 125
A36: 2012
B37: Institute der Fraunhofer-Gesellschaft | C37: 1383 | D37: 233 | E37: 485 | F37: 81 | G37: 761 | H37: 115 | I37: 77 | J37: 19 | K37: . | L37: . | M37: 10 | N37: 7 | O37: . | P37: .
B38: Helmholtz-Zentren | C38: 3546 | D38: 525 | E38: 1941 | F38: 274 | G38: 856 | H38: 130 | I38: 715 | J38: 114 | K38: . | L38: . | M38: 0 | N38: 0 | O38: . | P38: .
B39: Leibniz-Gemeinschaft ("Blaue Liste") | C39: 1489 | D39: 396 | E39: 805 | F39: 153 | G39: . | H39: . | I39: 180 | J39: 60 | K39: . | L39: . | M39: 159 | N39: 54 | O39: 237 | P39: 82
B40: Institute der Max-Planck-Gesellschaft | C40: 2338 | D40: 250 | E40: 1934 | F40: 181 | G40: . | H40: . | I40: 99 | J40: 14 | K40: . | L40: . | M40: 123 | N40: 20 | O40: 148 | P40: 28
B41: Insgesamt … | C41: 8756 | D41: 1404 | E41: 5165 | F41: 688 | G41: 1709 | H41: 267 | I41: 1071 | J41: 208 | K41: 75 | L41: 37 | M41: 292 | N41: 81 | O41: 443 | P41: 122
A43: 2013
B44: Institute der Fraunhofer-Gesellschaft | C44: 1352 | D44: 235 | E44: 493 | F44: 82 | G44: 724 | H44: 115 | I44: 89 | J44: 24 | K44: 10 | L44: 4 | M44: 0 | N44: 0 | O44: 35 | P44: 11
B45: Helmholtz-Zentren | C45: 3931 | D45: 594 | E45: 2251 | F45: 300 | G45: 939 | H45: 160 | I45: 702 | J45: 127 | K45: . | L45: . | M45: . | N45: . | O45: 23 | P45: 4
B46: Leibniz-Gemeinschaft ("Blaue Liste") | C46: 1535 | D46: 439 | E46: 847 | F46: 170 | G46: 85 | H46: 20 | I46: 158 | J46: 66 | K46: 35 | L46: 20 | M46: 138 | N46: 61 | O46: 271 | P46: 102
B47: Institute der Max-Planck-Gesellschaft | C47: 2336 | D47: 268 | E47: 1971 | F47: 204 | G47: 29 | H47: 3 | I47: 103 | J47: 12 | K47: . | L47: . | M47: . | N47: . | O47: 115 | P47: 30
B48: Insgesamt … | C48: 9154 | D48: 1536 | E48: 5563 | F48: 756 | G48: 1778 | H48: 297 | I48: 1052 | J48: 228 | K48: 65 | L48: 27 | M48: 251 | N48: 80 | O48: 445 | P48: 147
A49: _______
A50: Durch verfahrensbedingte Anpassungen können einzelne Summen voneinander abweichen.
A52: Statistisches Bundesamt (Destatis), H204 Forschung und Entwicklung

Sheet 5.9
A1: Wissenschaftler der wissenschaftlichen Einrichtungen des öffentlichen Sektors
A2: nach Altersklasse, ausgewählte Einrichtungsarten, Wissenschaftszweigen und Umfang
A4: mit Promotion befristet | C4: Insgesamt | E4: Naturwissenschaften | G4: Ingenieurwissenschaften | I4: Humanmedizin | K4: Agrarwissenschaften | M4: Geisteswissenschaften | O4: Sozialwissenschaften
C5: Vollzeit | D5: Teilzeit | E5: Vollzeit | F5: Teilzeit | G5: Vollzeit | H5: Teilzeit | I5: Vollzeit | J5: Teilzeit | K5: Vollzeit | L5: Teilzeit | M5: Vollzeit | N5: Teilzeit | O5: Vollzeit | P5: Teilzeit
C6: HC
A8: 2008
B9: Institute der Fraunhofer-Gesellschaft | C9: 615 | D9: 156 | E9: 163 | F9: 48 | G9: 389 | H9: 94 | I9: 22 | J9: 6 | K9: . | L9: . | M9: 0 | N9: 0 | O9: . | P9: .
B10: Helmholtz-Zentren | C10: 1418 | D10: 344 | E10: 790 | F10: 252 | G10: 416 | H10: 55 | I10: 187 | J10: 32 | K10: . | L10: . | M10: 0 | N10: 0 | O10: . | P10: .
B11: Leibniz-Gemeinschaft ("Blaue Liste") | C11: 835 | D11: 250 | E11: 590 | F11: 137 | G11: . | H11: . | I11: 39 | J11: 21 | K11: . | L11: . | M11: 68 | N11: 32 | O11: 74 | P11: 32
B12: Institute der Max-Planck-Gesellschaft | C12: 1999 | D12: 261 | E12: 1674 | F12: 201 | G12: . | H12: . | I12: 73 | J12: 8 | K12: . | L12: . | M12: 95 | N12: 19 | O12: 122 | P12: 32
B13: Insgesamt … | C13: 4867 | D13: 1011 | E13: 3218 | F13: 638 | G13: 853 | H13: 156 | I13: 321 | J13: 67 | K13: 81 | L13: 29 | M13: 164 | N13: 51 | O13: 230 | P13: 70
A15: 2009
B16: Institute der Fraunhofer-Gesellschaft | C16: 826 | D16: 202 | E16: 222 | F16: 63 | G16: 502 | H16: 117 | I16: 60 | J16: 14 | K16: . | L16: . | M16: . | N16: . | O16: 21 | P16: 3
B17: Helmholtz-Zentren | C17: 1237 | D17: 335 | E17: 736 | F17: 238 | G17: 245 | H17: 61 | I17: 236 | J17: 33 | K17: . | L17: . | M17: . | N17: . | O17: 19 | P17: 3
B18: Leibniz-Gemeinschaft ("Blaue Liste") | C18: 969 | D18: 289 | E18: 609 | F18: 155 | G18: . | H18: . | I18: 110 | J18: 32 | K18: . | L18: . | M18: 96 | N18: 33 | O18: 100 | P18: 42
B19: Institute der Max-Planck-Gesellschaft | C19: 2122 | D19: 266 | E19: 1749 | F19: 203 | G19: . | H19: . | I19: 90 | J19: 9 | K19: . | L19: . | M19: 117 | N19: 17 | O19: 123 | P19: 32
B20: Insgesamt … | C20: 5154 | D20: 1092 | E20: 3316 | F20: 658 | G20: 813 | H20: 194 | I20: 496 | J20: 88 | K20: 43 | L20: 19 | M20: 223 | N20: 52 | O20: 262 | P20: 81
A22: 2010
B23: Institute der Fraunhofer-Gesellschaft | C23: 844 | D23: 202 | E23: 269 | F23: 68 | G23: 477 | H23: 109 | I23: 49 | J23: 13 | K23: . | L23: . | M23: 14 | N23: 5 | O23: . | P23: .
B24: Helmholtz-Zentren | C24: 1588 | D24: 434 | E24: 963 | F24: 290 | G24: 238 | H24: 69 | I24: 357 | J24: 69 | K24: . | L24: . | M24: 0 | N24: 0 | O24: . | P24: .
B25: Leibniz-Gemeinschaft ("Blaue Liste") | C25: 1011 | D25: 323 | E25: 646 | F25: 168 | G25: . | H25: . | I25: 115 | J25: 37 | K25: . | L25: . | M25: 90 | N25: 34 | O25: 115 | P25: 56
B26: Institute der Max-Planck-Gesellschaft | C26: 2265 | D26: 305 | E26: 1888 | F26: 239 | G26: . | H26: . | I26: 95 | J26: 10 | K26: . | L26: . | M26: 126 | N26: 19 | O26: 123 | P26: 35
B27: Insgesamt … | C27: 5708 | D27: 1264 | E27: 3766 | F27: 765 | G27: 755 | H27: 191 | I27: 616 | J27: 128 | K27: 56 | L27: 21 | M27: 230 | N27: 58 | O27: 285 | P27: 100
A29: 2011
B30: Institute der Fraunhofer-Gesellschaft | C30: 845 | D30: 214 | E30: 281 | F30: 75 | G30: 467 | H30: 117 | I30: 56 | J30: 13 | K30: . | L30: . | M30: 10 | N30: 3 | O30: . | P30: .
B31: Helmholtz-Zentren | C31: 2322 | D31: 446 | E31: 1235 | F31: 239 | G31: 627 | H31: 127 | I31: 426 | J31: 72 | K31: . | L31: . | M31: 0 | N31: 0 | O31: . | P31: .
B32: Leibniz-Gemeinschaft ("Blaue Liste") | C32: 1292 | D32: 393 | E32: 805 | F32: 180 | G32: . | H32: . | I32: 161 | J32: 49 | K32: . | L32: . | M32: 110 | N32: 53 | O32: 138 | P32: 72
B33: Institute der Max-Planck-Gesellschaft | C33: 2329 | D33: 307 | E33: 1946 | F33: 238 | G33: . | H33: . | I33: 97 | J33: 10 | K33: . | L33: . | M33: 119 | N33: 20 | O33: 136 | P33: 34
B34: Insgesamt … | C34: 6788 | D34: 1360 | E34: 4267 | F34: 733 | G34: 1164 | H34: 266 | I34: 740 | J34: 145 | K34: 57 | L34: 26 | M34: 239 | N34: 76 | O34: 321 | P34: 116
A36: 2012
B37: Institute der Fraunhofer-Gesellschaft | C37: 975 | D37: 261 | E37: 330 | F37: 89 | G37: 532 | H37: 138 | I37: 72 | J37: 24 | K37: 15 | L37: 3 | M37: . | N37: . | O37: . | P37: .
B38: Helmholtz-Zentren | C38: 2689 | D38: 524 | E38: 1468 | F38: 280 | G38: 663 | H38: 137 | I38: 528 | J38: 100 | K38: . | L38: . | M38: . | N38: . | O38: . | P38: .
B39: Leibniz-Gemeinschaft ("Blaue Liste") | C39: 1384 | D39: 504 | E39: 768 | F39: 216 | G39: . | H39: . | I39: 202 | J39: 77 | K39: . | L39: . | M39: 142 | N39: 69 | O39: 181 | P39: 86
B40: Institute der Max-Planck-Gesellschaft | C40: 2275 | D40: 336 | E40: 1889 | F40: 257 | G40: . | H40: . | I40: 91 | J40: 14 | K40: . | L40: . | M40: 118 | N40: 24 | O40: 149 | P40: 35
B41: Insgesamt … | C41: 7323 | D41: 1625 | E41: 4455 | F41: 843 | G41: 1273 | H41: 298 | I41: 894 | J41: 215 | K41: 64 | L41: 44 | M41: 264 | N41: 93 | O41: 373 | P41: 132
A43: 2013
B44: Institute der Fraunhofer-Gesellschaft | C44: 947 | D44: 274 | E44: 334 | F44: 86 | G44: 504 | H44: 145 | I44: 81 | J44: 30 | K44: 8 | L44: 4 | M44: 0 | N44: 0 | O44: 20 | P44: 8
B45: Helmholtz-Zentren | C45: 3022 | D45: 639 | E45: 1808 | F45: 334 | G45: 690 | H45: 167 | I45: 488 | J45: 130 | K45: . | L45: . | M45: . | N45: . | O45: 22 | P45: 5
B46: Leibniz-Gemeinschaft ("Blaue Liste") | C46: 1458 | D46: 536 | E46: 831 | F46: 241 | G46: 83 | H46: 21 | I46: 170 | J46: 81 | K46: 28 | L46: 30 | M46: 130 | N46: 68 | O46: 216 | P46: 95
B47: Institute der Max-Planck-Gesellschaft | C47: 2288 | D47: 343 | E47: 1938 | F47: 271 | G47: 25 | H47: 4 | I47: 91 | J47: 12 | K47: . | L47: . | M47: . | N47: . | O47: 119 | P47: 34
B48: Insgesamt … | C48: 7715 | D48: 1792 | E48: 4910 | F48: 932 | G48: 1303 | H48: 338 | I48: 830 | J48: 253 | K48: 55 | L48: 37 | M48: 240 | N48: 90 | O48: 377 | P48: 143
A49: _______
A50: Durch verfahrensbedingte Anpassungen können einzelne Summen voneinander abweichen.
A52: Statistisches Bundesamt (Destatis), H204 Forschung und Entwicklung

Sheet 5.10
A1: Wissenschaftler der wissenschaftlichen Einrichtungen des öffentlichen Sektors
A2: nach Altersklasse, ausgewählte Einrichtungsarten, Wissenschaftszweigen und Dauer
A4: ohne Promotion bis 34 Jahre | C4: Insgesamt | E4: Naturwissenschaften | G4: Ingenieurwissenschaften | I4: Humanmedizin | K4: Agrarwissenschaften | M4: Geisteswissenschaften | O4: Sozialwissenschaften
C5: befristet | D5: unbefristet | E5: befristet | F5: unbefristet | G5: befristet | H5: unbefristet | I5: befristet | J5: unbefristet | K5: befristet | L5: unbefristet | M5: befristet | N5: unbefristet | O5: befristet | P5: unbefristet
C6: HC
A8: 2008
B9: Institute der Fraunhofer-Gesellschaft | C9: 5369 | D9: 131 | E9: 1458 | F9: 47 | G9: 3539 | H9: 78 | I9: . | J9: . | K9: . | L9: . | M9: . | N9: . | O9: 196 | P9: 3
B10: Helmholtz-Zentren | C10: 3219 | D10: 902 | E10: 1715 | F10: 372 | G10: 1159 | H10: 213 | I10: 309 | J10: 315 | K10: . | L10: . | M10: 0 | N10: 0 | O10: . | P10: .
B11: Leibniz-Gemeinschaft ("Blaue Liste") | C11: 1817 | D11: 355 | E11: 1140 | F11: 181 | G11: . | H11: . | I11: . | J11: . | K11: 117 | L11: 8 | M11: 128 | N11: 20 | O11: 290 | P11: 85
B12: Institute der Max-Planck-Gesellschaft | C12: 2246 | D12: 92 | E12: 1857 | F12: 76 | G12: . | H12: . | I12: 71 | J12: 3 | K12: . | L12: . | M12: . | N12: . | O12: . | P12: .
B13: Insgesamt … | C13: 12651 | D13: 1480 | E13: 6169 | F13: 676 | G13: 4816 | H13: 341 | I13: 566 | J13: 331 | K13: 183 | L13: 10 | M13: 240 | N13: 23 | O13: 677 | P13: 98
A15: 2009
B16: Institute der Fraunhofer-Gesellschaft | C16: 6449 | D16: 193 | E16: 1569 | F16: 54 | G16: 4123 | H16: 126 | I16: 205 | J16: 4 | K16: . | L16: . | M16: 319 | N16: 7 | O16: . | P16: .
B17: Helmholtz-Zentren | C17: 4014 | D17: 814 | E17: 1946 | F17: 347 | G17: 1513 | H17: 130 | I17: 507 | J17: 335 | K17: . | L17: . | M17: 0 | N17: 0 | O17: . | P17: .
B18: Leibniz-Gemeinschaft ("Blaue Liste") | C18: 2272 | D18: 383 | E18: 1344 | F18: 187 | G18: . | H18: . | I18: 240 | J18: 20 | K18: . | L18: . | M18: 188 | N18: 19 | O18: 338 | P18: 96
B19: Institute der Max-Planck-Gesellschaft | C19: 2384 | D19: 83 | E19: 1932 | F19: 66 | G19: . | H19: . | I19: 95 | J19: 4 | K19: . | L19: . | M19: 112 | N19: 3 | O19: 178 | P19: 9
B20: Insgesamt … | C20: 15119 | D20: 1473 | E20: 6791 | F20: 654 | G20: 5791 | H20: 315 | I20: 1047 | J20: 362 | K20: 118 | L20: 4 | M20: 619 | N20: 29 | O20: 753 | P20: 109
A22: 2010
B23: Institute der Fraunhofer-Gesellschaft | C23: 6931 | D23: 227 | E23: 2060 | F23: 75 | G23: 4247 | H23: 138 | I23: 169 | J23: 4 | K23: . | L23: . | M23: . | N23: . | O23: 257 | P23: 4
B24: Helmholtz-Zentren | C24: 4595 | D24: 853 | E24: 2172 | F24: 363 | G24: 1708 | H24: 163 | I24: 660 | J24: 323 | K24: 10 | L24: 0 | M24: 0 | N24: 0 | O24: 45 | P24: 3
B25: Leibniz-Gemeinschaft ("Blaue Liste") | C25: 2653 | D25: 458 | E25: 1541 | F25: 237 | G25: . | H25: . | I25: 277 | J25: 14 | K25: . | L25: . | M25: 266 | N25: 24 | O25: 365 | P25: 121
B26: Institute der Max-Planck-Gesellschaft | C26: 2457 | D26: 89 | E26: 1980 | F26: 71 | G26: . | H26: . | I26: 99 | J26: 4 | K26: 19 | L26: . | M26: . | N26: . | O26: 206 | P26: 8
B27: Insgesamt … | C27: 16636 | D27: 1627 | E27: 7754 | F27: 746 | G27: 6126 | H27: 360 | I27: 1206 | J27: 345 | K27: 148 | L27: 7 | M27: 529 | N27: 33 | O27: 873 | P27: 136
A29: 2011
B30: Institute der Fraunhofer-Gesellschaft | C30: 7325 | D30: 236 | E30: 2302 | F30: 82 | G30: 4422 | H30: 106 | I30: 185 | J30: 4 | K30: . | L30: . | M30: 90 | N30: 36 | O30: . | P30: .
B31: Helmholtz-Zentren | C31: 4969 | D31: 922 | E31: 2347 | F31: 441 | G31: 1847 | H31: 167 | I31: 715 | J31: 307 | K31: . | L31: . | M31: 0 | N31: 0 | O31: . | P31: .
B32: Leibniz-Gemeinschaft ("Blaue Liste") | C32: 2573 | D32: 354 | E32: 1490 | F32: 124 | G32: 167 | H32: 14 | I32: 200 | J32: 19 | K32: 87 | L32: 4 | M32: 273 | N32: 29 | O32: 355 | P32: 164
B33: Institute der Max-Planck-Gesellschaft | C33: 2313 | D33: 81 | E33: 1862 | F33: 58 | G33: 45 | H33: 3 | I33: 97 | J33: 5 | K33: . | L33: . | M33: 118 | N33: 5 | O33: . | P33: .
B34: Insgesamt … | C34: 17180 | D34: 1593 | E34: 8001 | F34: 705 | G34: 6481 | H34: 290 | I34: 1197 | J34: 336 | K34: 160 | L34: 6 | M34: 481 | N34: 70 | O34: 860 | P34: 186
A36: 2012
B37: Institute der Fraunhofer-Gesellschaft | C37: 5702 | D37: 272 | E37: 1777 | F37: 95 | G37: 3504 | H37: 135 | I37: 139 | J37: 4 | K37: . | L37: . | M37: 42 | N37: 30 | O37: . | P37: .
B38: Helmholtz-Zentren | C38: 5340 | D38: 894 | E38: 2828 | F38: 434 | G38: 1585 | H38: 152 | I38: 863 | J38: 304 | K38: . | L38: . | M38: 0 | N38: 0 | O38: . | P38: .
B39: Leibniz-Gemeinschaft ("Blaue Liste") | C39: 2798 | D39: 285 | E39: 1494 | F39: 113 | G39: 137 | H39: 9 | I39: 275 | J39: 10 | K39: 133 | L39: 3 | M39: 348 | N39: 40 | O39: 412 | P39: 110
B40: Institute der Max-Planck-Gesellschaft | C40: 2685 | D40: 116 | E40: 2173 | F40: 76 | G40: 47 | H40: 4 | I40: 105 | J40: 8 | K40: . | L40: . | M40: 133 | N40: 12 | O40: . | P40: .
B41: Insgesamt … | C41: 16525 | D41: 1567 | E41: 8271 | F41: 718 | G41: 5273 | H41: 300 | I41: 1382 | J41: 325 | K41: 194 | L41: 7 | M41: 524 | N41: 82 | O41: 881 | P41: 135
A43: 2013
B44: Institute der Fraunhofer-Gesellschaft | C44: 4556 | D44: 299 | E44: 1517 | F44: 106 | G44: 2637 | H44: 173 | I44: 166 | J44: 9 | K44: . | L44: . | M44: . | N44: . | O44: 220 | P44: 8
B45: Helmholtz-Zentren | C45: 5823 | D45: 1064 | E45: 3147 | F45: 471 | G45: 1730 | H45: 168 | I45: 875 | J45: 421 | K45: . | L45: . | M45: . | N45: . | O45: 48 | P45: 3
B46: Leibniz-Gemeinschaft ("Blaue Liste") | C46: 3068 | D46: 236 | E46: 1698 | F46: 49 | G46: . | H46: . | I46: 318 | J46: 10 | K46: . | L46: . | M46: 372 | N46: 30 | O46: 407 | P46: 128
B47: Institute der Max-Planck-Gesellschaft | C47: 2600 | D47: 116 | E47: 2105 | F47: 85 | G47: . | H47: . | I47: 113 | J47: 6 | K47: . | L47: . | M47: 129 | N47: 10 | O47: 200 | P47: 14
B48: Insgesamt … | C48: 16047 | D48: 1715 | E48: 8468 | F48: 711 | G48: 4564 | H48: 357 | I48: 1473 | J48: 447 | K48: 164 | L48: 8 | M48: 503 | N48: 40 | O48: 875 | P48: 152
A49: _______
A50: Durch verfahrensbedingte Anpassungen können einzelne Summen voneinander abweichen.
A52: Statistisches Bundesamt (Destatis), H204 Forschung und Entwicklung

Sheet 5.11
A1: Wissenschaftler der wissenschaftlichen Einrichtungen des öffentlichen Sektors
A2: nach Altersklasse, ausgewählte Einrichtungsarten, Wissenschaftszweigen und Dauer
A4: mit Promotion bis 44 Jahre | C4: Insgesamt | E4: Naturwissenschaften | G4: Ingenieurwissenschaften | I4: Humanmedizin | K4: Agrarwissenschaften | M4: Geisteswissenschaften | O4: Sozialwissenschaften
C5: befristet | D5: unbefristet | E5: befristet | F5: unbefristet | G5: befristet | H5: unbefristet | I5: befristet | J5: unbefristet | K5: befristet | L5: unbefristet | M5: befristet | N5: unbefristet | O5: befristet | P5: unbefristet
C6: HC
A8: 2008
B9: Institute der Fraunhofer-Gesellschaft | C9: 620 | D9: 578 | E9: 176 | F9: 162 | G9: 384 | H9: 381 | I9: 21 | J9: 18 | K9: . | L9: . | M9: 0 | N9: 0 | O9: . | P9: .
B10: Helmholtz-Zentren | C10: 1439 | D10: 1419 | E10: 860 | F10: 630 | G10: 373 | H10: 562 | I10: 184 | J10: 218 | K10: . | L10: . | M10: 0 | N10: 0 | O10: . | P10: .
B11: Leibniz-Gemeinschaft ("Blaue Liste") | C11: 818 | D11: 441 | E11: 544 | F11: 281 | G11: 12 | H11: 12 | I11: 48 | J11: 22 | K11: 49 | L11: 23 | M11: 77 | N11: 41 | O11: 88 | P11: 61
B12: Institute der Max-Planck-Gesellschaft | C12: 1977 | D12: 295 | E12: 1644 | F12: 243 | G12: 33 | H12: 10 | I12: 75 | J12: 13 | K12: . | L12: . | M12: 94 | N12: 16 | O12: . | P12: .
B13: Insgesamt … | C13: 4854 | D13: 2733 | E13: 3224 | F13: 1316 | G13: 801 | H13: 965 | I13: 328 | J13: 271 | K13: 81 | L13: 31 | M13: 171 | N13: 58 | O13: 249 | P13: 92
A15: 2009
B16: Institute der Fraunhofer-Gesellschaft | C16: 835 | D16: 585 | E16: 234 | F16: 153 | G16: 499 | H16: 379 | I16: 62 | J16: 26 | K16: . | L16: . | M16: 8 | N16: 10 | O16: . | P16: .
B17: Helmholtz-Zentren | C17: 1273 | D17: 1004 | E17: 816 | F17: 540 | G17: 219 | H17: 244 | I17: 220 | J17: 213 | K17: . | L17: . | M17: 0 | N17: 0 | O17: . | P17: .
B18: Leibniz-Gemeinschaft ("Blaue Liste") | C18: 954 | D18: 389 | E18: 577 | F18: 228 | G18: 33 | H18: 20 | I18: 107 | J18: 26 | K18: 28 | L18: 20 | M18: 98 | N18: 46 | O18: 111 | P18: 50
B19: Institute der Max-Planck-Gesellschaft | C19: 2073 | D19: 292 | E19: 1700 | F19: 238 | G19: 33 | H19: 9 | I19: 93 | J19: 14 | K19: . | L19: . | M19: 111 | N19: 15 | O19: . | P19: .
B20: Insgesamt … | C20: 5135 | D20: 2270 | E20: 3328 | F20: 1159 | G20: 783 | H20: 651 | I20: 481 | J20: 279 | K20: 50 | L20: 27 | M20: 217 | N20: 72 | O20: 277 | P20: 83
A22: 2010
B23: Institute der Fraunhofer-Gesellschaft | C23: 842 | D23: 606 | E23: 277 | F23: 185 | G23: 465 | H23: 349 | I23: 51 | J23: 26 | K23: 13 | L23: 7 | M23: 12 | N23: 24 | O23: 24 | P23: 14
B24: Helmholtz-Zentren | C24: 1641 | D24: 1070 | E24: 1036 | F24: 579 | G24: 216 | H24: 247 | I24: 362 | J24: 232 | K24: . | L24: . | M24: 0 | N24: 0 | O24: . | P24: .
B25: Leibniz-Gemeinschaft ("Blaue Liste") | C25: 1026 | D25: 392 | E25: 632 | F25: 212 | G25: 18 | H25: 19 | I25: 118 | J25: 19 | K25: 32 | L25: 17 | M25: 86 | N25: 52 | O25: 141 | P25: 74
B26: Institute der Max-Planck-Gesellschaft | C26: 2251 | D26: 317 | E26: 1861 | F26: 264 | G26: 21 | H26: 6 | I26: 97 | J26: 14 | K26: . | L26: . | M26: 122 | N26: 19 | O26: . | P26: .
B27: Insgesamt … | C27: 5760 | D27: 2385 | E27: 3805 | F27: 1239 | G27: 720 | H27: 622 | I27: 628 | J27: 292 | K27: 63 | L27: 27 | M27: 220 | N27: 95 | O27: 324 | P27: 111
A29: 2011
B30: Institute der Fraunhofer-Gesellschaft | C30: 832 | D30: 583 | E30: 283 | F30: 207 | G30: 452 | H30: 322 | I30: 54 | J30: 21 | K30: 10 | L30: 4 | M30: 11 | N30: 18 | O30: 22 | P30: 11
B31: Helmholtz-Zentren | C31: 2212 | D31: 1399 | E31: 1182 | F31: 742 | G31: 585 | H31: 383 | I31: 414 | J31: 263 | K31: . | L31: . | M31: 0 | N31: 0 | O31: . | P31: .
B32: Leibniz-Gemeinschaft ("Blaue Liste") | C32: 1317 | D32: 448 | E32: 779 | F32: 211 | G32: 48 | H32: 21 | I32: 156 | J32: 37 | K32: 38 | L32: 14 | M32: 116 | N32: 52 | O32: 181 | P32: 114
B33: Institute der Max-Planck-Gesellschaft | C33: 2323 | D33: 312 | E33: 1918 | F33: 249 | G33: 25 | H33: 10 | I33: 98 | J33: 17 | K33: . | L33: . | M33: 124 | N33: 21 | O33: . | P33: .
B34: Insgesamt … | C34: 6684 | D34: 2742 | E34: 4163 | F34: 1409 | G34: 1110 | H34: 736 | I34: 722 | J34: 338 | K34: 63 | L34: 21 | M34: 251 | N34: 90 | O34: 375 | P34: 148
A36: 2012
B37: Institute der Fraunhofer-Gesellschaft | C37: 986 | D37: 630 | E37: 339 | F37: 227 | G37: 528 | H37: 348 | I37: 76 | J37: 20 | K37: 14 | L37: 7 | M37: 3 | N37: 14 | O37: 25 | P37: 14
B38: Helmholtz-Zentren | C38: 2601 | D38: 1470 | E38: 1434 | F38: 781 | G38: 604 | H38: 382 | I38: 532 | J38: 297 | K38: . | L38: . | M38: 0 | N38: 0 | O38: . | P38: .
B39: Leibniz-Gemeinschaft ("Blaue Liste") | C39: 1491 | D39: 394 | E39: 765 | F39: 193 | G39: 59 | H39: 23 | I39: 228 | J39: 13 | K39: 56 | L39: 16 | M39: 153 | N39: 60 | O39: 230 | P39: 89
B40: Institute der Max-Planck-Gesellschaft | C40: 2274 | D40: 314 | E40: 1862 | F40: 252 | G40: 23 | H40: 9 | I40: 96 | J40: 17 | K40: . | L40: . | M40: 124 | N40: 19 | O40: . | P40: .
B41: Insgesamt … | C41: 7352 | D41: 2808 | E41: 4401 | F41: 1453 | G41: 1215 | H41: 762 | I41: 931 | J41: 347 | K41: 86 | L41: 26 | M41: 280 | N41: 93 | O41: 439 | P41: 127
A43: 2013
B44: Institute der Fraunhofer-Gesellschaft | C44: 947 | D44: 640 | E44: 332 | F44: 243 | G44: 493 | H44: 345 | I44: 86 | J44: 27 | K44: . | L44: . | M44: . | N44: . | O44: 25 | P44: 20
B45: Helmholtz-Zentren | C45: 3002 | D45: 1523 | E45: 1752 | F45: 800 | G45: 696 | H45: 404 | I45: 518 | J45: 310 | K45: . | L45: . | M45: . | N45: . | O45: 22 | P45: 6
B46: Leibniz-Gemeinschaft ("Blaue Liste") | C46: 1579 | D46: 395 | E46: 830 | F46: 187 | G46: 81 | H46: 25 | I46: 203 | J46: 21 | K46: 39 | L46: 16 | M46: 155 | N46: 44 | O46: 270 | P46: 103
B47: Institute der Max-Planck-Gesellschaft | C47: 2291 | D47: 313 | E47: 1923 | F47: 252 | G47: 27 | H47: 6 | I47: 94 | J47: 21 | K47: . | L47: . | M47: . | N47: . | O47: 132 | P47: 12
B48: Insgesamt … | C48: 7819 | D48: 2871 | E48: 4837 | F48: 1482 | G48: 1296 | H48: 779 | I48: 901 | J48: 379 | K48: 70 | L48: 22 | M48: 265 | N48: 66 | O48: 450 | P48: 142
A49: _______
A50: Durch verfahrensbedingte Anpassungen können einzelne Summen voneinander abweichen. | M50: =331+543 -> 874
A52: Statistisches Bundesamt (Destatis), H204 Forschung und Entwicklung

Sheet 5.12
A1: Unbefristete Wissenschaftler der wissenschaftlichen Einrichtungen des öffentlichen Sektors 2013
A2: nach Altersklassen, ausgewählte Einrichtungsarten, Wissenschaftszweigen und Geschlecht
A4: Einrichtungsarten | C4: Insgesamt | E4: Naturwissenschaften | G4: Ingenieurwissenschaften | I4: Humanmedizin | K4: Agrarwissenschaften | M4: Geisteswissenschaften | O4: Sozialwissenschaften
C5: männlich | D5: weiblich | E5: männlich | F5: weiblich | G5: männlich | H5: weiblich | I5: männlich | J5: weiblich | K5: männlich | L5: weiblich | M5: männlich | N5: weiblich | O5: männlich | P5: weiblich
C6: HC
A8: ohne Promotion bis 34 Jahre
B9: Institute der Fraunhofer-Gesellschaft | C9: 185 | D9: 114 | E9: 64 | F9: 42 | G9: 112 | H9: 61 | I9: . | J9: . | K9: . | L9: . | M9: 0 | N9: 0 | O9: . | P9: .
B10: Helmholtz-Zentren | C10: 522 | D10: 542 | E10: 228 | F10: 243 | G10: 106 | H10: 62 | I10: 186 | J10: 235 | K10: . | L10: . | M10: 0 | N10: 0 | O10: . | P10: .
B11: Leibniz-Gemeinschaft ("Blaue Liste") | C11: 96 | D11: 140 | E11: 16 | F11: 33 | G11: . | H11: . | I11: 5 | J11: 5 | K11: . | L11: . | M11: 9 | N11: 21 | O11: 58 | P11: 70
B12: Institute der Max-Planck-Gesellschaft | C12: 51 | D12: 65 | E12: 39 | F12: 46 | G12: . | H12: . | I12: . | J12: . | K12: 0 | L12: 0 | M12: . | N12: . | O12: 4 | P12: 9
B13: Insgesamt … | C13: 854 | D13: 861 | E13: 347 | F13: 363 | G13: 225 | H13: 132 | I13: 198 | J13: 250 | K13: . | L13: . | M13: . | N13: . | O13: 69 | P13: 84
A15: mit Promotion bis 44 Jahre
B16: Institute der Fraunhofer-Gesellschaft | C16: 550 | D16: 90 | E16: 211 | F16: 33 | G16: . | H16: . | I16: 20 | J16: 7 | K16: . | L16: . | M16: 0 | N16: 0 | O16: . | P16: .
B17: Helmholtz-Zentren | C17: 1008 | D17: 515 | E17: 545 | F17: 255 | G17: 304 | H17: 100 | I17: 154 | J17: 157 | K17: . | L17: . | M17: . | N17: . | O17: . | P17: .
B18: Leibniz-Gemeinschaft ("Blaue Liste") | C18: 246 | D18: 149 | E18: 128 | F18: 59 | G18: 16 | H18: 8 | I18: 10 | J18: 11 | K18: 8 | L18: 7 | M18: 24 | N18: 20 | O18: 60 | P18: 43
B19: Institute der Max-Planck-Gesellschaft | C19: 219 | D19: 94 | E19: 186 | F19: 66 | G19: . | H19: . | I19: 13 | J19: 8 | K19: 0 | L19: 0 | M19: . | N19: . | O19: . | P19: .
B20: Insgesamt … | C20: 2023 | D20: 848 | E20: 1070 | F20: 413 | G20: 624 | H20: 155 | I20: 196 | J20: 183 | K20: 12 | L20: 10 | M20: 35 | N20: 32 | O20: 86 | P20: 56
A21: _______
A22: Durch verfahrensbedingte Anpassungen können einzelne Summen voneinander abweichen.
A24: Statistisches Bundesamt (Destatis), H204 Forschung und Entwicklung

Sheet 5.13
A1: Befristete Wissenschaftler der wissenschaftlichen Einrichtungen des öffentlichen Sektors 2013
A2: nach Altersklassen, ausgewählte Einrichtungsarten, Wissenschaftszweigen und Geschlecht
A4: Einrichtungsarten | C4: Insgesamt | E4: Naturwissenschaften | G4: Ingenieurwissenschaften | I4: Humanmedizin | K4: Agrarwissenschaften | M4: Geisteswissenschaften | O4: Sozialwissenschaften
C5: männlich | D5: weiblich | E5: männlich | F5: weiblich | G5: männlich | H5: weiblich | I5: männlich | J5: weiblich | K5: männlich | L5: weiblich | M5: männlich | N5: weiblich | O5: männlich | P5: weiblich
C6: HC
A8: ohne Promotion bis 34 Jahre
B9: Institute der Fraunhofer-Gesellschaft | C9: 3576 | D9: 980 | E9: 1187 | F9: 331 | G9: 2120 | H9: 517 | I9: 100 | J9: 66 | K9: 5 | L9: 10 | M9: 0 | N9: 0 | O9: 164 | P9: 56
B10: Helmholtz-Zentren | C10: 3646 | D10: 2177 | E10: 1904 | F10: 1243 | G10: 1312 | H10: 418 | I10: 394 | J10: 482 | K10: . | L10: . | M10: . | N10: . | O10: 27 | P10: 22
B11: Leibniz-Gemeinschaft ("Blaue Liste") | C11: 1485 | D11: 1583 | E11: 888 | F11: 810 | G11: 96 | H11: 56 | I11: 97 | J11: 221 | K11: 59 | L11: 62 | M11: 113 | N11: 259 | O11: 232 | P11: 174
B12: Institute der Max-Planck-Gesellschaft | C12: 1520 | D12: 1080 | E12: 1296 | F12: 809 | G12: 29 | H12: 17 | I12: 44 | J12: 69 | K12: . | L12: . | M12: . | N12: . | O12: 99 | P12: 101
B13: Insgesamt … | C13: 10227 | D13: 5820 | E13: 5275 | F13: 3193 | G13: 3556 | H13: 1008 | I13: 635 | J13: 838 | K13: 76 | L13: 88 | M13: 163 | N13: 340 | O13: 522 | P13: 353
A15: mit Promotion bis 44 Jahre
B16: Institute der Fraunhofer-Gesellschaft | C16: 706 | D16: 241 | E16: 253 | F16: 79 | G16: 377 | H16: 116 | I16: 56 | J16: 31 | K16: 5 | L16: 5 | M16: 0 | N16: 0 | O16: 15 | P16: 10
B17: Helmholtz-Zentren | C17: 1841 | D17: 1161 | E17: 1100 | F17: 652 | G17: 465 | H17: 230 | I17: 256 | J17: 262 | K17: . | L17: . | M17: . | N17: . | O17: 14 | P17: 8
B18: Leibniz-Gemeinschaft ("Blaue Liste") | C18: 887 | D18: 692 | E18: 507 | F18: 323 | G18: 59 | H18: 21 | I18: 64 | J18: 139 | K18: 10 | L18: 29 | M18: 72 | N18: 83 | O18: 174 | P18: 97
B19: Institute der Max-Planck-Gesellschaft | C19: 1547 | D19: 744 | E19: 1332 | F19: 591 | G19: 19 | H19: 8 | I19: 55 | J19: 39 | K19: . | L19: . | M19: . | N19: . | O19: 77 | P19: 55
B20: Insgesamt … | C20: 4981 | D20: 2838 | E20: 3192 | F20: 1645 | G20: 921 | H20: 375 | I20: 430 | J20: 471 | K20: 24 | L20: 45 | M20: 134 | N20: 132 | O20: 280 | P20: 170
A21: _______
A22: Durch verfahrensbedingte Anpassungen können einzelne Summen voneinander abweichen.
A24: Statistisches Bundesamt (Destatis), H204 Forschung und Entwicklung

Sheet 5.14
A1: Vollzeit Wissenschaftler der wissenschaftlichen Einrichtungen des öffentlichen Sektors 2013
A2: nach Altersklassen, ausgewählte Einrichtungsarten, Wissenschaftszweigen und Geschlecht
A4: Einrichtungsarten | C4: Insgesamt | E4: Naturwissenschaften | G4: Ingenieurwissenschaften | I4: Humanmedizin | K4: Agrarwissenschaften | M4: Geisteswissenschaften | O4: Sozialwissenschaften
C5: männlich | D5: weiblich | E5: männlich | F5: weiblich | G5: männlich | H5: weiblich | I5: männlich | J5: weiblich | K5: männlich | L5: weiblich | M5: männlich | N5: weiblich | O5: männlich | P5: weiblich
C6: HC
A8: ohne Promotion bis 34 Jahre
B9: Institute der Fraunhofer-Gesellschaft | C9: 2389 | D9: 526 | E9: 790 | F9: 179 | G9: 1436 | H9: 293 | I9: . | J9: . | K9: . | L9: . | M9: 0 | N9: 0 | O9: 101 | P9: 27
B10: Helmholtz-Zentren | C10: 2450 | D10: 1387 | E10: 1080 | F10: 732 | G10: 1069 | H10: 302 | I10: 281 | J10: 335 | K10: . | L10: . | M10: . | N10: . | O10: 12 | P10: 7
B11: Leibniz-Gemeinschaft ("Blaue Liste") | C11: 537 | D11: 425 | E11: 258 | F11: 186 | G11: 63 | H11: 35 | I11: 34 | J11: 38 | K11: 26 | L11: 23 | M11: 43 | N11: 48 | O11: 113 | P11: 95
B12: Institute der Max-Planck-Gesellschaft | C12: 1075 | D12: 736 | E12: 920 | F12: 556 | G12: 22 | H12: 10 | I12: . | J12: . | K12: . | L12: . | M12: . | N12: . | O12: 59 | P12: 67
B13: Insgesamt … | C13: 6451 | D13: 3074 | E13: 3049 | F13: 1652 | G13: 2590 | H13: 639 | I13: 410 | J13: 452 | K13: 39 | L13: 40 | M13: 80 | N13: 94 | O13: 284 | P13: 197
A15: mit Promotion bis 44 Jahre
B16: Institute der Fraunhofer-Gesellschaft | C16: 1128 | D16: 224 | E16: 417 | F16: 76 | G16: 616 | H16: 108 | I16: 63 | J16: 26 | K16: 6 | L16: 5 | M16: 0 | N16: 0 | O16: 27 | P16: 9
B17: Helmholtz-Zentren | C17: 2684 | D17: 1247 | E17: 1562 | F17: 690 | G17: 721 | H17: 218 | I17: 377 | J17: 325 | K17: . | L17: . | M17: . | N17: . | O17: 17 | P17: 7
B18: Leibniz-Gemeinschaft ("Blaue Liste") | C18: 983 | D18: 552 | E18: 578 | F18: 269 | G18: 66 | H18: 19 | I18: 61 | J18: 97 | K18: 15 | L18: 20 | M18: 77 | N18: 60 | O18: 185 | P18: 87
B19: Institute der Max-Planck-Gesellschaft | C19: 1645 | D19: 691 | E19: 1425 | F19: 546 | G19: 21 | H19: 8 | I19: 64 | J19: 39 | K19: . | L19: . | M19: . | N19: . | O19: 68 | P19: 47
B20: Insgesamt … | C20: 6440 | D20: 2714 | E20: 3982 | F20: 1581 | G20: 1424 | H20: 354 | I20: 565 | J20: 487 | K20: 31 | L20: 34 | M20: 143 | N20: 109 | O20: 295 | P20: 149
A22: mit Promotion befristet
B23: Institute der Fraunhofer-Gesellschaft | C23: 749 | D23: 198 | E23: 264 | F23: 70 | G23: 410 | H23: 94 | I23: 56 | J23: 24 | K23: 4 | L23: 4 | M23: 0 | N23: 0 | O23: 15 | P23: 5
B24: Helmholtz-Zentren | C24: 2068 | D24: 954 | E24: 1257 | F24: 551 | G24: 516 | H24: 174 | I24: 272 | J24: 216 | K24: . | L24: . | M24: . | N24: . | O24: 16 | P24: 6
B25: Leibniz-Gemeinschaft ("Blaue Liste") | C25: 938 | D25: 520 | E25: 566 | F25: 265 | G25: 68 | H25: 16 | I25: 68 | J25: 102 | K25: 10 | L25: 17 | M25: 71 | N25: 59 | O25: 155 | P25: 61
B26: Institute der Max-Planck-Gesellschaft | C26: 1606 | D26: 682 | E26: 1396 | F26: 542 | G26: 19 | H26: 7 | I26: 56 | J26: 35 | K26: . | L26: . | M26: . | N26: . | O26: 69 | P26: 50
B27: Insgesamt … | C27: 5361 | D27: 2354 | E27: 3482 | F27: 1428 | G27: 1012 | H27: 290 | I27: 453 | J27: 377 | K27: 25 | L27: 30 | M27: 134 | N27: 105 | O27: 254 | P27: 123
A28: _______
A29: Durch verfahrensbedingte Anpassungen können einzelne Summen voneinander abweichen.
A31: Statistisches Bundesamt (Destatis), H204 Forschung und Entwicklung

Sheet 5.15
A1: Teilzeit Wissenschaftler der wissenschaftlichen Einrichtungen des öffentlichen Sektors 2013
A2: nach Altersklassen, ausgewählte Einrichtungsarten, Wissenschaftszweigen und Geschlecht
A4: Einrichtungsarten | C4: Insgesamt | E4: Naturwissenschaften | G4: Ingenieurwissenschaften | I4: Humanmedizin | K4: Agrarwissenschaften | M4: Geisteswissenschaften | O4: Sozialwissenschaften
C5: männlich | D5: weiblich | E5: männlich | F5: weiblich | G5: männlich | H5: weiblich | I5: männlich | J5: weiblich | K5: männlich | L5: weiblich | M5: männlich | N5: weiblich | O5: männlich | P5: weiblich
C6: HC
A8: ohne Promotion bis 34 Jahre
B9: Institute der Fraunhofer-Gesellschaft | C9: 1372 | D9: 568 | E9: 460 | F9: 194 | G9: 796 | H9: 286 | I9: 44 | J9: 47 | K9: 4 | L9: 8 | M9: 0 | N9: 0 | O9: 68 | P9: 33
B10: Helmholtz-Zentren | C10: 1718 | D10: 1332 | E10: 1053 | F10: 754 | G10: 348 | H10: 178 | I10: 299 | J10: 382 | K10: . | L10: . | M10: . | N10: . | O10: 17 | P10: 16
B11: Leibniz-Gemeinschaft ("Blaue Liste") | C11: 1044 | D11: 1298 | E11: 646 | F11: 658 | G11: 40 | H11: 29 | I11: 68 | J11: 188 | K11: 33 | L11: 43 | M11: 79 | N11: 232 | O11: 178 | P11: 148
B12: Institute der Max-Planck-Gesellschaft | C12: 496 | D12: 409 | E12: 415 | F12: 299 | G12: 8 | H12: 7 | I12: 11 | J12: 18 | K12: . | L12: . | M12: . | N12: . | O12: 44 | P12: 43
B13: Insgesamt … | C13: 4630 | D13: 3607 | E13: 2573 | F13: 1904 | G13: 1192 | H13: 501 | I13: 422 | J13: 635 | K13: 39 | L13: 53 | M13: 96 | N13: 274 | O13: 307 | P13: 240
A15: mit Promotion bis 44 Jahre
B16: Institute der Fraunhofer-Gesellschaft | C16: 128 | D16: 107 | E16: 47 | F16: 35 | G16: 63 | H16: 52 | I16: 12 | J16: 12 | K16: . | L16: . | M16: 0 | N16: 0 | O16: . | P16: .
B17: Helmholtz-Zentren | C17: 165 | D17: 429 | E17: 83 | F17: 217 | G17: 48 | H17: 112 | I17: 33 | J17: 94 | K17: . | L17: . | M17: . | N17: . | O17: . | P17: .
B18: Leibniz-Gemeinschaft ("Blaue Liste") | C18: 150 | D18: 289 | E18: 57 | F18: 113 | G18: . | H18: . | I18: 13 | J18: 53 | K18: 3 | L18: 16 | M18: . | N18: . | O18: 49 | P18: 53
B19: Institute der Max-Planck-Gesellschaft | C19: 121 | D19: 147 | E19: 93 | F19: 111 | G19: . | H19: . | I19: 4 | J19: 8 | K19: . | L19: . | M19: . | N19: . | O19: 15 | P19: 15
B20: Insgesamt … | C20: 564 | D20: 972 | E20: 280 | F20: 476 | G20: 121 | H20: 176 | I20: 61 | J20: 167 | K20: 6 | L20: 21 | M20: 25 | N20: 55 | O20: 70 | P20: 77
A22: mit Promotion befristet
B23: Institute der Fraunhofer-Gesellschaft | C23: 197 | D23: 77 | E23: 64 | F23: 23 | G23: 107 | H23: 38 | I23: 21 | J23: 9 | K23: . | L23: . | M23: 0 | N23: 0 | O23: . | P23: .
B24: Helmholtz-Zentren | C24: 264 | D24: 375 | E24: 132 | F24: 202 | G24: 72 | H24: 95 | I24: 57 | J24: 73 | K24: . | L24: . | M24: . | N24: . | O24: . | P24: .
B25: Leibniz-Gemeinschaft ("Blaue Liste") | C25: 229 | D25: 307 | E25: 112 | F25: 129 | G25: . | H25: . | I25: 23 | J25: 58 | K25: 9 | L25: 20 | M25: . | N25: . | O25: 53 | P25: 43
B26: Institute der Max-Planck-Gesellschaft | C26: 188 | D26: 155 | E26: 153 | F26: 118 | G26: . | H26: . | I26: 5 | J26: 6 | K26: . | L26: . | M26: . | N26: . | O26: 17 | P26: 17
B27: Insgesamt … | C27: 878 | D27: 914 | E27: 460 | F27: 471 | G27: 193 | H27: 145 | I27: 106 | J27: 147 | K27: 12 | L27: 25 | M27: 31 | N27: 59 | O27: 75 | P27: 67
A28: _______
A29: Durch verfahrensbedingte Anpassungen können einzelne Summen voneinander abweichen.
A31: Statistisches Bundesamt (Destatis), H204 Forschung und Entwicklung

Sheet 6. Staatsangehörigkeit

Sheet 6.1
A1: Wissenschaftler der wissenschaftlichen Einrichtungen des öffentlichen Sektors 2013
A2: nach Altersklassen, ausgewählten Einrichtungsarten und Staatsangehörigkeit
A4: Einrichtungsarten | C4: Naturwissenschaften
C5: Insgesamt | D5: Deutschland | E5: EU 27 (ohne Deutschland) | F5: Übriges Europa | G5: Nordamerika | H5: Mittel- und Südamerika | I5: Asien | J5: Afrika | K5: Australien und Ozeanien | L5: Staatenlos/ Ungeklärt/ Ohne Angabe
C6: HC
A8: ohne Promotion bis 34 Jahre
B9: Institute der Fraunhofer-Gesellschaft | C9: 1624 | D9: 1433 | E9: 75 | F9: 31 | G9: 4 | H9: 16 | I9: 57 | J9: . | K9: . | L9: 0
B10: Helmholtz-Zentren | C10: 3618 | D10: 2700 | E10: 367 | F10: 162 | G10: 23 | H10: 46 | I10: 297 | J10: 18 | K10: 5 | L10: 0
B11: Leibniz-Gemeinschaft ("Blaue Liste") | C11: 1747 | D11: 1321 | E11: 136 | F11: 66 | G11: 16 | H11: 26 | I11: 174 | J11: . | K11: . | L11: 0
B12: Institute der Max-Planck-Gesellschaft | C12: 2190 | D12: 1555 | E12: 267 | F12: 71 | G12: 27 | H12: 32 | I12: 220 | J12: 12 | K12: 6 | L12: 0
B13: Insgesamt … | C13: 9178 | D13: 7009 | E13: 845 | F13: 330 | G13: 70 | H13: 120 | I13: 748 | J13: 43 | K13: 14 | L13: 0
A15: mit Promotion bis 44 Jahre
B16: Institute der Fraunhofer-Gesellschaft | C16: 575 | D16: 505 | E16: 36 | F16: 9 | G16: . | H16: 6 | I16: 13 | J16: . | K16: 0 | L16: 0
B17: Helmholtz-Zentren | C17: 2552 | D17: 1567 | E17: 482 | F17: 176 | G17: 39 | H17: 32 | I17: 229 | J17: 13 | K17: . | L17: .
B18: Leibniz-Gemeinschaft ("Blaue Liste") | C18: 1017 | D18: 674 | E18: 163 | F18: 68 | G18: . | H18: 16 | I18: 73 | J18: . | K18: 6 | L18: 0
B19: Institute der Max-Planck-Gesellschaft | C19: 2175 | D19: 1139 | E19: 538 | F19: 132 | G19: 70 | H19: 35 | I19: 237 | J19: 12 | K19: 13 | L19: 0
B20: Insgesamt … | C20: 6319 | D20: 3886 | E20: 1219 | F20: 385 | G20: 122 | H20: 89 | I20: 551 | J20: 34 | K20: . | L20: .
A22: mit Promotion befristet
B23: Institute der Fraunhofer-Gesellschaft | C23: 420 | D23: 353 | E23: 34 | F23: 11 | G23: . | H23: 6 | I23: 12 | J23: . | K23: 0 | L23: 0
B24: Helmholtz-Zentren | C24: 2142 | D24: 1276 | E24: 402 | F24: 161 | G24: 41 | H24: 28 | I24: 209 | J24: 13 | K24: . | L24: .
B25: Leibniz-Gemeinschaft ("Blaue Liste") | C25: 1071 | D25: 715 | E25: 166 | F25: 75 | G25: . | H25: 16 | I25: 76 | J25: . | K25: 5 | L25: .
B26: Institute der Max-Planck-Gesellschaft | C26: 2208 | D26: 1136 | E26: 547 | F26: 146 | G26: 76 | H26: 37 | I26: 239 | J26: 13 | K26: . | L26: .
B27: Insgesamt … | C27: 5842 | D27: 3479 | E27: 1149 | F27: 393 | G27: 130 | H27: 87 | I27: 535 | J27: 35 | K27: . | L27: .
A28: _______
A29: Durch verfahrensbedingte Anpassungen können einzelne Summen voneinander abweichen.
A31: Statistisches Bundesamt (Destatis), H204 Forschung und Entwicklung

Sheet 6.2
A1: Wissenschaftler der wissenschaftlichen Einrichtungen des öffentlichen Sektors 2013
A2: nach Altersklassen, ausgewählten Einrichtungsarten und Staatsangehörigkeit
A4: Einrichtungsarten | C4: Ingenieurwissenschaften
C5: Insgesamt | D5: Deutschland | E5: EU 27 (ohne Deutschland) | F5: Übriges Europa | G5: Nordamerika | H5: Mittel- und Südamerika | I5: Asien | J5: Afrika | K5: Australien und Ozeanien | L5: Staatenlos/ Ungeklärt/ Ohne Angabe
C6: HC
A8: ohne Promotion bis 34 Jahre
B9: Institute der Fraunhofer-Gesellschaft | C9: 2810 | D9: 2527 | E9: 113 | F9: 50 | G9: . | H9: 24 | I9: 77 | J9: . | K9: . | L9: 0
B10: Helmholtz-Zentren | C10: 1897 | D10: 1538 | E10: 185 | F10: 45 | G10: 5 | H10: 14 | I10: 95 | J10: 12 | K10: 3 | L10: 0
B11: Leibniz-Gemeinschaft ("Blaue Liste") | C11: 167 | D11: 123 | E11: 17 | F11: . | G11: 0 | H11: . | I11: . | J11: . | K11: 0 | L11: .
B12: Institute der Max-Planck-Gesellschaft | C12: 47 | D12: 39 | E12: 3 | F12: . | G12: . | H12: . | I12: . | J12: 0 | K12: 0 | L12: 0
B13: Insgesamt … | C13: 4921 | D13: 4226 | E13: 319 | F13: 108 | G13: 12 | H13: 40 | I13: 185 | J13: 26 | K13: . | L13: .
A15: mit Promotion bis 44 Jahre
B16: Institute der Fraunhofer-Gesellschaft | C16: 838 | D16: 734 | E16: 56 | F16: 18 | G16: . | H16: . | I16: 17 | J16: . | K16: . | L16: 0
B17: Helmholtz-Zentren | C17: 1099 | D17: 810 | E17: 147 | F17: 44 | G17: 8 | H17: 10 | I17: 65 | J17: 6 | K17: 8 | L17: 0
B18: Leibniz-Gemeinschaft ("Blaue Liste") | C18: 105 | D18: 78 | E18: 17 | F18: . | G18: . | H18: 0 | I18: 5 | J18: . | K18: . | L18: 0
B19: Institute der Max-Planck-Gesellschaft | C19: 32 | D19: 18 | E19: 6 | F19: . | G19: . | H19: . | I19: 3 | J19: 0 | K19: . | L19: 0
B20: Insgesamt … | C20: 2075 | D20: 1640 | E20: 225 | F20: 68 | G20: 13 | H20: 17 | I20: 90 | J20: 12 | K20: 9 | L20: 0
A22: mit Promotion befristet
B23: Institute der Fraunhofer-Gesellschaft | C23: 649 | D23: 553 | E23: 47 | F23: 17 | G23: . | H23: . | I23: 17 | J23: 5 | K23: . | L23: 0
B24: Helmholtz-Zentren | C24: 857 | D24: 589 | E24: 123 | F24: 50 | G24: 6 | H24: 9 | I24: 67 | J24: . | K24: 7 | L24: .
B25: Leibniz-Gemeinschaft ("Blaue Liste") | C25: 105 | D25: 77 | E25: 16 | F25: . | G25: . | H25: 0 | I25: 5 | J25: . | K25: 0 | L25: 0
B26: Institute der Max-Planck-Gesellschaft | C26: 29 | D26: 16 | E26: 6 | F26: . | G26: . | H26: . | I26: 3 | J26: 0 | K26: 0 | L26: 0
B27: Insgesamt … | C27: 1640 | D27: 1235 | E27: 192 | F27: 74 | G27: 10 | H27: 16 | I27: 92 | J27: 12 | K27: . | L27: .
A28: _______
A29: Durch verfahrensbedingte Anpassungen können einzelne Summen voneinander abweichen.
A31: Statistisches Bundesamt (Destatis), H204 Forschung und Entwicklung

Sheet 6.3
A1: Wissenschaftler der wissenschaftlichen Einrichtungen des öffentlichen Sektors 2013
A2: nach Altersklassen, ausgewählten Einrichtungsarten und Staatsangehörigkeit
A4: Einrichtungsarten | C4: Humanmedizin
C5: Insgesamt | D5: Deutschland | E5: EU 27 (ohne Deutschland) | F5: Übriges Europa | G5: Nordamerika | H5: Mittel- und Südamerika | I5: Asien | J5: Afrika | K5: Australien und Ozeanien | L5: Staatenlos/ Ungeklärt/ Ohne Angabe
C6: HC
A8: ohne Promotion bis 34 Jahre
B9: Institute der Fraunhofer-Gesellschaft | C9: 175 | D9: 151 | E9: 9 | F9: . | G9: . | H9: . | I9: 6 | J9: 0 | K9: . | L9: 0
B10: Helmholtz-Zentren | C10: 1296 | D10: 923 | E10: 149 | F10: 50 | G10: 9 | H10: 16 | I10: 140 | J10: 7 | K10: 3 | L10: 0
B11: Leibniz-Gemeinschaft ("Blaue Liste") | C11: 328 | D11: 287 | E11: 18 | F11: 4 | G11: . | H11: . | I11: 10 | J11: 4 | K11: . | L11: 0
B12: Institute der Max-Planck-Gesellschaft | C12: 120 | D12: 90 | E12: 12 | F12: . | G12: . | H12: . | I12: 11 | J12: 0 | K12: . | L12: 0
B13: Insgesamt … | C13: 1920 | D13: 1451 | E13: 188 | F13: 64 | G13: 13 | H13: 20 | I13: 168 | J13: 11 | K13: 5 | L13: 0
A15: mit Promotion bis 44 Jahre
B16: Institute der Fraunhofer-Gesellschaft | C16: 114 | D16: 97 | E16: 9 | F16: . | G16: . | H16: . | I16: 4 | J16: . | K16: . | L16: 0
B17: Helmholtz-Zentren | C17: 828 | D17: 518 | E17: 137 | F17: 45 | G17: 17 | H17: 17 | I17: 80 | J17: 4 | K17: 10 | L17: 0
B18: Leibniz-Gemeinschaft ("Blaue Liste") | C18: 224 | D18: 172 | E18: 31 | F18: 7 | G18: 0 | H18: . | I18: 9 | J18: . | K18: . | L18: 0
B19: Institute der Max-Planck-Gesellschaft | C19: 115 | D19: 76 | E19: 18 | F19: . | G19: . | H19: . | I19: 10 | J19: . | K19: . | L19: 0
B20: Insgesamt … | C20: 1280 | D20: 863 | E20: 195 | F20: 58 | G20: 19 | H20: 24 | I20: 103 | J20: 7 | K20: 11 | L20: 0
A22: mit Promotion befristet
B23: Institute der Fraunhofer-Gesellschaft | C23: 111 | D23: 92 | E23: 10 | F23: . | G23: . | H23: . | I23: 4 | J23: . | K23: . | L23: 0
B24: Helmholtz-Zentren | C24: 618 | D24: 399 | E24: 94 | F24: 36 | G24: 13 | H24: 12 | I24: 52 | J24: 4 | K24: 8 | L24: 0
B25: Leibniz-Gemeinschaft ("Blaue Liste") | C25: 251 | D25: 193 | E25: 32 | F25: 8 | G25: . | H25: 4 | I25: 12 | J25: . | K25: . | L25: 0
B26: Institute der Max-Planck-Gesellschaft | C26: 103 | D26: 63 | E26: 19 | F26: . | G26: . | H26: . | I26: 10 | J26: . | K26: . | L26: 0
B27: Insgesamt … | C27: 1083 | D27: 746 | E27: 156 | F27: 50 | G27: 16 | H27: 20 | I27: 79 | J27: 8 | K27: 9 | L27: 0
A28: _______
A29: Durch verfahrensbedingte Anpassungen können einzelne Summen voneinander abweichen.
A31: Statistisches Bundesamt (Destatis), H204 Forschung und Entwicklung

Sheet 6.4
A1: Wissenschaftler der wissenschaftlichen Einrichtungen des öffentlichen Sektors 2013
A2: nach Altersklassen, ausgewählten Einrichtungsarten und Staatsangehörigkeit
A4: Einrichtungsarten | C4: Agrarwissenschaften
C5: Insgesamt | D5: Deutschland | E5: EU 27 (ohne Deutschland) | F5: Übriges Europa | G5: Nordamerika | H5: Mittel- und Südamerika | I5: Asien | J5: Afrika | K5: Australien und Ozeanien | L5: Staatenlos/ Ungeklärt/ Ohne Angabe
C6: HC
A8: ohne Promotion bis 34 Jahre
B9: Institute der Fraunhofer-Gesellschaft | C9: 18 | D9: 16 | E9: . | F9: 0 | G9: 0 | H9: 0 | I9: . | J9: 0 | K9: 0 | L9: 0
B10: Helmholtz-Zentren | C10: 21 | D10: 15 | E10: 3 | F10: . | G10: 0 | H10: 0 | I10: . | J10: 0 | K10: 0 | L10: 0
B11: Leibniz-Gemeinschaft ("Blaue Liste") | C11: 125 | D11: 109 | E11: 8 | F11: . | G11: 0 | H11: . | I11: . | J11: 0 | K11: 0 | L11: 0
B12: Institute der Max-Planck-Gesellschaft | C12: 7 | D12: 5 | E12: . | F12: . | G12: 0 | H12: 0 | I12: 0 | J12: 0 | K12: 0 | L12: 0
B13: Insgesamt … | C13: 171 | D13: 146 | E13: 12 | F13: . | G13: 0 | H13: . | I13: . | J13: 0 | K13: 0 | L13: 0
A15: mit Promotion bis 44 Jahre
B16: Institute der Fraunhofer-Gesellschaft | C16: 14 | D16: 13 | E16: . | F16: 0 | G16: 0 | H16: 0 | I16: 0 | J16: 0 | K16: 0 | L16: 0
B17: Helmholtz-Zentren | C17: 16 | D17: 11 | E17: 3 | F17: 0 | G17: 0 | H17: 0 | I17: . | J17: 0 | K17: 0 | L17: 0
B18: Leibniz-Gemeinschaft ("Blaue Liste") | C18: 55 | D18: 49 | E18: . | F18: 0 | G18: . | H18: . | I18: 0 | J18: . | K18: 0 | L18: 0
B19: Institute der Max-Planck-Gesellschaft | C19: 7 | D19: 4 | E19: . | F19: 0 | G19: 0 | H19: 0 | I19: 0 | J19: 0 | K19: 0 | L19: 0
B20: Insgesamt … | C20: 92 | D20: 76 | E20: 8 | F20: . | G20: . | H20: . | I20: . | J20: . | K20: 0 | L20: 0
A22: mit Promotion befristet
B23: Institute der Fraunhofer-Gesellschaft | C23: 12 | D23: 11 | E23: . | F23: 0 | G23: 0 | H23: 0 | I23: 0 | J23: 0 | K23: 0 | L23: 0
B24: Helmholtz-Zentren | C24: 16 | D24: 11 | E24: 3 | F24: 0 | G24: 0 | H24: 0 | I24: . | J24: 0 | K24: 0 | L24: 0
B25: Leibniz-Gemeinschaft ("Blaue Liste") | C25: 57 | D25: 51 | E25: . | F25: 0 | G25: . | H25: . | I25: 0 | J25: . | K25: 0 | L25: 0
B26: Institute der Max-Planck-Gesellschaft | C26: 7 | D26: 4 | E26: . | F26: 0 | G26: 0 | H26: 0 | I26: 0 | J26: 0 | K26: 0 | L26: 0
B27: Insgesamt … | C27: 92 | D27: 77 | E27: 8 | F27: . | G27: . | H27: . | I27: . | J27: . | K27: 0 | L27: 0
A28: _______
A29: Durch verfahrensbedingte Anpassungen können einzelne Summen voneinander abweichen.
A31: Statistisches Bundesamt (Destatis), H204 Forschung und Entwicklung

Sheet 6.5
A1: Wissenschaftler der wissenschaftlichen Einrichtungen des öffentlichen Sektors 2013
A2: nach Altersklassen, ausgewählten Einrichtungsarten und Staatsangehörigkeit
A4: Einrichtungsarten | C4: Geisteswissenschaften
C5: Insgesamt | D5: Deutschland | E5: EU 27 (ohne Deutschland) | F5: Übriges Europa | G5: Nordamerika | H5: Mittel- und Südamerika | I5: Asien | J5: Afrika | K5: Australien und Ozeanien | L5: Staatenlos/ Ungeklärt/ Ohne Angabe
C6: HC
A8: ohne Promotion bis 34 Jahre
B9: Institute der Fraunhofer-Gesellschaft | C9: 0 | D9: 0 | E9: 0 | F9: 0 | G9: 0 | H9: 0 | I9: 0 | J9: 0 | K9: 0 | L9: 0
B10: Helmholtz-Zentren | C10: . | D10: . | E10: 0 | F10: 0 | G10: 0 | H10: 0 | I10: 0 | J10: 0 | K10: 0 | L10: 0
B11: Leibniz-Gemeinschaft ("Blaue Liste") | C11: 402 | D11: 363 | E11: 26 | F11: 6 | G11: 4 | H11: 0 | I11: . | J11: 0 | K11: . | L11: 0
B12: Institute der Max-Planck-Gesellschaft | C12: . | D12: . | E12: 9 | F12: 4 | G12: 3 | H12: . | I12: . | J12: . | K12: 0 | L12: 0
B13: Insgesamt … | C13: 544 | D13: 484 | E13: 35 | F13: 9 | G13: 7 | H13: . | I13: 7 | J13: . | K13: . | L13: 0
A15: mit Promotion bis 44 Jahre
B16: Institute der Fraunhofer-Gesellschaft | C16: 0 | D16: 0 | E16: 0 | F16: 0 | G16: 0 | H16: 0 | I16: 0 | J16: 0 | K16: 0 | L16: 0
B17: Helmholtz-Zentren | C17: . | D17: . | E17: 0 | F17: 0 | G17: 0 | H17: 0 | I17: 0 | J17: 0 | K17: 0 | L17: 0
B18: Leibniz-Gemeinschaft ("Blaue Liste") | C18: 199 | D18: 188 | E18: 7 | F18: . | G18: 0 | H18: 0 | I18: . | J18: 0 | K18: . | L18: 0
B19: Institute der Max-Planck-Gesellschaft | C19: . | D19: . | E19: 17 | F19: . | G19: 6 | H19: . | I19: . | J19: . | K19: 0 | L19: 0
B20: Insgesamt … | C20: 331 | D20: 287 | E20: 23 | F20: 5 | G20: 6 | H20: . | I20: 6 | J20: . | K20: . | L20: 0
A22: mit Promotion befristet
B23: Institute der Fraunhofer-Gesellschaft | C23: 0 | D23: 0 | E23: 0 | F23: 0 | G23: 0 | H23: 0 | I23: 0 | J23: 0 | K23: 0 | L23: 0
B24: Helmholtz-Zentren | C24: . | D24: . | E24: 0 | F24: 0 | G24: 0 | H24: 0 | I24: 0 | J24: 0 | K24: 0 | L24: 0
B25: Leibniz-Gemeinschaft ("Blaue Liste") | C25: 198 | D25: 186 | E25: 7 | F25: . | G25: 0 | H25: 0 | I25: . | J25: 0 | K25: . | L25: 0
B26: Institute der Max-Planck-Gesellschaft | C26: . | D26: . | E26: 18 | F26: . | G26: 7 | H26: . | I26: . | J26: . | K26: 0 | L26: 0
B27: Insgesamt … | C27: 330 | D27: 283 | E27: 25 | F27: 6 | G27: 7 | H27: . | I27: 6 | J27: . | K27: . | L27: 0
A28: _______
A29: Durch verfahrensbedingte Anpassungen können einzelne Summen voneinander abweichen.
A31: Statistisches Bundesamt (Destatis), H204 Forschung und Entwicklung

Sheet 6.6
A1: Wissenschaftler der wissenschaftlichen Einrichtungen des öffentlichen Sektors 2013
A2: nach Altersklassen, ausgewählten Einrichtungsarten und Staatsangehörigkeit
A4: Einrichtungsarten | C4: Sozialwissenschaften
C5: Insgesamt | D5: Deutschland | E5: EU 27 (ohne Deutschland) | F5: Übriges Europa | G5: Nordamerika | H5: Mittel- und Südamerika | I5: Asien | J5: Afrika | K5: Australien und Ozeanien | L5: Staatenlos/ Ungeklärt/ Ohne Angabe
C6: HC
A8: ohne Promotion bis 34 Jahre
B9: Institute der Fraunhofer-Gesellschaft | C9: 229 | D9: 202 | E9: 12 | F9: . | G9: 0 | H9: . | I9: 4 | J9: . | K9: . | L9: 0
B10: Helmholtz-Zentren | C10: 52 | D10: 41 | E10: 4 | F10: . | G10: 0 | H10: . | I10: 4 | J10: 0 | K10: 0 | L10: 0
B11: Leibniz-Gemeinschaft ("Blaue Liste") | C11: 534 | D11: 472 | E11: 30 | F11: 11 | G11: 5 | H11: . | I11: 6 | J11: . | K11: 0 | L11: 0
B12: Institute der Max-Planck-Gesellschaft | C12: 213 | D12: 164 | E12: 19 | F12: 9 | G12: 3 | H12: 4 | I12: 9 | J12: . | K12: . | L12: 0
B13: Insgesamt … | C13: 1027 | D13: 879 | E13: 64 | F13: 28 | G13: 8 | H13: 11 | I13: 23 | J13: . | K13: . | L13: 0
A15: mit Promotion bis 44 Jahre
B16: Institute der Fraunhofer-Gesellschaft | C16: 46 | D16: 41 | E16: . | F16: . | G16: 0 | H16: . | I16: . | J16: . | K16: . | L16: 0
B17: Helmholtz-Zentren | C17: 28 | D17: 19 | E17: . | F17: . | G17: 0 | H17: . | I17: . | J17: 0 | K17: 0 | L17: 0
B18: Leibniz-Gemeinschaft ("Blaue Liste") | C18: 374 | D18: 283 | E18: 41 | F18: 20 | G18: 9 | H18: . | I18: 12 | J18: . | K18: . | L18: 0
B19: Institute der Max-Planck-Gesellschaft | C19: 145 | D19: 81 | E19: 43 | F19: 6 | G19: 3 | H19: 4 | I19: 5 | J19: . | K19: . | L19: 0
B20: Insgesamt … | C20: 592 | D20: 425 | E20: 90 | F20: 28 | G20: 13 | H20: 9 | I20: 20 | J20: . | K20: . | L20: 0
A22: mit Promotion befristet
B23: Institute der Fraunhofer-Gesellschaft | C23: 28 | D23: 25 | E23: . | F23: . | G23: 0 | H23: . | I23: . | J23: . | K23: . | L23: 0
B24: Helmholtz-Zentren | C24: 27 | D24: 18 | E24: . | F24: . | G24: 0 | H24: . | I24: . | J24: 0 | K24: 0 | L24: 0
B25: Leibniz-Gemeinschaft ("Blaue Liste") | C25: 311 | D25: 251 | E25: 28 | F25: 15 | G25: 4 | H25: . | I25: 9 | J25: . | K25: 0 | L25: 0
B26: Institute der Max-Planck-Gesellschaft | C26: 153 | D26: 87 | E26: 46 | F26: 5 | G26: 4 | H26: 4 | I26: 5 | J26: . | K26: . | L26: 0
B27: Insgesamt … | C27: 520 | D27: 381 | E27: 79 | F27: 22 | G27: 9 | H27: 6 | I27: 17 | J27: . | K27: . | L27: 0
A28: _______
A29: Durch verfahrensbedingte Anpassungen können einzelne Summen voneinander abweichen.
A31: Statistisches Bundesamt (Destatis), H204 Forschung und Entwicklung
